Workbook

Sheet INICIO

Sheet 0001-01 USAQUEN
A1: PLAN DE AUSTERIDAD EN EL GASTO 2025-2027
A2: Entidad
A3: Valores en Pesos Corrientes
A4: CONCEPTO (Decreto 062 de 2024) | B4: Posiciones Presupuestales Asociadas (Funcionamiento e Inversión) | C4: LÍNEA BASE | F4: PLAN DE AUSTERIDAD EN EL GASTO 2025-2027 | K4: SEGUIMIENTO RESULTADOS PLAN DE AUSTERIDAD 2025-2027
F5: ESTRATEGIAS 2025-2027 | G5: ACCIONES 2025-2027 | H5: META INDICADOR DE AUSTERIDAD
C6: AÑO 2023 | D6: AÑO 2024 | K6: AÑO 2025 | M6: AÑO 2026 | O6: AÑO 2027
C7: Valor EJECUTADO a 31/12/2023 | D7: Valor EJECUTADO a 31/12/2024 | E7: Resultado Indicador Austeridad | H7: AÑO 2025 | I7: AÑO 2026 | J7: AÑO 2027 | K7: Valor EJECUTADO a 31/12/2025 | L7: Resultado Indicador Austeridad | M7: Valor EJECUTADO a 31/12/2026 | N7: Resultado Indicador Austeridad | O7: Valor EJECUTADO a 31/12/2027 | P7: Resultado Indicador Austeridad
A8: Servicios de personal
A9: Artículo 6°.- Reducción del gasto en CPS profesionales y de apoyo a la gestión. | B9: N.A. Se registran totales. Corresponde con lo reportado en SIDEAP y SIVICOF | E9: =1-(D9/C9) ->  | L9: =1-(K9/D9) ->  | N9: =1-(M9/K9) ->  | P9: =1-(O9/M9) -> 
A10: Artículo 7°.- Horas extras, dominicales y festivos. | L10: =1-(K10/D10) ->  | N10: =1-(M10/K10) -> 
A11: Artículo 8°.- Viáticos y gastos de viaje.
A12: Artículo 9°.- Compensación por vacaciones.
A13: Artículo 10°.- Bono navideño.
A14: Artículo 11 -. Capacitación.
A15: Artículo 12 -. Bienestar.
A16: Artículo 13 -. Eventos y conmemoraciones.
A17: Artículo 14 -. Fondos educativos.
A18: Servicios Administrativos
A19: Artículo 15. Telefonía. | E19: =1-(D19/C19) -> 
A20: Artículo 16 -. Vehículos oficiales.
A21: Artículo 17 -. Adquisición de vehículos y maquinaria.
A22: Artículo 18 -. Fotocopiado, multicopiado e impresión.
A23: Artículo 19 -. Publicidad distrital.
A24: Artículo 20 -. Cajas menores.
A25: Artículo 21 -. Mantenimiento o reparación de bienes inmuebles o muebles.
A26: Artículo 22 -. Suscripciones.
A27: Artículo 23 -. Servicios públicos.

Sheet 0002-01 CHAPINERO
A1: PLAN DE AUSTERIDAD EN EL GASTO 2025-2027
A2: Entidad
A3: Valores en Pesos Corrientes
A4: CONCEPTO (Decreto 062 de 2024) | B4: Posiciones Presupuestales Asociadas (Funcionamiento e Inversión) | C4: LÍNEA BASE | F4: PLAN DE AUSTERIDAD EN EL GASTO 2025-2027 | K4: SEGUIMIENTO RESULTADOS PLAN DE AUSTERIDAD 2025-2027
F5: ESTRATEGIAS 2025-2027 | G5: ACCIONES 2025-2027 | H5: META INDICADOR DE AUSTERIDAD
C6: AÑO 2023 | D6: AÑO 2024 | K6: AÑO 2025 | M6: AÑO 2026 | O6: AÑO 2027
C7: Valor EJECUTADO a 31/12/2023 | D7: Valor EJECUTADO a 31/12/2024 | E7: Resultado Indicador Austeridad | H7: AÑO 2025 | I7: AÑO 2026 | J7: AÑO 2027 | K7: Valor EJECUTADO a 31/12/2025 | L7: Resultado Indicador Austeridad | M7: Valor EJECUTADO a 31/12/2026 | N7: Resultado Indicador Austeridad | O7: Valor EJECUTADO a 31/12/2027 | P7: Resultado Indicador Austeridad
A8: Servicios de personal
A9: Artículo 6°.- Reducción del gasto en CPS profesionales y de apoyo a la gestión. | B9: N.A. Se registran totales. Corresponde con lo reportado en SIDEAP y SIVICOF | E9: =1-(D9/C9) ->  | L9: =1-(K9/D9) ->  | N9: =1-(M9/K9) ->  | P9: =1-(O9/M9) -> 
A10: Artículo 7°.- Horas extras, dominicales y festivos. | L10: =1-(K10/D10) ->  | N10: =1-(M10/K10) -> 
A11: Artículo 8°.- Viáticos y gastos de viaje.
A12: Artículo 9°.- Compensación por vacaciones.
A13: Artículo 10°.- Bono navideño.
A14: Artículo 11 -. Capacitación.
A15: Artículo 12 -. Bienestar.
A16: Artículo 13 -. Eventos y conmemoraciones.
A17: Artículo 14 -. Fondos educativos.
A18: Servicios Administrativos
A19: Artículo 15. Telefonía. | E19: =1-(D19/C19) -> 
A20: Artículo 16 -. Vehículos oficiales.
A21: Artículo 17 -. Adquisición de vehículos y maquinaria.
A22: Artículo 18 -. Fotocopiado, multicopiado e impresión.
A23: Artículo 19 -. Publicidad distrital.
A24: Artículo 20 -. Cajas menores.
A25: Artículo 21 -. Mantenimiento o reparación de bienes inmuebles o muebles.
A26: Artículo 22 -. Suscripciones.
A27: Artículo 23 -. Servicios públicos.

Sheet 0003-01 SANTAFE
A1: PLAN DE AUSTERIDAD EN EL GASTO 2025-2027
A2: Entidad
A3: Valores en Pesos Corrientes
A4: CONCEPTO (Decreto 062 de 2024) | B4: Posiciones Presupuestales Asociadas (Funcionamiento e Inversión) | C4: LÍNEA BASE | F4: PLAN DE AUSTERIDAD EN EL GASTO 2025-2027 | K4: SEGUIMIENTO RESULTADOS PLAN DE AUSTERIDAD 2025-2027
F5: ESTRATEGIAS 2025-2027 | G5: ACCIONES 2025-2027 | H5: META INDICADOR DE AUSTERIDAD
C6: AÑO 2023 | D6: AÑO 2024 | K6: AÑO 2025 | M6: AÑO 2026 | O6: AÑO 2027
C7: Valor EJECUTADO a 31/12/2023 | D7: Valor EJECUTADO a 31/12/2024 | E7: Resultado Indicador Austeridad | H7: AÑO 2025 | I7: AÑO 2026 | J7: AÑO 2027 | K7: Valor EJECUTADO a 31/12/2025 | L7: Resultado Indicador Austeridad | M7: Valor EJECUTADO a 31/12/2026 | N7: Resultado Indicador Austeridad | O7: Valor EJECUTADO a 31/12/2027 | P7: Resultado Indicador Austeridad
A8: Servicios de personal
A9: Artículo 6°.- Reducción del gasto en CPS profesionales y de apoyo a la gestión. | B9: N.A. Se registran totales. Corresponde con lo reportado en SIDEAP y SIVICOF | E9: =1-(D9/C9) ->  | L9: =1-(K9/D9) ->  | N9: =1-(M9/K9) ->  | P9: =1-(O9/M9) -> 
A10: Artículo 7°.- Horas extras, dominicales y festivos. | L10: =1-(K10/D10) ->  | N10: =1-(M10/K10) -> 
A11: Artículo 8°.- Viáticos y gastos de viaje.
A12: Artículo 9°.- Compensación por vacaciones.
A13: Artículo 10°.- Bono navideño.
A14: Artículo 11 -. Capacitación.
A15: Artículo 12 -. Bienestar.
A16: Artículo 13 -. Eventos y conmemoraciones.
A17: Artículo 14 -. Fondos educativos.
A18: Servicios Administrativos
A19: Artículo 15. Telefonía. | E19: =1-(D19/C19) -> 
A20: Artículo 16 -. Vehículos oficiales.
A21: Artículo 17 -. Adquisición de vehículos y maquinaria.
A22: Artículo 18 -. Fotocopiado, multicopiado e impresión.
A23: Artículo 19 -. Publicidad distrital.
A24: Artículo 20 -. Cajas menores.
A25: Artículo 21 -. Mantenimiento o reparación de bienes inmuebles o muebles.
A26: Artículo 22 -. Suscripciones.
A27: Artículo 23 -. Servicios públicos.

Sheet 0004-01 SAN CRISTOBAL
A1: PLAN DE AUSTERIDAD EN EL GASTO 2025-2027
A2: Entidad
A3: Valores en Pesos Corrientes
A4: CONCEPTO (Decreto 062 de 2024) | B4: Posiciones Presupuestales Asociadas (Funcionamiento e Inversión) | C4: LÍNEA BASE | F4: PLAN DE AUSTERIDAD EN EL GASTO 2025-2027 | K4: SEGUIMIENTO RESULTADOS PLAN DE AUSTERIDAD 2025-2027
F5: ESTRATEGIAS 2025-2027 | G5: ACCIONES 2025-2027 | H5: META INDICADOR DE AUSTERIDAD
C6: AÑO 2023 | D6: AÑO 2024 | K6: AÑO 2025 | M6: AÑO 2026 | O6: AÑO 2027
C7: Valor EJECUTADO a 31/12/2023 | D7: Valor EJECUTADO a 31/12/2024 | E7: Resultado Indicador Austeridad | H7: AÑO 2025 | I7: AÑO 2026 | J7: AÑO 2027 | K7: Valor EJECUTADO a 31/12/2025 | L7: Resultado Indicador Austeridad | M7: Valor EJECUTADO a 31/12/2026 | N7: Resultado Indicador Austeridad | O7: Valor EJECUTADO a 31/12/2027 | P7: Resultado Indicador Austeridad
A8: Servicios de personal
A9: Artículo 6°.- Reducción del gasto en CPS profesionales y de apoyo a la gestión. | B9: N.A. Se registran totales. Corresponde con lo reportado en SIDEAP y SIVICOF | E9: =1-(D9/C9) ->  | L9: =1-(K9/D9) ->  | N9: =1-(M9/K9) ->  | P9: =1-(O9/M9) -> 
A10: Artículo 7°.- Horas extras, dominicales y festivos. | L10: =1-(K10/D10) ->  | N10: =1-(M10/K10) -> 
A11: Artículo 8°.- Viáticos y gastos de viaje.
A12: Artículo 9°.- Compensación por vacaciones.
A13: Artículo 10°.- Bono navideño.
A14: Artículo 11 -. Capacitación.
A15: Artículo 12 -. Bienestar.
A16: Artículo 13 -. Eventos y conmemoraciones.
A17: Artículo 14 -. Fondos educativos.
A18: Servicios Administrativos
A19: Artículo 15. Telefonía. | E19: =1-(D19/C19) -> 
A20: Artículo 16 -. Vehículos oficiales.
A21: Artículo 17 -. Adquisición de vehículos y maquinaria.
A22: Artículo 18 -. Fotocopiado, multicopiado e impresión.
A23: Artículo 19 -. Publicidad distrital.
A24: Artículo 20 -. Cajas menores.
A25: Artículo 21 -. Mantenimiento o reparación de bienes inmuebles o muebles.
A26: Artículo 22 -. Suscripciones.
A27: Artículo 23 -. Servicios públicos.

Sheet 0005-01 USME
A1: PLAN DE AUSTERIDAD EN EL GASTO 2025-2027
A2: Entidad
A3: Valores en Pesos Corrientes
A4: CONCEPTO (Decreto 062 de 2024) | B4: Posiciones Presupuestales Asociadas (Funcionamiento e Inversión) | C4: LÍNEA BASE | F4: PLAN DE AUSTERIDAD EN EL GASTO 2025-2027 | K4: SEGUIMIENTO RESULTADOS PLAN DE AUSTERIDAD 2025-2027
F5: ESTRATEGIAS 2025-2027 | G5: ACCIONES 2025-2027 | H5: META INDICADOR DE AUSTERIDAD
C6: AÑO 2023 | D6: AÑO 2024 | K6: AÑO 2025 | M6: AÑO 2026 | O6: AÑO 2027
C7: Valor EJECUTADO a 31/12/2023 | D7: Valor EJECUTADO a 31/12/2024 | E7: Resultado Indicador Austeridad | H7: AÑO 2025 | I7: AÑO 2026 | J7: AÑO 2027 | K7: Valor EJECUTADO a 31/12/2025 | L7: Resultado Indicador Austeridad | M7: Valor EJECUTADO a 31/12/2026 | N7: Resultado Indicador Austeridad | O7: Valor EJECUTADO a 31/12/2027 | P7: Resultado Indicador Austeridad
A8: Servicios de personal
A9: Artículo 6°.- Reducción del gasto en CPS profesionales y de apoyo a la gestión. | B9: N.A. Se registran totales. Corresponde con lo reportado en SIDEAP y SIVICOF | E9: =1-(D9/C9) ->  | L9: =1-(K9/D9) ->  | N9: =1-(M9/K9) ->  | P9: =1-(O9/M9) -> 
A10: Artículo 7°.- Horas extras, dominicales y festivos. | L10: =1-(K10/D10) ->  | N10: =1-(M10/K10) -> 
A11: Artículo 8°.- Viáticos y gastos de viaje.
A12: Artículo 9°.- Compensación por vacaciones.
A13: Artículo 10°.- Bono navideño.
A14: Artículo 11 -. Capacitación.
A15: Artículo 12 -. Bienestar.
A16: Artículo 13 -. Eventos y conmemoraciones.
A17: Artículo 14 -. Fondos educativos.
A18: Servicios Administrativos
A19: Artículo 15. Telefonía. | E19: =1-(D19/C19) -> 
A20: Artículo 16 -. Vehículos oficiales.
A21: Artículo 17 -. Adquisición de vehículos y maquinaria.
A22: Artículo 18 -. Fotocopiado, multicopiado e impresión.
A23: Artículo 19 -. Publicidad distrital.
A24: Artículo 20 -. Cajas menores.
A25: Artículo 21 -. Mantenimiento o reparación de bienes inmuebles o muebles.
A26: Artículo 22 -. Suscripciones.
A27: Artículo 23 -. Servicios públicos.

Sheet 0006-01 TUNJUELITO
A1: PLAN DE AUSTERIDAD EN EL GASTO 2025-2027
A2: Entidad
A3: Valores en Pesos Corrientes
A4: CONCEPTO (Decreto 062 de 2024) | B4: Posiciones Presupuestales Asociadas (Funcionamiento e Inversión) | C4: LÍNEA BASE | F4: PLAN DE AUSTERIDAD EN EL GASTO 2025-2027 | K4: SEGUIMIENTO RESULTADOS PLAN DE AUSTERIDAD 2025-2027
F5: ESTRATEGIAS 2025-2027 | G5: ACCIONES 2025-2027 | H5: META INDICADOR DE AUSTERIDAD
C6: AÑO 2023 | D6: AÑO 2024 | K6: AÑO 2025 | M6: AÑO 2026 | O6: AÑO 2027
C7: Valor EJECUTADO a 31/12/2023 | D7: Valor EJECUTADO a 31/12/2024 | E7: Resultado Indicador Austeridad | H7: AÑO 2025 | I7: AÑO 2026 | J7: AÑO 2027 | K7: Valor EJECUTADO a 31/12/2025 | L7: Resultado Indicador Austeridad | M7: Valor EJECUTADO a 31/12/2026 | N7: Resultado Indicador Austeridad | O7: Valor EJECUTADO a 31/12/2027 | P7: Resultado Indicador Austeridad
A8: Servicios de personal
A9: Artículo 6°.- Reducción del gasto en CPS profesionales y de apoyo a la gestión. | B9: N.A. Se registran totales. Corresponde con lo reportado en SIDEAP y SIVICOF | E9: =1-(D9/C9) ->  | L9: =1-(K9/D9) ->  | N9: =1-(M9/K9) ->  | P9: =1-(O9/M9) -> 
A10: Artículo 7°.- Horas extras, dominicales y festivos. | L10: =1-(K10/D10) ->  | N10: =1-(M10/K10) -> 
A11: Artículo 8°.- Viáticos y gastos de viaje.
A12: Artículo 9°.- Compensación por vacaciones.
A13: Artículo 10°.- Bono navideño.
A14: Artículo 11 -. Capacitación.
A15: Artículo 12 -. Bienestar.
A16: Artículo 13 -. Eventos y conmemoraciones.
A17: Artículo 14 -. Fondos educativos.
A18: Servicios Administrativos
A19: Artículo 15. Telefonía. | E19: =1-(D19/C19) -> 
A20: Artículo 16 -. Vehículos oficiales.
A21: Artículo 17 -. Adquisición de vehículos y maquinaria.
A22: Artículo 18 -. Fotocopiado, multicopiado e impresión.
A23: Artículo 19 -. Publicidad distrital.
A24: Artículo 20 -. Cajas menores.
A25: Artículo 21 -. Mantenimiento o reparación de bienes inmuebles o muebles.
A26: Artículo 22 -. Suscripciones.
A27: Artículo 23 -. Servicios públicos.

Sheet 0007-01 BOSA
A1: PLAN DE AUSTERIDAD EN EL GASTO 2025-2027
A2: Entidad
A3: Valores en Pesos Corrientes
A4: CONCEPTO (Decreto 062 de 2024) | B4: Posiciones Presupuestales Asociadas (Funcionamiento e Inversión) | C4: LÍNEA BASE | F4: PLAN DE AUSTERIDAD EN EL GASTO 2025-2027 | K4: SEGUIMIENTO RESULTADOS PLAN DE AUSTERIDAD 2025-2027
F5: ESTRATEGIAS 2025-2027 | G5: ACCIONES 2025-2027 | H5: META INDICADOR DE AUSTERIDAD
C6: AÑO 2023 | D6: AÑO 2024 | K6: AÑO 2025 | M6: AÑO 2026 | O6: AÑO 2027
C7: Valor EJECUTADO a 31/12/2023 | D7: Valor EJECUTADO a 31/12/2024 | E7: Resultado Indicador Austeridad | H7: AÑO 2025 | I7: AÑO 2026 | J7: AÑO 2027 | K7: Valor EJECUTADO a 31/12/2025 | L7: Resultado Indicador Austeridad | M7: Valor EJECUTADO a 31/12/2026 | N7: Resultado Indicador Austeridad | O7: Valor EJECUTADO a 31/12/2027 | P7: Resultado Indicador Austeridad
A8: Servicios de personal
A9: Artículo 6°.- Reducción del gasto en CPS profesionales y de apoyo a la gestión. | B9: N.A. Se registran totales. Corresponde con lo reportado en SIDEAP y SIVICOF | E9: =1-(D9/C9) ->  | L9: =1-(K9/D9) ->  | N9: =1-(M9/K9) ->  | P9: =1-(O9/M9) -> 
A10: Artículo 7°.- Horas extras, dominicales y festivos. | L10: =1-(K10/D10) ->  | N10: =1-(M10/K10) -> 
A11: Artículo 8°.- Viáticos y gastos de viaje.
A12: Artículo 9°.- Compensación por vacaciones.
A13: Artículo 10°.- Bono navideño.
A14: Artículo 11 -. Capacitación.
A15: Artículo 12 -. Bienestar.
A16: Artículo 13 -. Eventos y conmemoraciones.
A17: Artículo 14 -. Fondos educativos.
A18: Servicios Administrativos
A19: Artículo 15. Telefonía. | E19: =1-(D19/C19) -> 
A20: Artículo 16 -. Vehículos oficiales.
A21: Artículo 17 -. Adquisición de vehículos y maquinaria.
A22: Artículo 18 -. Fotocopiado, multicopiado e impresión.
A23: Artículo 19 -. Publicidad distrital.
A24: Artículo 20 -. Cajas menores.
A25: Artículo 21 -. Mantenimiento o reparación de bienes inmuebles o muebles.
A26: Artículo 22 -. Suscripciones.
A27: Artículo 23 -. Servicios públicos.

Sheet 0008-01 KENNEDY
A1: PLAN DE AUSTERIDAD EN EL GASTO 2025-2027
A2: Entidad
A3: Valores en Pesos Corrientes
A4: CONCEPTO (Decreto 062 de 2024) | B4: Posiciones Presupuestales Asociadas (Funcionamiento e Inversión) | C4: LÍNEA BASE | F4: PLAN DE AUSTERIDAD EN EL GASTO 2025-2027 | K4: SEGUIMIENTO RESULTADOS PLAN DE AUSTERIDAD 2025-2027
F5: ESTRATEGIAS 2025-2027 | G5: ACCIONES 2025-2027 | H5: META INDICADOR DE AUSTERIDAD
C6: AÑO 2023 | D6: AÑO 2024 | K6: AÑO 2025 | M6: AÑO 2026 | O6: AÑO 2027
C7: Valor EJECUTADO a 31/12/2023 | D7: Valor EJECUTADO a 31/12/2024 | E7: Resultado Indicador Austeridad | H7: AÑO 2025 | I7: AÑO 2026 | J7: AÑO 2027 | K7: Valor EJECUTADO a 31/12/2025 | L7: Resultado Indicador Austeridad | M7: Valor EJECUTADO a 31/12/2026 | N7: Resultado Indicador Austeridad | O7: Valor EJECUTADO a 31/12/2027 | P7: Resultado Indicador Austeridad
A8: Servicios de personal
A9: Artículo 6°.- Reducción del gasto en CPS profesionales y de apoyo a la gestión. | B9: N.A. Se registran totales. Corresponde con lo reportado en SIDEAP y SIVICOF | E9: =1-(D9/C9) ->  | L9: =1-(K9/D9) ->  | N9: =1-(M9/K9) ->  | P9: =1-(O9/M9) -> 
A10: Artículo 7°.- Horas extras, dominicales y festivos. | L10: =1-(K10/D10) ->  | N10: =1-(M10/K10) -> 
A11: Artículo 8°.- Viáticos y gastos de viaje.
A12: Artículo 9°.- Compensación por vacaciones.
A13: Artículo 10°.- Bono navideño.
A14: Artículo 11 -. Capacitación.
A15: Artículo 12 -. Bienestar.
A16: Artículo 13 -. Eventos y conmemoraciones.
A17: Artículo 14 -. Fondos educativos.
A18: Servicios Administrativos
A19: Artículo 15. Telefonía. | E19: =1-(D19/C19) -> 
A20: Artículo 16 -. Vehículos oficiales.
A21: Artículo 17 -. Adquisición de vehículos y maquinaria.
A22: Artículo 18 -. Fotocopiado, multicopiado e impresión.
A23: Artículo 19 -. Publicidad distrital.
A24: Artículo 20 -. Cajas menores.
A25: Artículo 21 -. Mantenimiento o reparación de bienes inmuebles o muebles.
A26: Artículo 22 -. Suscripciones.
A27: Artículo 23 -. Servicios públicos.

Sheet 0009-01 FONTIBON
A1: PLAN DE AUSTERIDAD EN EL GASTO 2025-2027
A2: Entidad
A3: Valores en Pesos Corrientes
A4: CONCEPTO (Decreto 062 de 2024) | B4: Posiciones Presupuestales Asociadas (Funcionamiento e Inversión) | C4: LÍNEA BASE | F4: PLAN DE AUSTERIDAD EN EL GASTO 2025-2027 | K4: SEGUIMIENTO RESULTADOS PLAN DE AUSTERIDAD 2025-2027
F5: ESTRATEGIAS 2025-2027 | G5: ACCIONES 2025-2027 | H5: META INDICADOR DE AUSTERIDAD
C6: AÑO 2023 | D6: AÑO 2024 | K6: AÑO 2025 | M6: AÑO 2026 | O6: AÑO 2027
C7: Valor EJECUTADO a 31/12/2023 | D7: Valor EJECUTADO a 31/12/2024 | E7: Resultado Indicador Austeridad | H7: AÑO 2025 | I7: AÑO 2026 | J7: AÑO 2027 | K7: Valor EJECUTADO a 31/12/2025 | L7: Resultado Indicador Austeridad | M7: Valor EJECUTADO a 31/12/2026 | N7: Resultado Indicador Austeridad | O7: Valor EJECUTADO a 31/12/2027 | P7: Resultado Indicador Austeridad
A8: Servicios de personal
A9: Artículo 6°.- Reducción del gasto en CPS profesionales y de apoyo a la gestión. | B9: N.A. Se registran totales. Corresponde con lo reportado en SIDEAP y SIVICOF | E9: =1-(D9/C9) ->  | L9: =1-(K9/D9) ->  | N9: =1-(M9/K9) ->  | P9: =1-(O9/M9) -> 
A10: Artículo 7°.- Horas extras, dominicales y festivos. | L10: =1-(K10/D10) ->  | N10: =1-(M10/K10) -> 
A11: Artículo 8°.- Viáticos y gastos de viaje.
A12: Artículo 9°.- Compensación por vacaciones.
A13: Artículo 10°.- Bono navideño.
A14: Artículo 11 -. Capacitación.
A15: Artículo 12 -. Bienestar.
A16: Artículo 13 -. Eventos y conmemoraciones.
A17: Artículo 14 -. Fondos educativos.
A18: Servicios Administrativos
A19: Artículo 15. Telefonía. | E19: =1-(D19/C19) -> 
A20: Artículo 16 -. Vehículos oficiales.
A21: Artículo 17 -. Adquisición de vehículos y maquinaria.
A22: Artículo 18 -. Fotocopiado, multicopiado e impresión.
A23: Artículo 19 -. Publicidad distrital.
A24: Artículo 20 -. Cajas menores.
A25: Artículo 21 -. Mantenimiento o reparación de bienes inmuebles o muebles.
A26: Artículo 22 -. Suscripciones.
A27: Artículo 23 -. Servicios públicos.

Sheet 0010-01 ENGATIVA
A1: PLAN DE AUSTERIDAD EN EL GASTO 2025-2027
A2: Entidad
A3: Valores en Pesos Corrientes
A4: CONCEPTO (Decreto 062 de 2024) | B4: Posiciones Presupuestales Asociadas (Funcionamiento e Inversión) | C4: LÍNEA BASE | F4: PLAN DE AUSTERIDAD EN EL GASTO 2025-2027 | K4: SEGUIMIENTO RESULTADOS PLAN DE AUSTERIDAD 2025-2027
F5: ESTRATEGIAS 2025-2027 | G5: ACCIONES 2025-2027 | H5: META INDICADOR DE AUSTERIDAD
C6: AÑO 2023 | D6: AÑO 2024 | K6: AÑO 2025 | M6: AÑO 2026 | O6: AÑO 2027
C7: Valor EJECUTADO a 31/12/2023 | D7: Valor EJECUTADO a 31/12/2024 | E7: Resultado Indicador Austeridad | H7: AÑO 2025 | I7: AÑO 2026 | J7: AÑO 2027 | K7: Valor EJECUTADO a 31/12/2025 | L7: Resultado Indicador Austeridad | M7: Valor EJECUTADO a 31/12/2026 | N7: Resultado Indicador Austeridad | O7: Valor EJECUTADO a 31/12/2027 | P7: Resultado Indicador Austeridad
A8: Servicios de personal
A9: Artículo 6°.- Reducción del gasto en CPS profesionales y de apoyo a la gestión. | B9: N.A. Se registran totales. Corresponde con lo reportado en SIDEAP y SIVICOF | E9: =1-(D9/C9) ->  | L9: =1-(K9/D9) ->  | N9: =1-(M9/K9) ->  | P9: =1-(O9/M9) -> 
A10: Artículo 7°.- Horas extras, dominicales y festivos. | L10: =1-(K10/D10) ->  | N10: =1-(M10/K10) -> 
A11: Artículo 8°.- Viáticos y gastos de viaje.
A12: Artículo 9°.- Compensación por vacaciones.
A13: Artículo 10°.- Bono navideño.
A14: Artículo 11 -. Capacitación.
A15: Artículo 12 -. Bienestar.
A16: Artículo 13 -. Eventos y conmemoraciones.
A17: Artículo 14 -. Fondos educativos.
A18: Servicios Administrativos
A19: Artículo 15. Telefonía. | E19: =1-(D19/C19) -> 
A20: Artículo 16 -. Vehículos oficiales.
A21: Artículo 17 -. Adquisición de vehículos y maquinaria.
A22: Artículo 18 -. Fotocopiado, multicopiado e impresión.
A23: Artículo 19 -. Publicidad distrital.
A24: Artículo 20 -. Cajas menores.
A25: Artículo 21 -. Mantenimiento o reparación de bienes inmuebles o muebles.
A26: Artículo 22 -. Suscripciones.
A27: Artículo 23 -. Servicios públicos.

Sheet 0011-01 SUBA
A1: PLAN DE AUSTERIDAD EN EL GASTO 2025-2027
A2: Entidad
A3: Valores en Pesos Corrientes
A4: CONCEPTO (Decreto 062 de 2024) | B4: Posiciones Presupuestales Asociadas (Funcionamiento e Inversión) | C4: LÍNEA BASE | F4: PLAN DE AUSTERIDAD EN EL GASTO 2025-2027 | K4: SEGUIMIENTO RESULTADOS PLAN DE AUSTERIDAD 2025-2027
F5: ESTRATEGIAS 2025-2027 | G5: ACCIONES 2025-2027 | H5: META INDICADOR DE AUSTERIDAD
C6: AÑO 2023 | D6: AÑO 2024 | K6: AÑO 2025 | M6: AÑO 2026 | O6: AÑO 2027
C7: Valor EJECUTADO a 31/12/2023 | D7: Valor EJECUTADO a 31/12/2024 | E7: Resultado Indicador Austeridad | H7: AÑO 2025 | I7: AÑO 2026 | J7: AÑO 2027 | K7: Valor EJECUTADO a 31/12/2025 | L7: Resultado Indicador Austeridad | M7: Valor EJECUTADO a 31/12/2026 | N7: Resultado Indicador Austeridad | O7: Valor EJECUTADO a 31/12/2027 | P7: Resultado Indicador Austeridad
A8: Servicios de personal
A9: Artículo 6°.- Reducción del gasto en CPS profesionales y de apoyo a la gestión. | B9: N.A. Se registran totales. Corresponde con lo reportado en SIDEAP y SIVICOF | E9: =1-(D9/C9) ->  | L9: =1-(K9/D9) ->  | N9: =1-(M9/K9) ->  | P9: =1-(O9/M9) -> 
A10: Artículo 7°.- Horas extras, dominicales y festivos. | L10: =1-(K10/D10) ->  | N10: =1-(M10/K10) -> 
A11: Artículo 8°.- Viáticos y gastos de viaje.
A12: Artículo 9°.- Compensación por vacaciones.
A13: Artículo 10°.- Bono navideño.
A14: Artículo 11 -. Capacitación.
A15: Artículo 12 -. Bienestar.
A16: Artículo 13 -. Eventos y conmemoraciones.
A17: Artículo 14 -. Fondos educativos.
A18: Servicios Administrativos
A19: Artículo 15. Telefonía. | E19: =1-(D19/C19) -> 
A20: Artículo 16 -. Vehículos oficiales.
A21: Artículo 17 -. Adquisición de vehículos y maquinaria.
A22: Artículo 18 -. Fotocopiado, multicopiado e impresión.
A23: Artículo 19 -. Publicidad distrital.
A24: Artículo 20 -. Cajas menores.
A25: Artículo 21 -. Mantenimiento o reparación de bienes inmuebles o muebles.
A26: Artículo 22 -. Suscripciones.
A27: Artículo 23 -. Servicios públicos.

Sheet 0012-01 BARRIOS UNI
A1: PLAN DE AUSTERIDAD EN EL GASTO 2025-2027
A2: Entidad
A3: Valores en Pesos Corrientes
A4: CONCEPTO (Decreto 062 de 2024) | B4: Posiciones Presupuestales Asociadas (Funcionamiento e Inversión) | C4: LÍNEA BASE | F4: PLAN DE AUSTERIDAD EN EL GASTO 2025-2027 | K4: SEGUIMIENTO RESULTADOS PLAN DE AUSTERIDAD 2025-2027
F5: ESTRATEGIAS 2025-2027 | G5: ACCIONES 2025-2027 | H5: META INDICADOR DE AUSTERIDAD
C6: AÑO 2023 | D6: AÑO 2024 | K6: AÑO 2025 | M6: AÑO 2026 | O6: AÑO 2027
C7: Valor EJECUTADO a 31/12/2023 | D7: Valor EJECUTADO a 31/12/2024 | E7: Resultado Indicador Austeridad | H7: AÑO 2025 | I7: AÑO 2026 | J7: AÑO 2027 | K7: Valor EJECUTADO a 31/12/2025 | L7: Resultado Indicador Austeridad | M7: Valor EJECUTADO a 31/12/2026 | N7: Resultado Indicador Austeridad | O7: Valor EJECUTADO a 31/12/2027 | P7: Resultado Indicador Austeridad
A8: Servicios de personal
A9: Artículo 6°.- Reducción del gasto en CPS profesionales y de apoyo a la gestión. | B9: N.A. Se registran totales. Corresponde con lo reportado en SIDEAP y SIVICOF | E9: =1-(D9/C9) ->  | L9: =1-(K9/D9) ->  | N9: =1-(M9/K9) ->  | P9: =1-(O9/M9) -> 
A10: Artículo 7°.- Horas extras, dominicales y festivos. | L10: =1-(K10/D10) ->  | N10: =1-(M10/K10) -> 
A11: Artículo 8°.- Viáticos y gastos de viaje.
A12: Artículo 9°.- Compensación por vacaciones.
A13: Artículo 10°.- Bono navideño.
A14: Artículo 11 -. Capacitación.
A15: Artículo 12 -. Bienestar.
A16: Artículo 13 -. Eventos y conmemoraciones.
A17: Artículo 14 -. Fondos educativos.
A18: Servicios Administrativos
A19: Artículo 15. Telefonía. | E19: =1-(D19/C19) -> 
A20: Artículo 16 -. Vehículos oficiales.
A21: Artículo 17 -. Adquisición de vehículos y maquinaria.
A22: Artículo 18 -. Fotocopiado, multicopiado e impresión.
A23: Artículo 19 -. Publicidad distrital.
A24: Artículo 20 -. Cajas menores.
A25: Artículo 21 -. Mantenimiento o reparación de bienes inmuebles o muebles.
A26: Artículo 22 -. Suscripciones.
A27: Artículo 23 -. Servicios públicos.

Sheet 0013-01 TEUSAQUILLO
A1: PLAN DE AUSTERIDAD EN EL GASTO 2025-2027
A2: Entidad
A3: Valores en Pesos Corrientes
A4: CONCEPTO (Decreto 062 de 2024) | B4: Posiciones Presupuestales Asociadas (Funcionamiento e Inversión) | C4: LÍNEA BASE | F4: PLAN DE AUSTERIDAD EN EL GASTO 2025-2027 | K4: SEGUIMIENTO RESULTADOS PLAN DE AUSTERIDAD 2025-2027
F5: ESTRATEGIAS 2025-2027 | G5: ACCIONES 2025-2027 | H5: META INDICADOR DE AUSTERIDAD
C6: AÑO 2023 | D6: AÑO 2024 | K6: AÑO 2025 | M6: AÑO 2026 | O6: AÑO 2027
C7: Valor EJECUTADO a 31/12/2023 | D7: Valor EJECUTADO a 31/12/2024 | E7: Resultado Indicador Austeridad | H7: AÑO 2025 | I7: AÑO 2026 | J7: AÑO 2027 | K7: Valor EJECUTADO a 31/12/2025 | L7: Resultado Indicador Austeridad | M7: Valor EJECUTADO a 31/12/2026 | N7: Resultado Indicador Austeridad | O7: Valor EJECUTADO a 31/12/2027 | P7: Resultado Indicador Austeridad
A8: Servicios de personal
A9: Artículo 6°.- Reducción del gasto en CPS profesionales y de apoyo a la gestión. | B9: N.A. Se registran totales. Corresponde con lo reportado en SIDEAP y SIVICOF | E9: =1-(D9/C9) ->  | L9: =1-(K9/D9) ->  | N9: =1-(M9/K9) ->  | P9: =1-(O9/M9) -> 
A10: Artículo 7°.- Horas extras, dominicales y festivos. | L10: =1-(K10/D10) ->  | N10: =1-(M10/K10) -> 
A11: Artículo 8°.- Viáticos y gastos de viaje.
A12: Artículo 9°.- Compensación por vacaciones.
A13: Artículo 10°.- Bono navideño.
A14: Artículo 11 -. Capacitación.
A15: Artículo 12 -. Bienestar.
A16: Artículo 13 -. Eventos y conmemoraciones.
A17: Artículo 14 -. Fondos educativos.
A18: Servicios Administrativos
A19: Artículo 15. Telefonía. | E19: =1-(D19/C19) -> 
A20: Artículo 16 -. Vehículos oficiales.
A21: Artículo 17 -. Adquisición de vehículos y maquinaria.
A22: Artículo 18 -. Fotocopiado, multicopiado e impresión.
A23: Artículo 19 -. Publicidad distrital.
A24: Artículo 20 -. Cajas menores.
A25: Artículo 21 -. Mantenimiento o reparación de bienes inmuebles o muebles.
A26: Artículo 22 -. Suscripciones.
A27: Artículo 23 -. Servicios públicos.

Sheet 0014-01 MARTIRES
A1: PLAN DE AUSTERIDAD EN EL GASTO 2025-2027
A2: Entidad | B2: Alcaldia Local de Los Martires
A3: Valores en Pesos Corrientes
A4: CONCEPTO (Decreto 062 de 2024) | B4: Posiciones Presupuestales Asociadas (Funcionamiento e Inversión) | C4: LÍNEA BASE | F4: PLAN DE AUSTERIDAD EN EL GASTO 2025-2027 | K4: SEGUIMIENTO RESULTADOS PLAN DE AUSTERIDAD 2025-2027
F5: ESTRATEGIAS 2025-2027 | G5: ACCIONES 2025-2027 | H5: META INDICADOR DE AUSTERIDAD
C6: AÑO 2023 | D6: AÑO 2024 | K6: AÑO 2025 | M6: AÑO 2026 | O6: AÑO 2027
C7: Valor EJECUTADO a 31/12/2023 | D7: Valor EJECUTADO a 31/12/2024 | E7: Resultado Indicador Austeridad | H7: AÑO 2025 | I7: AÑO 2026 | J7: AÑO 2027 | K7: Valor EJECUTADO a 31/12/2025 | L7: Resultado Indicador Austeridad | M7: Valor EJECUTADO a 31/12/2026 | N7: Resultado Indicador Austeridad | O7: Valor EJECUTADO a 31/12/2027 | P7: Resultado Indicador Austeridad
A8: Servicios de personal
A9: Artículo 6°.- Reducción del gasto en CPS profesionales y de apoyo a la gestión. | B9: N.A. Se registran totales. Corresponde con lo reportado en SIDEAP y SIVICOF | E9: =1-(D9/C9) ->  | L9: =1-(K9/D9) ->  | N9: =1-(M9/K9) ->  | P9: =1-(O9/M9) -> 
A10: Artículo 7°.- Horas extras, dominicales y festivos. | L10: =1-(K10/D10) ->  | N10: =1-(M10/K10) -> 
A11: Artículo 8°.- Viáticos y gastos de viaje.
A12: Artículo 9°.- Compensación por vacaciones.
A13: Artículo 10°.- Bono navideño.
A14: Artículo 11 -. Capacitación.
A15: Artículo 12 -. Bienestar.
A16: Artículo 13 -. Eventos y conmemoraciones.
A17: Artículo 14 -. Fondos educativos.
A18: Servicios Administrativos
A19: Artículo 15. Telefonía. | B19: 2, funcionamiento | C19: 29844011 | D19: 21744010 | E19: =1-(D19/C19) -> 0.2714112724 | F19: Generar una reduccion en la facturacion de las cuentas contrato asociadas al funcionamiento y comunicacion de la ALM. asimismo se indica que la ALM no adquiere ni adquirirá telefonos celulares ni planes para sus funcionarios. | G19: Se plantea un cambio de operador, de ETB a Claro o movistar, que ofrezca una reducción en la facturación mensual para así lograr la reducción planteada en la meta del 1%. Y dar continuidad a la tendencia de ahorro de los últimos tres años en este rubro. | L19: 1
A20: Artículo 16 -. Vehículos oficiales.
A21: Artículo 17 -. Adquisición de vehículos y maquinaria.
A22: Artículo 18 -. Fotocopiado, multicopiado e impresión. | B22: 1, funcionamiento | C22: 7282800 | D22: 0 | E22: 1 | F22: Generar una reduccion total en el uso de papel impreso y llegar a una aplicacion completa de papel cero en la ALM a traves de cambio de cultura y la concienciacion de todo el personal a traves de campañas activas permanentes y sensibilizaciones | G22: Para este rubro siendo de funcionamiento e involucrándose directamente con el consumo de papel por áreas, se continuarán implementando las políticas de papel cero, se continuarán dando las campañas permanentes, las socializaciones, memorandos y demás comunicados, piezas gráficas y correos masivos que permitan la reducción del consumo del recurso, así como optimizar los procesos para lograr tal fin. Asimismo, se continuará dando una entrega restrictiva a lo mínimo necesario para cada área a fin de generar la reducción en los giros presupuestales del rubro.
A23: Artículo 19 -. Publicidad distrital.
A24: Artículo 20 -. Cajas menores.
A25: Artículo 21 -. Mantenimiento o reparación de bienes inmuebles o muebles.
A26: Artículo 22 -. Suscripciones.
A27: Artículo 23 -. Servicios públicos. | B27: 3, funcionamiento | C27: 16256110 | D27: 20166720 | E27: -0.2405624716 | F27: implementar una reduccion progresiva en el consumo de los recursos naturales priorizando el mantenimiento preventivo de las instalaciones hidraulicas, asi como permeando en un cambio de conciencia a traves de campañas y sensibilizaciones a los colaboradores de la ALM | G27: Generar un mantenimiento preventivo en lugar de correctivo a las instalaciones de las sedes concertadas a fin de evitar las pérdidas del recurso hídrico la cual fue la razón del incremento de la facturación en el 2024, aunado a esto, el incremento de campañas activas, de comunicados, socializaciones, capacitaciones, correos masivos, piezas gráficas y demás que permitan continuar con la disminución de los giros presupuestales y consumos del rubro que se venían llevando a cabo durante el cuatrienio anterior y llegar a la reducción meta del 1%. | L27: 1

Sheet 0015-01 A. NARIÑO
A1: PLAN DE AUSTERIDAD EN EL GASTO 2025-2027
A2: Entidad
A3: Valores en Pesos Corrientes
A4: CONCEPTO (Decreto 062 de 2024) | B4: Posiciones Presupuestales Asociadas (Funcionamiento e Inversión) | C4: LÍNEA BASE | F4: PLAN DE AUSTERIDAD EN EL GASTO 2025-2027 | K4: SEGUIMIENTO RESULTADOS PLAN DE AUSTERIDAD 2025-2027
F5: ESTRATEGIAS 2025-2027 | G5: ACCIONES 2025-2027 | H5: META INDICADOR DE AUSTERIDAD
C6: AÑO 2023 | D6: AÑO 2024 | K6: AÑO 2025 | M6: AÑO 2026 | O6: AÑO 2027
C7: Valor EJECUTADO a 31/12/2023 | D7: Valor EJECUTADO a 31/12/2024 | E7: Resultado Indicador Austeridad | H7: AÑO 2025 | I7: AÑO 2026 | J7: AÑO 2027 | K7: Valor EJECUTADO a 31/12/2025 | L7: Resultado Indicador Austeridad | M7: Valor EJECUTADO a 31/12/2026 | N7: Resultado Indicador Austeridad | O7: Valor EJECUTADO a 31/12/2027 | P7: Resultado Indicador Austeridad
A8: Servicios de personal
A9: Artículo 6°.- Reducción del gasto en CPS profesionales y de apoyo a la gestión. | B9: N.A. Se registran totales. Corresponde con lo reportado en SIDEAP y SIVICOF | E9: =1-(D9/C9) ->  | L9: =1-(K9/D9) ->  | N9: =1-(M9/K9) ->  | P9: =1-(O9/M9) -> 
A10: Artículo 7°.- Horas extras, dominicales y festivos. | L10: =1-(K10/D10) ->  | N10: =1-(M10/K10) -> 
A11: Artículo 8°.- Viáticos y gastos de viaje.
A12: Artículo 9°.- Compensación por vacaciones.
A13: Artículo 10°.- Bono navideño.
A14: Artículo 11 -. Capacitación.
A15: Artículo 12 -. Bienestar.
A16: Artículo 13 -. Eventos y conmemoraciones.
A17: Artículo 14 -. Fondos educativos.
A18: Servicios Administrativos
A19: Artículo 15. Telefonía. | E19: =1-(D19/C19) -> 
A20: Artículo 16 -. Vehículos oficiales.
A21: Artículo 17 -. Adquisición de vehículos y maquinaria.
A22: Artículo 18 -. Fotocopiado, multicopiado e impresión.
A23: Artículo 19 -. Publicidad distrital.
A24: Artículo 20 -. Cajas menores.
A25: Artículo 21 -. Mantenimiento o reparación de bienes inmuebles o muebles.
A26: Artículo 22 -. Suscripciones.
A27: Artículo 23 -. Servicios públicos.

Sheet 0016-01 P. ARANDA
A1: PLAN DE AUSTERIDAD EN EL GASTO 2025-2027
A2: Entidad
A3: Valores en Pesos Corrientes
A4: CONCEPTO (Decreto 062 de 2024) | B4: Posiciones Presupuestales Asociadas (Funcionamiento e Inversión) | C4: LÍNEA BASE | F4: PLAN DE AUSTERIDAD EN EL GASTO 2025-2027 | K4: SEGUIMIENTO RESULTADOS PLAN DE AUSTERIDAD 2025-2027
F5: ESTRATEGIAS 2025-2027 | G5: ACCIONES 2025-2027 | H5: META INDICADOR DE AUSTERIDAD
C6: AÑO 2023 | D6: AÑO 2024 | K6: AÑO 2025 | M6: AÑO 2026 | O6: AÑO 2027
C7: Valor EJECUTADO a 31/12/2023 | D7: Valor EJECUTADO a 31/12/2024 | E7: Resultado Indicador Austeridad | H7: AÑO 2025 | I7: AÑO 2026 | J7: AÑO 2027 | K7: Valor EJECUTADO a 31/12/2025 | L7: Resultado Indicador Austeridad | M7: Valor EJECUTADO a 31/12/2026 | N7: Resultado Indicador Austeridad | O7: Valor EJECUTADO a 31/12/2027 | P7: Resultado Indicador Austeridad
A8: Servicios de personal
A9: Artículo 6°.- Reducción del gasto en CPS profesionales y de apoyo a la gestión. | B9: N.A. Se registran totales. Corresponde con lo reportado en SIDEAP y SIVICOF | E9: =1-(D9/C9) ->  | L9: =1-(K9/D9) ->  | N9: =1-(M9/K9) ->  | P9: =1-(O9/M9) -> 
A10: Artículo 7°.- Horas extras, dominicales y festivos. | L10: =1-(K10/D10) ->  | N10: =1-(M10/K10) -> 
A11: Artículo 8°.- Viáticos y gastos de viaje.
A12: Artículo 9°.- Compensación por vacaciones.
A13: Artículo 10°.- Bono navideño.
A14: Artículo 11 -. Capacitación.
A15: Artículo 12 -. Bienestar.
A16: Artículo 13 -. Eventos y conmemoraciones.
A17: Artículo 14 -. Fondos educativos.
A18: Servicios Administrativos
A19: Artículo 15. Telefonía. | E19: =1-(D19/C19) -> 
A20: Artículo 16 -. Vehículos oficiales.
A21: Artículo 17 -. Adquisición de vehículos y maquinaria.
A22: Artículo 18 -. Fotocopiado, multicopiado e impresión.
A23: Artículo 19 -. Publicidad distrital.
A24: Artículo 20 -. Cajas menores.
A25: Artículo 21 -. Mantenimiento o reparación de bienes inmuebles o muebles.
A26: Artículo 22 -. Suscripciones.
A27: Artículo 23 -. Servicios públicos.

Sheet 0017-01 CANDELARIA
A1: PLAN DE AUSTERIDAD EN EL GASTO 2025-2027
A2: Entidad
A3: Valores en Pesos Corrientes
A4: CONCEPTO (Decreto 062 de 2024) | B4: Posiciones Presupuestales Asociadas (Funcionamiento e Inversión) | C4: LÍNEA BASE | F4: PLAN DE AUSTERIDAD EN EL GASTO 2025-2027 | K4: SEGUIMIENTO RESULTADOS PLAN DE AUSTERIDAD 2025-2027
F5: ESTRATEGIAS 2025-2027 | G5: ACCIONES 2025-2027 | H5: META INDICADOR DE AUSTERIDAD
C6: AÑO 2023 | D6: AÑO 2024 | K6: AÑO 2025 | M6: AÑO 2026 | O6: AÑO 2027
C7: Valor EJECUTADO a 31/12/2023 | D7: Valor EJECUTADO a 31/12/2024 | E7: Resultado Indicador Austeridad | H7: AÑO 2025 | I7: AÑO 2026 | J7: AÑO 2027 | K7: Valor EJECUTADO a 31/12/2025 | L7: Resultado Indicador Austeridad | M7: Valor EJECUTADO a 31/12/2026 | N7: Resultado Indicador Austeridad | O7: Valor EJECUTADO a 31/12/2027 | P7: Resultado Indicador Austeridad
A8: Servicios de personal
A9: Artículo 6°.- Reducción del gasto en CPS profesionales y de apoyo a la gestión. | B9: N.A. Se registran totales. Corresponde con lo reportado en SIDEAP y SIVICOF | E9: =1-(D9/C9) ->  | L9: =1-(K9/D9) ->  | N9: =1-(M9/K9) ->  | P9: =1-(O9/M9) -> 
A10: Artículo 7°.- Horas extras, dominicales y festivos. | L10: =1-(K10/D10) ->  | N10: =1-(M10/K10) -> 
A11: Artículo 8°.- Viáticos y gastos de viaje.
A12: Artículo 9°.- Compensación por vacaciones.
A13: Artículo 10°.- Bono navideño.
A14: Artículo 11 -. Capacitación.
A15: Artículo 12 -. Bienestar.
A16: Artículo 13 -. Eventos y conmemoraciones.
A17: Artículo 14 -. Fondos educativos.
A18: Servicios Administrativos
A19: Artículo 15. Telefonía. | E19: =1-(D19/C19) -> 
A20: Artículo 16 -. Vehículos oficiales.
A21: Artículo 17 -. Adquisición de vehículos y maquinaria.
A22: Artículo 18 -. Fotocopiado, multicopiado e impresión.
A23: Artículo 19 -. Publicidad distrital.
A24: Artículo 20 -. Cajas menores.
A25: Artículo 21 -. Mantenimiento o reparación de bienes inmuebles o muebles.
A26: Artículo 22 -. Suscripciones.
A27: Artículo 23 -. Servicios públicos.

Sheet 0018-01 R. URIBE
A1: PLAN DE AUSTERIDAD EN EL GASTO 2025-2027
A2: Entidad
A3: Valores en Pesos Corrientes
A4: CONCEPTO (Decreto 062 de 2024) | B4: Posiciones Presupuestales Asociadas (Funcionamiento e Inversión) | C4: LÍNEA BASE | F4: PLAN DE AUSTERIDAD EN EL GASTO 2025-2027 | K4: SEGUIMIENTO RESULTADOS PLAN DE AUSTERIDAD 2025-2027
F5: ESTRATEGIAS 2025-2027 | G5: ACCIONES 2025-2027 | H5: META INDICADOR DE AUSTERIDAD
C6: AÑO 2023 | D6: AÑO 2024 | K6: AÑO 2025 | M6: AÑO 2026 | O6: AÑO 2027
C7: Valor EJECUTADO a 31/12/2023 | D7: Valor EJECUTADO a 31/12/2024 | E7: Resultado Indicador Austeridad | H7: AÑO 2025 | I7: AÑO 2026 | J7: AÑO 2027 | K7: Valor EJECUTADO a 31/12/2025 | L7: Resultado Indicador Austeridad | M7: Valor EJECUTADO a 31/12/2026 | N7: Resultado Indicador Austeridad | O7: Valor EJECUTADO a 31/12/2027 | P7: Resultado Indicador Austeridad
A8: Servicios de personal
A9: Artículo 6°.- Reducción del gasto en CPS profesionales y de apoyo a la gestión. | B9: N.A. Se registran totales. Corresponde con lo reportado en SIDEAP y SIVICOF | E9: =1-(D9/C9) ->  | L9: =1-(K9/D9) ->  | N9: =1-(M9/K9) ->  | P9: =1-(O9/M9) -> 
A10: Artículo 7°.- Horas extras, dominicales y festivos. | L10: =1-(K10/D10) ->  | N10: =1-(M10/K10) -> 
A11: Artículo 8°.- Viáticos y gastos de viaje.
A12: Artículo 9°.- Compensación por vacaciones.
A13: Artículo 10°.- Bono navideño.
A14: Artículo 11 -. Capacitación.
A15: Artículo 12 -. Bienestar.
A16: Artículo 13 -. Eventos y conmemoraciones.
A17: Artículo 14 -. Fondos educativos.
A18: Servicios Administrativos
A19: Artículo 15. Telefonía. | E19: =1-(D19/C19) -> 
A20: Artículo 16 -. Vehículos oficiales.
A21: Artículo 17 -. Adquisición de vehículos y maquinaria.
A22: Artículo 18 -. Fotocopiado, multicopiado e impresión.
A23: Artículo 19 -. Publicidad distrital.
A24: Artículo 20 -. Cajas menores.
A25: Artículo 21 -. Mantenimiento o reparación de bienes inmuebles o muebles.
A26: Artículo 22 -. Suscripciones.
A27: Artículo 23 -. Servicios públicos.

Sheet 0019-01 C. BOLIVAR
A1: PLAN DE AUSTERIDAD EN EL GASTO 2025-2027
A2: Entidad
A3: Valores en Pesos Corrientes
A4: CONCEPTO (Decreto 062 de 2024) | B4: Posiciones Presupuestales Asociadas (Funcionamiento e Inversión) | C4: LÍNEA BASE | F4: PLAN DE AUSTERIDAD EN EL GASTO 2025-2027 | K4: SEGUIMIENTO RESULTADOS PLAN DE AUSTERIDAD 2025-2027
F5: ESTRATEGIAS 2025-2027 | G5: ACCIONES 2025-2027 | H5: META INDICADOR DE AUSTERIDAD
C6: AÑO 2023 | D6: AÑO 2024 | K6: AÑO 2025 | M6: AÑO 2026 | O6: AÑO 2027
C7: Valor EJECUTADO a 31/12/2023 | D7: Valor EJECUTADO a 31/12/2024 | E7: Resultado Indicador Austeridad | H7: AÑO 2025 | I7: AÑO 2026 | J7: AÑO 2027 | K7: Valor EJECUTADO a 31/12/2025 | L7: Resultado Indicador Austeridad | M7: Valor EJECUTADO a 31/12/2026 | N7: Resultado Indicador Austeridad | O7: Valor EJECUTADO a 31/12/2027 | P7: Resultado Indicador Austeridad
A8: Servicios de personal
A9: Artículo 6°.- Reducción del gasto en CPS profesionales y de apoyo a la gestión. | B9: N.A. Se registran totales. Corresponde con lo reportado en SIDEAP y SIVICOF | E9: =1-(D9/C9) ->  | L9: =1-(K9/D9) ->  | N9: =1-(M9/K9) ->  | P9: =1-(O9/M9) -> 
A10: Artículo 7°.- Horas extras, dominicales y festivos. | L10: =1-(K10/D10) ->  | N10: =1-(M10/K10) -> 
A11: Artículo 8°.- Viáticos y gastos de viaje.
A12: Artículo 9°.- Compensación por vacaciones.
A13: Artículo 10°.- Bono navideño.
A14: Artículo 11 -. Capacitación.
A15: Artículo 12 -. Bienestar.
A16: Artículo 13 -. Eventos y conmemoraciones.
A17: Artículo 14 -. Fondos educativos.
A18: Servicios Administrativos
A19: Artículo 15. Telefonía. | E19: =1-(D19/C19) -> 
A20: Artículo 16 -. Vehículos oficiales.
A21: Artículo 17 -. Adquisición de vehículos y maquinaria.
A22: Artículo 18 -. Fotocopiado, multicopiado e impresión.
A23: Artículo 19 -. Publicidad distrital.
A24: Artículo 20 -. Cajas menores.
A25: Artículo 21 -. Mantenimiento o reparación de bienes inmuebles o muebles.
A26: Artículo 22 -. Suscripciones.
A27: Artículo 23 -. Servicios públicos.

Sheet 0020-01 SUMAPAZ
A1: PLAN DE AUSTERIDAD EN EL GASTO 2025-2027
A2: Entidad
A3: Valores en Pesos Corrientes
A4: CONCEPTO (Decreto 062 de 2024) | B4: Posiciones Presupuestales Asociadas (Funcionamiento e Inversión) | C4: LÍNEA BASE | F4: PLAN DE AUSTERIDAD EN EL GASTO 2025-2027 | K4: SEGUIMIENTO RESULTADOS PLAN DE AUSTERIDAD 2025-2027
F5: ESTRATEGIAS 2025-2027 | G5: ACCIONES 2025-2027 | H5: META INDICADOR DE AUSTERIDAD
C6: AÑO 2023 | D6: AÑO 2024 | K6: AÑO 2025 | M6: AÑO 2026 | O6: AÑO 2027
C7: Valor EJECUTADO a 31/12/2023 | D7: Valor EJECUTADO a 31/12/2024 | E7: Resultado Indicador Austeridad | H7: AÑO 2025 | I7: AÑO 2026 | J7: AÑO 2027 | K7: Valor EJECUTADO a 31/12/2025 | L7: Resultado Indicador Austeridad | M7: Valor EJECUTADO a 31/12/2026 | N7: Resultado Indicador Austeridad | O7: Valor EJECUTADO a 31/12/2027 | P7: Resultado Indicador Austeridad
A8: Servicios de personal
A9: Artículo 6°.- Reducción del gasto en CPS profesionales y de apoyo a la gestión. | B9: N.A. Se registran totales. Corresponde con lo reportado en SIDEAP y SIVICOF | E9: =1-(D9/C9) ->  | L9: =1-(K9/D9) ->  | N9: =1-(M9/K9) ->  | P9: =1-(O9/M9) -> 
A10: Artículo 7°.- Horas extras, dominicales y festivos. | L10: =1-(K10/D10) ->  | N10: =1-(M10/K10) -> 
A11: Artículo 8°.- Viáticos y gastos de viaje.
A12: Artículo 9°.- Compensación por vacaciones.
A13: Artículo 10°.- Bono navideño.
A14: Artículo 11 -. Capacitación.
A15: Artículo 12 -. Bienestar.
A16: Artículo 13 -. Eventos y conmemoraciones.
A17: Artículo 14 -. Fondos educativos.
A18: Servicios Administrativos
A19: Artículo 15. Telefonía. | E19: =1-(D19/C19) -> 
A20: Artículo 16 -. Vehículos oficiales.
A21: Artículo 17 -. Adquisición de vehículos y maquinaria.
A22: Artículo 18 -. Fotocopiado, multicopiado e impresión.
A23: Artículo 19 -. Publicidad distrital.
A24: Artículo 20 -. Cajas menores.
A25: Artículo 21 -. Mantenimiento o reparación de bienes inmuebles o muebles.
A26: Artículo 22 -. Suscripciones.
A27: Artículo 23 -. Servicios públicos.

Sheet 0100-01 CONCEJO
A1: PLAN DE AUSTERIDAD EN EL GASTO 2025-2027
A2: Entidad
A3: Valores en Pesos Corrientes
A4: CONCEPTO (Decreto 062 de 2024) | B4: Posiciones Presupuestales Asociadas (Funcionamiento e Inversión) | C4: LÍNEA BASE | F4: PLAN DE AUSTERIDAD EN EL GASTO 2025-2027 | K4: SEGUIMIENTO RESULTADOS PLAN DE AUSTERIDAD 2025-2027
F5: ESTRATEGIAS 2025-2027 | G5: ACCIONES 2025-2027 | H5: META INDICADOR DE AUSTERIDAD
C6: AÑO 2023 | D6: AÑO 2024 | K6: AÑO 2025 | M6: AÑO 2026 | O6: AÑO 2027
C7: Valor EJECUTADO a 31/12/2023 | D7: Valor EJECUTADO a 31/12/2024 | E7: Resultado Indicador Austeridad | H7: AÑO 2025 | I7: AÑO 2026 | J7: AÑO 2027 | K7: Valor EJECUTADO a 31/12/2025 | L7: Resultado Indicador Austeridad | M7: Valor EJECUTADO a 31/12/2026 | N7: Resultado Indicador Austeridad | O7: Valor EJECUTADO a 31/12/2027 | P7: Resultado Indicador Austeridad
A8: Servicios de personal
A9: Artículo 6°.- Reducción del gasto en CPS profesionales y de apoyo a la gestión. | B9: N.A. Se registran totales. Corresponde con lo reportado en SIDEAP y SIVICOF | C9: 25973933571 | D9: 22967979900 | E9: =1-(D9/C9) -> 0.115729628 | F9: Uso eficiente de los cupos de contratación definidos | G9: 1. Resétar los topes definidos para contratación de OPS - 2. Contrtara con personas jurídicas los servicios permanentes - 3. Colocar las responsabilidades estrategicas de algunas áreas en personal de planta y dimisnuir la dependencia de OPS. | H9: 0 | I9: 0.01 | J9: 0.01 | L9: =1-(K9/D9) -> 1 | N9: =1-(M9/K9) ->  | P9: =1-(O9/M9) -> 
A10: Artículo 7°.- Horas extras, dominicales y festivos. | B10: O211010100102 Horas extras, dominicales, festivos y recargos | C10: 189750198 | D10: 301572969 | E10: -0.5893157013 | F10: Racionalización de consumo y autorización de horas extras, | G10: 1. La autorización de horas extras en las entidades y organismos distritales sólo se hará efectiva cuando sea estrictamente necesario para atender asuntos del servicio reales e imprescindibles y en ningún caso de carácter permanente. | H10: 0 | I10: 0 | J10: 0 | L10: =1-(K10/D10) -> 1 | N10: =1-(M10/K10) -> 
A11: Artículo 8°.- Viáticos y gastos de viaje. | B11: O2120202010 Viáticos de los funcionarios en comisión | C11: 27476997 | D11: 4328115 | E11: 0.8424822407 | F11: Racionalización en la autorización de viáticos y gastos de viaje | G11: 1. Incentivar la comunicación derivada de eventos mediante el uso de herramientas informáticas y diminución de desplazamientos . | H11: 0 | I11: 0 | J11: 0 | L11: 1
A12: Artículo 9°.- Compensación por vacaciones. | B12: O211020300102 Indemnización por vacaciones | C12: 1375203331 | D12: 2081302319 | E12: -0.5134506091 | F12: Control de vacaciones anual y no capitalización de periodos sin disfrute de las mismas. | G12: 1. Adoptar medidas para que los servidores disfruten sus periodos de vacaciones al siguiente año de cumplirlas y así evitar que al momento del retiro el servidor tenga periodos acumulados | H12: 0 | I12: 0 | J12: 0 | L12: 1
A13: Artículo 10°.- Bono navideño. | B13: O21202020090696511 Servicios de promoción de eventos deportivos y recreativos | C13: 104275000 | D13: 122000000 | E13: -0.1699832175 | F13: Negociación conjunta | G13: 1. Adelantar proceso de negocIación conjunta para lograr eficiencia de costos. | H13: 0 | I13: 0 | J13: 0 | L13: 1
A14: Artículo 11 -. Capacitación. | B14: O21202020090292913 Servicios de educación para la formación y el trab | C14: 226659605 | D14: 350785500 | E14: -0.5476313038 | F14: Contratación con entidades educatrivas públicas | G14: 1. búsqueda de capacitaciones gratuitas ofrecidas por entidades gubernamentales. | H14: 0 | I14: 0 | J14: 0 | L14: 1
A15: Artículo 12 -. Bienestar. | B15: O21202020090696511 Servicios de promoción de eventos deportivos y recreativos | C15: 1131413552 | D15: =1798852091-122000000 -> 1676852091 | E15: -0.4820859164 | F15: Contro efectivo de las actividades de bienestar autorizadas y realizar procesos de selección para operadores. | G15: 1. se confirma la asistencia a las actividades y seleccionando servicios más económicos a los cotizados inicialmente sin sacrificar la calidad. 2. Adherencia a la invitación de las actividades que realiza el Departamento Administrativo del Servicio Civil- DASC que permite que se amplie la oferta de eventos sin incrementar el costo ni hacer uso de los recursos de la entidad. | H15: 0 | I15: 0 | J15: 0 | L15: 1
A16: Artículo 13 -. Eventos y conmemoraciones. | B16: NA | C16: 0 | D16: 0
A17: Artículo 14 -. Fondos educativos. | B17: NA | C17: 0 | D17: 0
A18: Servicios Administrativos
A19: Artículo 15. Telefonía. | B19: O21202020080484131 Servicios móviles de voz | C19: 32649063 | D19: 8552360 | E19: =1-(D19/C19) -> 0.7380519006 | F19: Contro efectivo de consumo de planes y verificación del uso racional y finalidad del mismo. | G19: 1. Verificación al consumo de voz y datos de cada línea activa. 2. Validación de uso conforme a los lineamientos autorizados en los puntos para atención a contribuyentes. 3, Únicamente contar con disposición en los Supercade y en los diferentes canales de difusión de la Secretaría Distrital de Hacienda las líneas móviles para atención a los contribuyentes. | H19: 0.01 | I19: 0.01 | J19: 0 | L19: 1
A20: Artículo 16 -. Vehículos oficiales. | B20: O2120201003033331101 Gasolina motor corriente | C20: 56837145 | D20: 54600463 | E20: 0.03935246923 | F20: Control efectivo del conusmo de combustible parque automor. | G20: 1 asignación de un cupo máximo de consumo mensual de galones, con seguimiento a través del chip instalado en cada vehículo y con este se registran los datos de tanqueo en la EDS - 2. De otra parte, se garantiza desde el proceso de contratación que la medida del suministro de combustible sea exacta, requiriendo al contratista contar el registro vigente en el SICOM Indicador de austeridad. 3. Control al sistema de ratsreo satelital de los vehículos. | H20: 0 | I20: 0 | J20: 0 | L20: 1
A21: Artículo 17 -. Adquisición de vehículos y maquinaria. | B21: NA | C21: 0 | D21: 0
A22: Artículo 18 -. Fotocopiado, multicopiado e impresión. | B22: O21202020080585951 Servicios de copia y reproducción - | C22: 108148743 | D22: 125309277 | E22: -0.1586752978 | F22: Estrategia de cero papel | G22: Utilizar el papel por ambas caras para las impresiones. - Reutilizar el papel (limpio por una cara) para imprimir. - Evitar la impresión de correos electrónicos y utilizar la creación de carpetas electrónicas para su archivo. - Utilizar permanentemente el correo electrónico como medio de envío de documentos en borrador o preliminares para su revisión. - Digitalizar los documentos generados por la gestión de la Entidad. | H22: 0.01 | I22: 0.01 | J22: 0.01 | L22: 1
A23: Artículo 19 -. Publicidad distrital. | B23: O21202020080383619 Otros servicios de publicidad | C23: 1336344577 | D23: 917890657 | E23: 0.3131332496 | F23: Control de la demanda de servicios contratos de edictos. | G23: Se continuará con el control a la publicación de información y edictos en periodicos de amplia circulación remitidos por las áreas misionales mediante la supervisión del contratro de edictos | H23: 0.01 | I23: 0 | J23: 0 | L23: 1
A24: Artículo 20 -. Cajas menores. | B24: Varios Rubros | C24: 130475387 | D24: 28259291 | E24: 0.7834128593 | F24: Optimización en la gestión de gastos incluidos en lña caja menor. | G24: Se excluiran gastos como impuestos y demás gastos que cuenten con contrato de los rubros de constitución de caja menor - se definirá linea de gasto directo para el pago de honorarios de secuestres | H24: 0.01 | I24: 0 | J24: 0 | L24: 1
A25: Artículo 21 -. Mantenimiento o reparación de bienes inmuebles o muebles. | B25: O2120202005 Servicios de instalación O212020200807 Servicios de Mantenimiento | C25: 2112060877 | D25: 2397736037 | E25: -0.1352589611 | F25: Gestón eficiente del plan de mantenimiento de la entidad, focalizados en lo preventivo. | G25: Se ejecutara el Plan de Mantenimiento preventivo de acuerdo con lo establecido por la Entidad - Se atenderán las solicitudes de mantenimiento creadas por lo funcionarios canalizadas por la mesa de servicios . | H25: 0 | I25: 0 | J25: 0 | L25: 1
A26: Artículo 22 -. Suscripciones. | B26: O2120201003023230001 Periódicos impresos publicados cuatro o más veces por semana | C26: 1928700 | D26: 2111700 | E26: -0.09488256338 | F26: Contratación mínima escencial de suscripciones | G26: Se continuara con la contratación de lo estrictamente requerido por la entidad y se incentivará la consulta de información en portales de internet. | H26: 0 | I26: 0 | J26: 0 | L26: 1
A27: Artículo 23 -. Servicios públicos. | B27: O21202020080484120 Servicios de telefonía fija (acceso) O21202020080686312 Servicios de distribución de electricidad (a comis O21202020090494110 Servicios de alcantarillado y tratamiento de aguas O21202020090494239 Servicios generales de recolección de otros desech | C27: 2468984039 | D27: 2598772103 | E27: -0.05256739693 | F27: Control de consumo y corrección de fugas por cada uno de los servicios públicos. | G27: 1. A través del contrato de mantenimiento se realizarán revisiones preventivas que garantizan que opere eficazmente el sistema eléctrico. -2. Se continura con la dimerización en los pisos (dimmer o atenuador de luz es un sensor que sirve para regular la intensidad de la luz o la luminosidad de acuerdo con la luz natural existente en el lugar). 3. Las carteleras virtuales se mantendrán apagadas en horarios no hábiles 4. Los equipos de impresión se mantenderán en ahorro de energia. 5. Se revisaran preventivamente los puntos hidráulicos de las sedes para distribuir la cantidad de agua necesaria y evitar desperdicios y sobrepresiones. 6. Se continuara con el mantenimiento de redes de recolección de aguas lluvias, mejorando el sistema de bombeo de las aguas lluvias 7. Se realizara la instalación de medidores de agua para independizar la lectura de agua por entidad y definir estrategias d eahorro por cada unidad de conusmo. | H27: 0 | I27: 0 | J27: 0 | L27: 1

Sheet 0102-01 PERSONERIA
A1: PLAN DE AUSTERIDAD EN EL GASTO 2025-2027
A2: Entidad
A3: Valores en Pesos Corrientes
A4: CONCEPTO (Decreto 062 de 2024) | B4: Posiciones Presupuestales Asociadas (Funcionamiento e Inversión) | C4: LÍNEA BASE | F4: PLAN DE AUSTERIDAD EN EL GASTO 2025-2027 | K4: SEGUIMIENTO RESULTADOS PLAN DE AUSTERIDAD 2025-2027
F5: ESTRATEGIAS 2025-2027 | G5: ACCIONES 2025-2027 | H5: META INDICADOR DE AUSTERIDAD
C6: AÑO 2023 | D6: AÑO 2024 | K6: AÑO 2025 | M6: AÑO 2026 | O6: AÑO 2027
C7: Valor EJECUTADO a 31/12/2023 | D7: Valor EJECUTADO a 31/12/2024 | E7: Resultado Indicador Austeridad | H7: AÑO 2025 | I7: AÑO 2026 | J7: AÑO 2027 | K7: Valor EJECUTADO a 31/12/2025 | L7: Resultado Indicador Austeridad | M7: Valor EJECUTADO a 31/12/2026 | N7: Resultado Indicador Austeridad | O7: Valor EJECUTADO a 31/12/2027 | P7: Resultado Indicador Austeridad
A8: Servicios de personal
A9: Artículo 6°.- Reducción del gasto en CPS profesionales y de apoyo a la gestión. | B9: N.A. Se registran totales. Corresponde con lo reportado en SIDEAP y SIVICOF | E9: =1-(D9/C9) ->  | L9: =1-(K9/D9) ->  | N9: =1-(M9/K9) ->  | P9: =1-(O9/M9) -> 
A10: Artículo 7°.- Horas extras, dominicales y festivos. | L10: =1-(K10/D10) ->  | N10: =1-(M10/K10) -> 
A11: Artículo 8°.- Viáticos y gastos de viaje.
A12: Artículo 9°.- Compensación por vacaciones.
A13: Artículo 10°.- Bono navideño.
A14: Artículo 11 -. Capacitación.
A15: Artículo 12 -. Bienestar.
A16: Artículo 13 -. Eventos y conmemoraciones.
A17: Artículo 14 -. Fondos educativos.
A18: Servicios Administrativos
A19: Artículo 15. Telefonía. | E19: =1-(D19/C19) -> 
A20: Artículo 16 -. Vehículos oficiales.
A21: Artículo 17 -. Adquisición de vehículos y maquinaria.
A22: Artículo 18 -. Fotocopiado, multicopiado e impresión.
A23: Artículo 19 -. Publicidad distrital.
A24: Artículo 20 -. Cajas menores.
A25: Artículo 21 -. Mantenimiento o reparación de bienes inmuebles o muebles.
A26: Artículo 22 -. Suscripciones.
A27: Artículo 23 -. Servicios públicos.

Sheet 0104-01 SECRETARÍA GENERAL
A1: 8502
A2: Entidad
A3: Valores en Pesos Corrientes
A4: CONCEPTO (Decreto 062 de 2024) | B4: Posiciones Presupuestales Asociadas (Funcionamiento e Inversión) | C4: LÍNEA BASE | F4: PLAN DE AUSTERIDAD EN EL GASTO 2025-2027 | K4: SEGUIMIENTO RESULTADOS PLAN DE AUSTERIDAD 2025-2027
F5: ESTRATEGIAS 2025-2027 | G5: ACCIONES 2025-2027 | H5: META INDICADOR DE AUSTERIDAD
C6: AÑO 2023 | D6: AÑO 2024 | K6: AÑO 2025 | M6: AÑO 2026 | O6: AÑO 2027
C7: Valor EJECUTADO a 31/12/2023 | D7: Valor EJECUTADO a 31/12/2024 | E7: Resultado Indicador Austeridad | H7: AÑO 2025 | I7: AÑO 2026 | J7: AÑO 2027 | K7: Valor EJECUTADO a 31/12/2025 | L7: Resultado Indicador Austeridad | M7: Valor EJECUTADO a 31/12/2026 | N7: Resultado Indicador Austeridad | O7: Valor EJECUTADO a 31/12/2027 | P7: Resultado Indicador Austeridad
A8: Servicios de personal
A9: Artículo 6°.- Reducción del gasto en CPS profesionales y de apoyo a la gestión. | B9: N.A. Se registran totales. Corresponde con lo reportado en SIDEAP y SIVICOF | E9: =1-(D9/C9) ->  | L9: =1-(K9/D9) ->  | N9: =1-(M9/K9) ->  | P9: =1-(O9/M9) -> 
A10: Artículo 7°.- Horas extras, dominicales y festivos. | L10: =1-(K10/D10) ->  | N10: =1-(M10/K10) -> 
A11: Artículo 8°.- Viáticos y gastos de viaje.
A12: Artículo 9°.- Compensación por vacaciones.
A13: Artículo 10°.- Bono navideño.
A14: Artículo 11 -. Capacitación.
A15: Artículo 12 -. Bienestar.
A16: Artículo 13 -. Eventos y conmemoraciones.
A17: Artículo 14 -. Fondos educativos.
A18: Servicios Administrativos
A19: Artículo 15. Telefonía. | E19: =1-(D19/C19) -> 
A20: Artículo 16 -. Vehículos oficiales.
A21: Artículo 17 -. Adquisición de vehículos y maquinaria.
A22: Artículo 18 -. Fotocopiado, multicopiado e impresión.
A23: Artículo 19 -. Publicidad distrital.
A24: Artículo 20 -. Cajas menores.
A25: Artículo 21 -. Mantenimiento o reparación de bienes inmuebles o muebles.
A26: Artículo 22 -. Suscripciones.
A27: Artículo 23 -. Servicios públicos.

Sheet 0105-01 VEEDURIA
A1: PLAN DE AUSTERIDAD EN EL GASTO 2025-2027
A2: Entidad
A3: Valores en Pesos Corrientes
A4: CONCEPTO (Decreto 062 de 2024) | B4: Posiciones Presupuestales Asociadas (Funcionamiento e Inversión) | C4: LÍNEA BASE | F4: PLAN DE AUSTERIDAD EN EL GASTO 2025-2027 | K4: SEGUIMIENTO RESULTADOS PLAN DE AUSTERIDAD 2025-2027
F5: ESTRATEGIAS 2025-2027 | G5: ACCIONES 2025-2027 | H5: META INDICADOR DE AUSTERIDAD
C6: AÑO 2023 | D6: AÑO 2024 | K6: AÑO 2025 | M6: AÑO 2026 | O6: AÑO 2027
C7: Valor EJECUTADO a 31/12/2023 | D7: Valor EJECUTADO a 31/12/2024 | E7: Resultado Indicador Austeridad | H7: AÑO 2025 | I7: AÑO 2026 | J7: AÑO 2027 | K7: Valor EJECUTADO a 31/12/2025 | L7: Resultado Indicador Austeridad | M7: Valor EJECUTADO a 31/12/2026 | N7: Resultado Indicador Austeridad | O7: Valor EJECUTADO a 31/12/2027 | P7: Resultado Indicador Austeridad
A8: Servicios de personal
A9: Artículo 6°.- Reducción del gasto en CPS profesionales y de apoyo a la gestión. | B9: N.A. Se registran totales. Corresponde con lo reportado en SIDEAP y SIVICOF | E9: =1-(D9/C9) ->  | L9: =1-(K9/D9) ->  | N9: =1-(M9/K9) ->  | P9: =1-(O9/M9) -> 
A10: Artículo 7°.- Horas extras, dominicales y festivos. | L10: =1-(K10/D10) ->  | N10: =1-(M10/K10) -> 
A11: Artículo 8°.- Viáticos y gastos de viaje.
A12: Artículo 9°.- Compensación por vacaciones.
A13: Artículo 10°.- Bono navideño.
A14: Artículo 11 -. Capacitación.
A15: Artículo 12 -. Bienestar.
A16: Artículo 13 -. Eventos y conmemoraciones.
A17: Artículo 14 -. Fondos educativos.
A18: Servicios Administrativos
A19: Artículo 15. Telefonía. | E19: =1-(D19/C19) -> 
A20: Artículo 16 -. Vehículos oficiales.
A21: Artículo 17 -. Adquisición de vehículos y maquinaria.
A22: Artículo 18 -. Fotocopiado, multicopiado e impresión.
A23: Artículo 19 -. Publicidad distrital.
A24: Artículo 20 -. Cajas menores.
A25: Artículo 21 -. Mantenimiento o reparación de bienes inmuebles o muebles.
A26: Artículo 22 -. Suscripciones.
A27: Artículo 23 -. Servicios públicos.

Sheet 0111-03 SDH
A1: PLAN DE AUSTERIDAD EN EL GASTO 2025-2027
A2: Entidad
A3: Valores en Pesos Corrientes
A4: CONCEPTO (Decreto 062 de 2024) | B4: Posiciones Presupuestales Asociadas (Funcionamiento e Inversión) | C4: LÍNEA BASE | F4: PLAN DE AUSTERIDAD EN EL GASTO 2025-2027 | K4: SEGUIMIENTO RESULTADOS PLAN DE AUSTERIDAD 2025-2027
F5: ESTRATEGIAS 2025-2027 | G5: ACCIONES 2025-2027 | H5: META INDICADOR DE AUSTERIDAD
C6: AÑO 2023 | D6: AÑO 2024 | K6: AÑO 2025 | M6: AÑO 2026 | O6: AÑO 2027
C7: Valor EJECUTADO a 31/12/2023 | D7: Valor EJECUTADO a 31/12/2024 | E7: Resultado Indicador Austeridad | H7: AÑO 2025 | I7: AÑO 2026 | J7: AÑO 2027 | K7: Valor EJECUTADO a 31/12/2025 | L7: Resultado Indicador Austeridad | M7: Valor EJECUTADO a 31/12/2026 | N7: Resultado Indicador Austeridad | O7: Valor EJECUTADO a 31/12/2027 | P7: Resultado Indicador Austeridad
A8: Servicios de personal
A9: Artículo 6°.- Reducción del gasto en CPS profesionales y de apoyo a la gestión. | B9: N.A. Se registran totales. Corresponde con lo reportado en SIDEAP y SIVICOF | E9: =1-(D9/C9) ->  | L9: =1-(K9/D9) ->  | N9: =1-(M9/K9) ->  | P9: =1-(O9/M9) -> 
A10: Artículo 7°.- Horas extras, dominicales y festivos. | L10: =1-(K10/D10) ->  | N10: =1-(M10/K10) -> 
A11: Artículo 8°.- Viáticos y gastos de viaje.
A12: Artículo 9°.- Compensación por vacaciones.
A13: Artículo 10°.- Bono navideño.
A14: Artículo 11 -. Capacitación.
A15: Artículo 12 -. Bienestar.
A16: Artículo 13 -. Eventos y conmemoraciones.
A17: Artículo 14 -. Fondos educativos.
A18: Servicios Administrativos
A19: Artículo 15. Telefonía. | E19: =1-(D19/C19) -> 
A20: Artículo 16 -. Vehículos oficiales.
A21: Artículo 17 -. Adquisición de vehículos y maquinaria.
A22: Artículo 18 -. Fotocopiado, multicopiado e impresión.
A23: Artículo 19 -. Publicidad distrital.
A24: Artículo 20 -. Cajas menores.
A25: Artículo 21 -. Mantenimiento o reparación de bienes inmuebles o muebles.
A26: Artículo 22 -. Suscripciones.
A27: Artículo 23 -. Servicios públicos.

Sheet 0110-01 SDG
A1: PLAN DE AUSTERIDAD EN EL GASTO 2025-2027
A2: Entidad
A3: Valores en Pesos Corrientes
A4: CONCEPTO (Decreto 062 de 2024) | B4: Posiciones Presupuestales Asociadas (Funcionamiento e Inversión) | C4: LÍNEA BASE | F4: PLAN DE AUSTERIDAD EN EL GASTO 2025-2027 | K4: SEGUIMIENTO RESULTADOS PLAN DE AUSTERIDAD 2025-2027
F5: ESTRATEGIAS 2025-2027 | G5: ACCIONES 2025-2027 | H5: META INDICADOR DE AUSTERIDAD
C6: AÑO 2023 | D6: AÑO 2024 | K6: AÑO 2025 | M6: AÑO 2026 | O6: AÑO 2027
C7: Valor EJECUTADO a 31/12/2023 | D7: Valor EJECUTADO a 31/12/2024 | E7: Resultado Indicador Austeridad | H7: AÑO 2025 | I7: AÑO 2026 | J7: AÑO 2027 | K7: Valor EJECUTADO a 31/12/2025 | L7: Resultado Indicador Austeridad | M7: Valor EJECUTADO a 31/12/2026 | N7: Resultado Indicador Austeridad | O7: Valor EJECUTADO a 31/12/2027 | P7: Resultado Indicador Austeridad
A8: Servicios de personal
A9: Artículo 6°.- Reducción del gasto en CPS profesionales y de apoyo a la gestión. | B9: N.A. Se registran totales. Corresponde con lo reportado en SIDEAP y SIVICOF | E9: =1-(D9/C9) ->  | L9: =1-(K9/D9) ->  | N9: =1-(M9/K9) ->  | P9: =1-(O9/M9) -> 
A10: Artículo 7°.- Horas extras, dominicales y festivos. | L10: =1-(K10/D10) ->  | N10: =1-(M10/K10) -> 
A11: Artículo 8°.- Viáticos y gastos de viaje.
A12: Artículo 9°.- Compensación por vacaciones.
A13: Artículo 10°.- Bono navideño.
A14: Artículo 11 -. Capacitación.
A15: Artículo 12 -. Bienestar.
A16: Artículo 13 -. Eventos y conmemoraciones.
A17: Artículo 14 -. Fondos educativos.
A18: Servicios Administrativos
A19: Artículo 15. Telefonía. | E19: =1-(D19/C19) -> 
A20: Artículo 16 -. Vehículos oficiales.
A21: Artículo 17 -. Adquisición de vehículos y maquinaria.
A22: Artículo 18 -. Fotocopiado, multicopiado e impresión.
A23: Artículo 19 -. Publicidad distrital.
A24: Artículo 20 -. Cajas menores.
A25: Artículo 21 -. Mantenimiento o reparación de bienes inmuebles o muebles.
A26: Artículo 22 -. Suscripciones.
A27: Artículo 23 -. Servicios públicos.

Sheet 0111-01 SDH
A1: PLAN DE AUSTERIDAD EN EL GASTO 2025-2027
A2: Entidad
A3: Valores en Pesos Corrientes
A4: CONCEPTO (Decreto 062 de 2024) | B4: Posiciones Presupuestales Asociadas (Funcionamiento e Inversión) | C4: LÍNEA BASE | F4: PLAN DE AUSTERIDAD EN EL GASTO 2025-2027 | K4: SEGUIMIENTO RESULTADOS PLAN DE AUSTERIDAD 2025-2027
F5: ESTRATEGIAS 2025-2027 | G5: ACCIONES 2025-2027 | H5: META INDICADOR DE AUSTERIDAD
C6: AÑO 2023 | D6: AÑO 2024 | K6: AÑO 2025 | M6: AÑO 2026 | O6: AÑO 2027
C7: Valor EJECUTADO a 31/12/2023 | D7: Valor EJECUTADO a 31/12/2024 | E7: Resultado Indicador Austeridad | H7: AÑO 2025 | I7: AÑO 2026 | J7: AÑO 2027 | K7: Valor EJECUTADO a 31/12/2025 | L7: Resultado Indicador Austeridad | M7: Valor EJECUTADO a 31/12/2026 | N7: Resultado Indicador Austeridad | O7: Valor EJECUTADO a 31/12/2027 | P7: Resultado Indicador Austeridad
A8: Servicios de personal
A9: Artículo 6°.- Reducción del gasto en CPS profesionales y de apoyo a la gestión. | B9: N.A. Se registran totales. Corresponde con lo reportado en SIDEAP y SIVICOF | E9: =1-(D9/C9) ->  | L9: =1-(K9/D9) ->  | N9: =1-(M9/K9) ->  | P9: =1-(O9/M9) -> 
A10: Artículo 7°.- Horas extras, dominicales y festivos. | L10: =1-(K10/D10) ->  | N10: =1-(M10/K10) -> 
A11: Artículo 8°.- Viáticos y gastos de viaje.
A12: Artículo 9°.- Compensación por vacaciones.
A13: Artículo 10°.- Bono navideño.
A14: Artículo 11 -. Capacitación.
A15: Artículo 12 -. Bienestar.
A16: Artículo 13 -. Eventos y conmemoraciones.
A17: Artículo 14 -. Fondos educativos.
A18: Servicios Administrativos
A19: Artículo 15. Telefonía. | E19: =1-(D19/C19) -> 
A20: Artículo 16 -. Vehículos oficiales.
A21: Artículo 17 -. Adquisición de vehículos y maquinaria.
A22: Artículo 18 -. Fotocopiado, multicopiado e impresión.
A23: Artículo 19 -. Publicidad distrital.
A24: Artículo 20 -. Cajas menores.
A25: Artículo 21 -. Mantenimiento o reparación de bienes inmuebles o muebles.
A26: Artículo 22 -. Suscripciones.
A27: Artículo 23 -. Servicios públicos.

Sheet 0111-02 SDH
A1: PLAN DE AUSTERIDAD EN EL GASTO 2025-2027
A2: Entidad
A3: Valores en Pesos Corrientes
A4: CONCEPTO (Decreto 062 de 2024) | B4: Posiciones Presupuestales Asociadas (Funcionamiento e Inversión) | C4: LÍNEA BASE | F4: PLAN DE AUSTERIDAD EN EL GASTO 2025-2027 | K4: SEGUIMIENTO RESULTADOS PLAN DE AUSTERIDAD 2025-2027
F5: ESTRATEGIAS 2025-2027 | G5: ACCIONES 2025-2027 | H5: META INDICADOR DE AUSTERIDAD
C6: AÑO 2023 | D6: AÑO 2024 | K6: AÑO 2025 | M6: AÑO 2026 | O6: AÑO 2027
C7: Valor EJECUTADO a 31/12/2023 | D7: Valor EJECUTADO a 31/12/2024 | E7: Resultado Indicador Austeridad | H7: AÑO 2025 | I7: AÑO 2026 | J7: AÑO 2027 | K7: Valor EJECUTADO a 31/12/2025 | L7: Resultado Indicador Austeridad | M7: Valor EJECUTADO a 31/12/2026 | N7: Resultado Indicador Austeridad | O7: Valor EJECUTADO a 31/12/2027 | P7: Resultado Indicador Austeridad
A8: Servicios de personal
A9: Artículo 6°.- Reducción del gasto en CPS profesionales y de apoyo a la gestión. | B9: N.A. Se registran totales. Corresponde con lo reportado en SIDEAP y SIVICOF | E9: =1-(D9/C9) ->  | L9: =1-(K9/D9) ->  | N9: =1-(M9/K9) ->  | P9: =1-(O9/M9) -> 
A10: Artículo 7°.- Horas extras, dominicales y festivos. | L10: =1-(K10/D10) ->  | N10: =1-(M10/K10) -> 
A11: Artículo 8°.- Viáticos y gastos de viaje.
A12: Artículo 9°.- Compensación por vacaciones.
A13: Artículo 10°.- Bono navideño.
A14: Artículo 11 -. Capacitación.
A15: Artículo 12 -. Bienestar.
A16: Artículo 13 -. Eventos y conmemoraciones.
A17: Artículo 14 -. Fondos educativos.
A18: Servicios Administrativos
A19: Artículo 15. Telefonía. | E19: =1-(D19/C19) -> 
A20: Artículo 16 -. Vehículos oficiales.
A21: Artículo 17 -. Adquisición de vehículos y maquinaria.
A22: Artículo 18 -. Fotocopiado, multicopiado e impresión.
A23: Artículo 19 -. Publicidad distrital.
A24: Artículo 20 -. Cajas menores.
A25: Artículo 21 -. Mantenimiento o reparación de bienes inmuebles o muebles.
A26: Artículo 22 -. Suscripciones.
A27: Artículo 23 -. Servicios públicos.

Sheet 0111-04 SDH
A1: PLAN DE AUSTERIDAD EN EL GASTO 2025-2027
A2: Entidad
A3: Valores en Pesos Corrientes
A4: CONCEPTO (Decreto 062 de 2024) | B4: Posiciones Presupuestales Asociadas (Funcionamiento e Inversión) | C4: LÍNEA BASE | F4: PLAN DE AUSTERIDAD EN EL GASTO 2025-2027 | K4: SEGUIMIENTO RESULTADOS PLAN DE AUSTERIDAD 2025-2027
F5: ESTRATEGIAS 2025-2027 | G5: ACCIONES 2025-2027 | H5: META INDICADOR DE AUSTERIDAD
C6: AÑO 2023 | D6: AÑO 2024 | K6: AÑO 2025 | M6: AÑO 2026 | O6: AÑO 2027
C7: Valor EJECUTADO a 31/12/2023 | D7: Valor EJECUTADO a 31/12/2024 | E7: Resultado Indicador Austeridad | H7: AÑO 2025 | I7: AÑO 2026 | J7: AÑO 2027 | K7: Valor EJECUTADO a 31/12/2025 | L7: Resultado Indicador Austeridad | M7: Valor EJECUTADO a 31/12/2026 | N7: Resultado Indicador Austeridad | O7: Valor EJECUTADO a 31/12/2027 | P7: Resultado Indicador Austeridad
A8: Servicios de personal
A9: Artículo 6°.- Reducción del gasto en CPS profesionales y de apoyo a la gestión. | B9: N.A. Se registran totales. Corresponde con lo reportado en SIDEAP y SIVICOF | E9: =1-(D9/C9) ->  | L9: =1-(K9/D9) ->  | N9: =1-(M9/K9) ->  | P9: =1-(O9/M9) -> 
A10: Artículo 7°.- Horas extras, dominicales y festivos. | L10: =1-(K10/D10) ->  | N10: =1-(M10/K10) -> 
A11: Artículo 8°.- Viáticos y gastos de viaje.
A12: Artículo 9°.- Compensación por vacaciones.
A13: Artículo 10°.- Bono navideño.
A14: Artículo 11 -. Capacitación.
A15: Artículo 12 -. Bienestar.
A16: Artículo 13 -. Eventos y conmemoraciones.
A17: Artículo 14 -. Fondos educativos.
A18: Servicios Administrativos
A19: Artículo 15. Telefonía. | E19: =1-(D19/C19) -> 
A20: Artículo 16 -. Vehículos oficiales.
A21: Artículo 17 -. Adquisición de vehículos y maquinaria.
A22: Artículo 18 -. Fotocopiado, multicopiado e impresión.
A23: Artículo 19 -. Publicidad distrital.
A24: Artículo 20 -. Cajas menores.
A25: Artículo 21 -. Mantenimiento o reparación de bienes inmuebles o muebles.
A26: Artículo 22 -. Suscripciones.
A27: Artículo 23 -. Servicios públicos.

Sheet 0112-01 SDE
A1: PLAN DE AUSTERIDAD EN EL GASTO 2025-2027
A2: Entidad
A3: Valores en Pesos Corrientes
A4: CONCEPTO (Decreto 062 de 2024) | B4: Posiciones Presupuestales Asociadas (Funcionamiento e Inversión) | C4: LÍNEA BASE | F4: PLAN DE AUSTERIDAD EN EL GASTO 2025-2027 | K4: SEGUIMIENTO RESULTADOS PLAN DE AUSTERIDAD 2025-2027
F5: ESTRATEGIAS 2025-2027 | G5: ACCIONES 2025-2027 | H5: META INDICADOR DE AUSTERIDAD
C6: AÑO 2023 | D6: AÑO 2024 | K6: AÑO 2025 | M6: AÑO 2026 | O6: AÑO 2027
C7: Valor EJECUTADO a 31/12/2023 | D7: Valor EJECUTADO a 31/12/2024 | E7: Resultado Indicador Austeridad | H7: AÑO 2025 | I7: AÑO 2026 | J7: AÑO 2027 | K7: Valor EJECUTADO a 31/12/2025 | L7: Resultado Indicador Austeridad | M7: Valor EJECUTADO a 31/12/2026 | N7: Resultado Indicador Austeridad | O7: Valor EJECUTADO a 31/12/2027 | P7: Resultado Indicador Austeridad
A8: Servicios de personal
A9: Artículo 6°.- Reducción del gasto en CPS profesionales y de apoyo a la gestión. | B9: N.A. Se registran totales. Corresponde con lo reportado en SIDEAP y SIVICOF | E9: =1-(D9/C9) ->  | L9: =1-(K9/D9) ->  | N9: =1-(M9/K9) ->  | P9: =1-(O9/M9) -> 
A10: Artículo 7°.- Horas extras, dominicales y festivos. | L10: =1-(K10/D10) ->  | N10: =1-(M10/K10) -> 
A11: Artículo 8°.- Viáticos y gastos de viaje.
A12: Artículo 9°.- Compensación por vacaciones.
A13: Artículo 10°.- Bono navideño.
A14: Artículo 11 -. Capacitación.
A15: Artículo 12 -. Bienestar.
A16: Artículo 13 -. Eventos y conmemoraciones.
A17: Artículo 14 -. Fondos educativos.
A18: Servicios Administrativos
A19: Artículo 15. Telefonía. | E19: =1-(D19/C19) -> 
A20: Artículo 16 -. Vehículos oficiales.
A21: Artículo 17 -. Adquisición de vehículos y maquinaria.
A22: Artículo 18 -. Fotocopiado, multicopiado e impresión.
A23: Artículo 19 -. Publicidad distrital.
A24: Artículo 20 -. Cajas menores.
A25: Artículo 21 -. Mantenimiento o reparación de bienes inmuebles o muebles.
A26: Artículo 22 -. Suscripciones.
A27: Artículo 23 -. Servicios públicos.

Sheet 0113-01 SDM
A1: PLAN DE AUSTERIDAD EN EL GASTO 2025-2027
A2: Entidad
A3: Valores en Pesos Corrientes
A4: CONCEPTO (Decreto 062 de 2024) | B4: Posiciones Presupuestales Asociadas (Funcionamiento e Inversión) | C4: LÍNEA BASE | F4: PLAN DE AUSTERIDAD EN EL GASTO 2025-2027 | K4: SEGUIMIENTO RESULTADOS PLAN DE AUSTERIDAD 2025-2027
F5: ESTRATEGIAS 2025-2027 | G5: ACCIONES 2025-2027 | H5: META INDICADOR DE AUSTERIDAD
C6: AÑO 2023 | D6: AÑO 2024 | K6: AÑO 2025 | M6: AÑO 2026 | O6: AÑO 2027
C7: Valor EJECUTADO a 31/12/2023 | D7: Valor EJECUTADO a 31/12/2024 | E7: Resultado Indicador Austeridad | H7: AÑO 2025 | I7: AÑO 2026 | J7: AÑO 2027 | K7: Valor EJECUTADO a 31/12/2025 | L7: Resultado Indicador Austeridad | M7: Valor EJECUTADO a 31/12/2026 | N7: Resultado Indicador Austeridad | O7: Valor EJECUTADO a 31/12/2027 | P7: Resultado Indicador Austeridad
A8: Servicios de personal
A9: Artículo 6°.- Reducción del gasto en CPS profesionales y de apoyo a la gestión. | B9: N.A. Se registran totales. Corresponde con lo reportado en SIDEAP y SIVICOF | E9: =1-(D9/C9) ->  | L9: =1-(K9/D9) ->  | N9: =1-(M9/K9) ->  | P9: =1-(O9/M9) -> 
A10: Artículo 7°.- Horas extras, dominicales y festivos. | L10: =1-(K10/D10) ->  | N10: =1-(M10/K10) -> 
A11: Artículo 8°.- Viáticos y gastos de viaje.
A12: Artículo 9°.- Compensación por vacaciones.
A13: Artículo 10°.- Bono navideño.
A14: Artículo 11 -. Capacitación.
A15: Artículo 12 -. Bienestar.
A16: Artículo 13 -. Eventos y conmemoraciones.
A17: Artículo 14 -. Fondos educativos.
A18: Servicios Administrativos
A19: Artículo 15. Telefonía. | E19: =1-(D19/C19) -> 
A20: Artículo 16 -. Vehículos oficiales.
A21: Artículo 17 -. Adquisición de vehículos y maquinaria.
A22: Artículo 18 -. Fotocopiado, multicopiado e impresión.
A23: Artículo 19 -. Publicidad distrital.
A24: Artículo 20 -. Cajas menores.
A25: Artículo 21 -. Mantenimiento o reparación de bienes inmuebles o muebles.
A26: Artículo 22 -. Suscripciones.
A27: Artículo 23 -. Servicios públicos.

Sheet 0113-02 SDM
A1: PLAN DE AUSTERIDAD EN EL GASTO 2025-2027
A2: Entidad
A3: Valores en Pesos Corrientes
A4: CONCEPTO (Decreto 062 de 2024) | B4: Posiciones Presupuestales Asociadas (Funcionamiento e Inversión) | C4: LÍNEA BASE | F4: PLAN DE AUSTERIDAD EN EL GASTO 2025-2027 | K4: SEGUIMIENTO RESULTADOS PLAN DE AUSTERIDAD 2025-2027
F5: ESTRATEGIAS 2025-2027 | G5: ACCIONES 2025-2027 | H5: META INDICADOR DE AUSTERIDAD
C6: AÑO 2023 | D6: AÑO 2024 | K6: AÑO 2025 | M6: AÑO 2026 | O6: AÑO 2027
C7: Valor EJECUTADO a 31/12/2023 | D7: Valor EJECUTADO a 31/12/2024 | E7: Resultado Indicador Austeridad | H7: AÑO 2025 | I7: AÑO 2026 | J7: AÑO 2027 | K7: Valor EJECUTADO a 31/12/2025 | L7: Resultado Indicador Austeridad | M7: Valor EJECUTADO a 31/12/2026 | N7: Resultado Indicador Austeridad | O7: Valor EJECUTADO a 31/12/2027 | P7: Resultado Indicador Austeridad
A8: Servicios de personal
A9: Artículo 6°.- Reducción del gasto en CPS profesionales y de apoyo a la gestión. | B9: N.A. Se registran totales. Corresponde con lo reportado en SIDEAP y SIVICOF | E9: =1-(D9/C9) ->  | L9: =1-(K9/D9) ->  | N9: =1-(M9/K9) ->  | P9: =1-(O9/M9) -> 
A10: Artículo 7°.- Horas extras, dominicales y festivos. | L10: =1-(K10/D10) ->  | N10: =1-(M10/K10) -> 
A11: Artículo 8°.- Viáticos y gastos de viaje.
A12: Artículo 9°.- Compensación por vacaciones.
A13: Artículo 10°.- Bono navideño.
A14: Artículo 11 -. Capacitación.
A15: Artículo 12 -. Bienestar.
A16: Artículo 13 -. Eventos y conmemoraciones.
A17: Artículo 14 -. Fondos educativos.
A18: Servicios Administrativos
A19: Artículo 15. Telefonía. | E19: =1-(D19/C19) -> 
A20: Artículo 16 -. Vehículos oficiales.
A21: Artículo 17 -. Adquisición de vehículos y maquinaria.
A22: Artículo 18 -. Fotocopiado, multicopiado e impresión.
A23: Artículo 19 -. Publicidad distrital.
A24: Artículo 20 -. Cajas menores.
A25: Artículo 21 -. Mantenimiento o reparación de bienes inmuebles o muebles.
A26: Artículo 22 -. Suscripciones.
A27: Artículo 23 -. Servicios públicos.

Sheet 0114-01 SDS
A1: PLAN DE AUSTERIDAD EN EL GASTO 2025-2027
A2: Entidad
A3: Valores en Pesos Corrientes
A4: CONCEPTO (Decreto 062 de 2024) | B4: Posiciones Presupuestales Asociadas (Funcionamiento e Inversión) | C4: LÍNEA BASE | F4: PLAN DE AUSTERIDAD EN EL GASTO 2025-2027 | K4: SEGUIMIENTO RESULTADOS PLAN DE AUSTERIDAD 2025-2027
F5: ESTRATEGIAS 2025-2027 | G5: ACCIONES 2025-2027 | H5: META INDICADOR DE AUSTERIDAD
C6: AÑO 2023 | D6: AÑO 2024 | K6: AÑO 2025 | M6: AÑO 2026 | O6: AÑO 2027
C7: Valor EJECUTADO a 31/12/2023 | D7: Valor EJECUTADO a 31/12/2024 | E7: Resultado Indicador Austeridad | H7: AÑO 2025 | I7: AÑO 2026 | J7: AÑO 2027 | K7: Valor EJECUTADO a 31/12/2025 | L7: Resultado Indicador Austeridad | M7: Valor EJECUTADO a 31/12/2026 | N7: Resultado Indicador Austeridad | O7: Valor EJECUTADO a 31/12/2027 | P7: Resultado Indicador Austeridad
A8: Servicios de personal
A9: Artículo 6°.- Reducción del gasto en CPS profesionales y de apoyo a la gestión. | B9: N.A. Se registran totales. Corresponde con lo reportado en SIDEAP y SIVICOF | C9: 132865270 | D9: 926134126 | E9: =1-(D9/C9) -> -5.970475625 | L9: =1-(K9/D9) -> 1 | N9: =1-(M9/K9) ->  | P9: =1-(O9/M9) -> 
A10: Artículo 7°.- Horas extras, dominicales y festivos. | B10: Funcionamiento | C10: 943311205 | D10: 1431916611 | E10: -0.5179684111 | F10: Como parte de las medidas de austeridad y optimización de los recursos, se establecerá que el reconocimiento de horas extras a los funcionarios de los niveles técnicos y asistenciales (operarios, secretarias, auxiliares, entre otros) se realizará únicamente cuando sea estrictamente necesario para garantizar la continuidad y calidad en la prestación de los servicios asociados a los objetivos misionales de la entidad. | G10: Ajustar el reconocimiento de horas extras únicamente a aquellas estrictamente necesarias, implementando un control sobre las planillas de reporte de horas extras, especialmente para conductores y demás funcionarios que reciban este pago, asegurando que estas correspondan a necesidades justificadas y verificadas. | H10: 0.03 | I10: 0.02 | J10: 0.01 | L10: =1-(K10/D10) -> 1 | N10: =1-(M10/K10) -> 
A11: Artículo 8°.- Viáticos y gastos de viaje. | B11: Funcionamiento | D11: 3580671 | L11: 1
A12: Artículo 9°.- Compensación por vacaciones. | B12: Funcionamiento | C12: 247967517 | D12: 153537824 | E12: 0.3808147702 | L12: 1
A13: Artículo 10°.- Bono navideño. | B13: Funciomamiento | C13: 44751699 | D13: 32054338 | E13: 0.2837291384 | L13: 1
A14: Artículo 11 -. Capacitación. | B14: Funcionamiento | C14: 272998637 | D14: 196657824 | E14: 0.2796380738 | L14: 1
A15: Artículo 12 -. Bienestar. | B15: Funcionamiento | C15: =401534606+11900000 -> 413434606 | D15: 469428816 | E15: -0.135436679 | L15: 1
A16: Artículo 13 -. Eventos y conmemoraciones. | B16: N/A | C16: 0 | D16: 0 | F16: La entidad no realiza eventos y conmoraciones.
A17: Artículo 14 -. Fondos educativos. | B17: Funcionamiento | C17: 98446520 | D17: 96804560 | E17: 0.01667870027 | L17: 1
A18: Servicios Administrativos
A19: Artículo 15. Telefonía. | B19: Funcionamiento | C19: =53175901+216218206+2824535+11048305 -> 283266947 | E19: =1-(D19/C19) -> 1
A20: Artículo 16 -. Vehículos oficiales. | B20: Funciomamiento | C20: =117138895+50894095 -> 168032990 | E20: 1
A21: Artículo 17 -. Adquisición de vehículos y maquinaria. | B21: N/A | C21: 0 | D21: 0
A22: Artículo 18 -. Fotocopiado, multicopiado e impresión. | B22: Funcionamiento | C22: =17839007+10466510 -> 28305517 | E22: 1
A23: Artículo 19 -. Publicidad distrital. | B23: N/A | C23: 0 | D23: 0
A24: Artículo 20 -. Cajas menores. | B24: Funciomamiento | C24: =3711198+1518772 -> 5229970 | E24: 1
A25: Artículo 21 -. Mantenimiento o reparación de bienes inmuebles o muebles.
A26: Artículo 22 -. Suscripciones. | B26: N/A | C26: 0 | D26: 0
A27: Artículo 23 -. Servicios públicos. | B27: Funcionamiento | C27: =127315990+2035596444+26396590+11604090+40729138+32512360+62389280+821336220+12393850+7748840+17942579+15908710 -> 3211874091 | E27: 1

Sheet 0117-01 SDDE
A1: PLAN DE AUSTERIDAD EN EL GASTO 2025-2027
A2: Entidad
A3: Valores en Pesos Corrientes
A4: CONCEPTO (Decreto 062 de 2024) | B4: Posiciones Presupuestales Asociadas (Funcionamiento e Inversión) | C4: LÍNEA BASE | F4: PLAN DE AUSTERIDAD EN EL GASTO 2025-2027 | K4: SEGUIMIENTO RESULTADOS PLAN DE AUSTERIDAD 2025-2027
F5: ESTRATEGIAS 2025-2027 | G5: ACCIONES 2025-2027 | H5: META INDICADOR DE AUSTERIDAD
C6: AÑO 2023 | D6: AÑO 2024 | K6: AÑO 2025 | M6: AÑO 2026 | O6: AÑO 2027
C7: Valor EJECUTADO a 31/12/2023 | D7: Valor EJECUTADO a 31/12/2024 | E7: Resultado Indicador Austeridad | H7: AÑO 2025 | I7: AÑO 2026 | J7: AÑO 2027 | K7: Valor EJECUTADO a 31/12/2025 | L7: Resultado Indicador Austeridad | M7: Valor EJECUTADO a 31/12/2026 | N7: Resultado Indicador Austeridad | O7: Valor EJECUTADO a 31/12/2027 | P7: Resultado Indicador Austeridad
A8: Servicios de personal
A9: Artículo 6°.- Reducción del gasto en CPS profesionales y de apoyo a la gestión. | B9: N.A. Se registran totales. Corresponde con lo reportado en SIDEAP y SIVICOF | E9: =1-(D9/C9) ->  | L9: =1-(K9/D9) ->  | N9: =1-(M9/K9) ->  | P9: =1-(O9/M9) -> 
A10: Artículo 7°.- Horas extras, dominicales y festivos. | L10: =1-(K10/D10) ->  | N10: =1-(M10/K10) -> 
A11: Artículo 8°.- Viáticos y gastos de viaje.
A12: Artículo 9°.- Compensación por vacaciones.
A13: Artículo 10°.- Bono navideño.
A14: Artículo 11 -. Capacitación.
A15: Artículo 12 -. Bienestar.
A16: Artículo 13 -. Eventos y conmemoraciones.
A17: Artículo 14 -. Fondos educativos.
A18: Servicios Administrativos
A19: Artículo 15. Telefonía. | E19: =1-(D19/C19) -> 
A20: Artículo 16 -. Vehículos oficiales.
A21: Artículo 17 -. Adquisición de vehículos y maquinaria.
A22: Artículo 18 -. Fotocopiado, multicopiado e impresión.
A23: Artículo 19 -. Publicidad distrital.
A24: Artículo 20 -. Cajas menores.
A25: Artículo 21 -. Mantenimiento o reparación de bienes inmuebles o muebles.
A26: Artículo 22 -. Suscripciones.
A27: Artículo 23 -. Servicios públicos.

Sheet 0118-01 SDHT
A1: PLAN DE AUSTERIDAD EN EL GASTO 2025-2027
A2: Entidad
A3: Valores en Pesos Corrientes
A4: CONCEPTO (Decreto 062 de 2024) | B4: Posiciones Presupuestales Asociadas (Funcionamiento e Inversión) | C4: LÍNEA BASE | F4: PLAN DE AUSTERIDAD EN EL GASTO 2025-2027 | K4: SEGUIMIENTO RESULTADOS PLAN DE AUSTERIDAD 2025-2027
F5: ESTRATEGIAS 2025-2027 | G5: ACCIONES 2025-2027 | H5: META INDICADOR DE AUSTERIDAD
C6: AÑO 2023 | D6: AÑO 2024 | K6: AÑO 2025 | M6: AÑO 2026 | O6: AÑO 2027
C7: Valor EJECUTADO a 31/12/2023 | D7: Valor EJECUTADO a 31/12/2024 | E7: Resultado Indicador Austeridad | H7: AÑO 2025 | I7: AÑO 2026 | J7: AÑO 2027 | K7: Valor EJECUTADO a 31/12/2025 | L7: Resultado Indicador Austeridad | M7: Valor EJECUTADO a 31/12/2026 | N7: Resultado Indicador Austeridad | O7: Valor EJECUTADO a 31/12/2027 | P7: Resultado Indicador Austeridad
A8: Servicios de personal
A9: Artículo 6°.- Reducción del gasto en CPS profesionales y de apoyo a la gestión. | B9: N.A. Se registran totales. Corresponde con lo reportado en SIDEAP y SIVICOF | E9: =1-(D9/C9) ->  | L9: =1-(K9/D9) ->  | N9: =1-(M9/K9) ->  | P9: =1-(O9/M9) -> 
A10: Artículo 7°.- Horas extras, dominicales y festivos. | L10: =1-(K10/D10) ->  | N10: =1-(M10/K10) -> 
A11: Artículo 8°.- Viáticos y gastos de viaje.
A12: Artículo 9°.- Compensación por vacaciones.
A13: Artículo 10°.- Bono navideño.
A14: Artículo 11 -. Capacitación.
A15: Artículo 12 -. Bienestar.
A16: Artículo 13 -. Eventos y conmemoraciones.
A17: Artículo 14 -. Fondos educativos.
A18: Servicios Administrativos
A19: Artículo 15. Telefonía. | E19: =1-(D19/C19) -> 
A20: Artículo 16 -. Vehículos oficiales.
A21: Artículo 17 -. Adquisición de vehículos y maquinaria.
A22: Artículo 18 -. Fotocopiado, multicopiado e impresión.
A23: Artículo 19 -. Publicidad distrital.
A24: Artículo 20 -. Cajas menores.
A25: Artículo 21 -. Mantenimiento o reparación de bienes inmuebles o muebles.
A26: Artículo 22 -. Suscripciones.
A27: Artículo 23 -. Servicios públicos.

Sheet 0119-01 SDCRD
A1: PLAN DE AUSTERIDAD EN EL GASTO 2025-2027
A2: Entidad
A3: Valores en Pesos Corrientes
A4: CONCEPTO (Decreto 062 de 2024) | B4: Posiciones Presupuestales Asociadas (Funcionamiento e Inversión) | C4: LÍNEA BASE | F4: PLAN DE AUSTERIDAD EN EL GASTO 2025-2027 | K4: SEGUIMIENTO RESULTADOS PLAN DE AUSTERIDAD 2025-2027
F5: ESTRATEGIAS 2025-2027 | G5: ACCIONES 2025-2027 | H5: META INDICADOR DE AUSTERIDAD
C6: AÑO 2023 | D6: AÑO 2024 | K6: AÑO 2025 | M6: AÑO 2026 | O6: AÑO 2027
C7: Valor EJECUTADO a 31/12/2023 | D7: Valor EJECUTADO a 31/12/2024 | E7: Resultado Indicador Austeridad | H7: AÑO 2025 | I7: AÑO 2026 | J7: AÑO 2027 | K7: Valor EJECUTADO a 31/12/2025 | L7: Resultado Indicador Austeridad | M7: Valor EJECUTADO a 31/12/2026 | N7: Resultado Indicador Austeridad | O7: Valor EJECUTADO a 31/12/2027 | P7: Resultado Indicador Austeridad
A8: Servicios de personal
A9: Artículo 6°.- Reducción del gasto en CPS profesionales y de apoyo a la gestión. | B9: N.A. Se registran totales. Corresponde con lo reportado en SIDEAP y SIVICOF | E9: =1-(D9/C9) ->  | L9: =1-(K9/D9) ->  | N9: =1-(M9/K9) ->  | P9: =1-(O9/M9) -> 
A10: Artículo 7°.- Horas extras, dominicales y festivos. | L10: =1-(K10/D10) ->  | N10: =1-(M10/K10) -> 
A11: Artículo 8°.- Viáticos y gastos de viaje.
A12: Artículo 9°.- Compensación por vacaciones.
A13: Artículo 10°.- Bono navideño.
A14: Artículo 11 -. Capacitación.
A15: Artículo 12 -. Bienestar.
A16: Artículo 13 -. Eventos y conmemoraciones.
A17: Artículo 14 -. Fondos educativos.
A18: Servicios Administrativos
A19: Artículo 15. Telefonía. | E19: =1-(D19/C19) -> 
A20: Artículo 16 -. Vehículos oficiales.
A21: Artículo 17 -. Adquisición de vehículos y maquinaria.
A22: Artículo 18 -. Fotocopiado, multicopiado e impresión.
A23: Artículo 19 -. Publicidad distrital.
A24: Artículo 20 -. Cajas menores.
A25: Artículo 21 -. Mantenimiento o reparación de bienes inmuebles o muebles.
A26: Artículo 22 -. Suscripciones.
A27: Artículo 23 -. Servicios públicos.

Sheet 0120-01 SDP
A1: PLAN DE AUSTERIDAD EN EL GASTO 2025-2027
A2: Entidad
A3: Valores en Pesos Corrientes
A4: CONCEPTO (Decreto 062 de 2024) | B4: Posiciones Presupuestales Asociadas (Funcionamiento e Inversión) | C4: LÍNEA BASE | F4: PLAN DE AUSTERIDAD EN EL GASTO 2025-2027 | K4: SEGUIMIENTO RESULTADOS PLAN DE AUSTERIDAD 2025-2027
F5: ESTRATEGIAS 2025-2027 | G5: ACCIONES 2025-2027 | H5: META INDICADOR DE AUSTERIDAD
C6: AÑO 2023 | D6: AÑO 2024 | K6: AÑO 2025 | M6: AÑO 2026 | O6: AÑO 2027
C7: Valor EJECUTADO a 31/12/2023 | D7: Valor EJECUTADO a 31/12/2024 | E7: Resultado Indicador Austeridad | H7: AÑO 2025 | I7: AÑO 2026 | J7: AÑO 2027 | K7: Valor EJECUTADO a 31/12/2025 | L7: Resultado Indicador Austeridad | M7: Valor EJECUTADO a 31/12/2026 | N7: Resultado Indicador Austeridad | O7: Valor EJECUTADO a 31/12/2027 | P7: Resultado Indicador Austeridad
A8: Servicios de personal
A9: Artículo 6°.- Reducción del gasto en CPS profesionales y de apoyo a la gestión. | B9: N.A. Se registran totales. Corresponde con lo reportado en SIDEAP y SIVICOF | E9: =1-(D9/C9) ->  | L9: =1-(K9/D9) ->  | N9: =1-(M9/K9) ->  | P9: =1-(O9/M9) -> 
A10: Artículo 7°.- Horas extras, dominicales y festivos. | L10: =1-(K10/D10) ->  | N10: =1-(M10/K10) -> 
A11: Artículo 8°.- Viáticos y gastos de viaje.
A12: Artículo 9°.- Compensación por vacaciones.
A13: Artículo 10°.- Bono navideño.
A14: Artículo 11 -. Capacitación.
A15: Artículo 12 -. Bienestar.
A16: Artículo 13 -. Eventos y conmemoraciones.
A17: Artículo 14 -. Fondos educativos.
A18: Servicios Administrativos
A19: Artículo 15. Telefonía. | E19: =1-(D19/C19) -> 
A20: Artículo 16 -. Vehículos oficiales.
A21: Artículo 17 -. Adquisición de vehículos y maquinaria.
A22: Artículo 18 -. Fotocopiado, multicopiado e impresión.
A23: Artículo 19 -. Publicidad distrital.
A24: Artículo 20 -. Cajas menores.
A25: Artículo 21 -. Mantenimiento o reparación de bienes inmuebles o muebles.
A26: Artículo 22 -. Suscripciones.
A27: Artículo 23 -. Servicios públicos.

Sheet 0121-01 SDM
A1: PLAN DE AUSTERIDAD EN EL GASTO 2025-2027
A2: Entidad
A3: Valores en Pesos Corrientes
A4: CONCEPTO (Decreto 062 de 2024) | B4: Posiciones Presupuestales Asociadas (Funcionamiento e Inversión) | C4: LÍNEA BASE | F4: PLAN DE AUSTERIDAD EN EL GASTO 2025-2027 | K4: SEGUIMIENTO RESULTADOS PLAN DE AUSTERIDAD 2025-2027
F5: ESTRATEGIAS 2025-2027 | G5: ACCIONES 2025-2027 | H5: META INDICADOR DE AUSTERIDAD
C6: AÑO 2023 | D6: AÑO 2024 | K6: AÑO 2025 | M6: AÑO 2026 | O6: AÑO 2027
C7: Valor EJECUTADO a 31/12/2023 | D7: Valor EJECUTADO a 31/12/2024 | E7: Resultado Indicador Austeridad | H7: AÑO 2025 | I7: AÑO 2026 | J7: AÑO 2027 | K7: Valor EJECUTADO a 31/12/2025 | L7: Resultado Indicador Austeridad | M7: Valor EJECUTADO a 31/12/2026 | N7: Resultado Indicador Austeridad | O7: Valor EJECUTADO a 31/12/2027 | P7: Resultado Indicador Austeridad
A8: Servicios de personal
A9: Artículo 6°.- Reducción del gasto en CPS profesionales y de apoyo a la gestión. | B9: N.A. Se registran totales. Corresponde con lo reportado en SIDEAP y SIVICOF | E9: =1-(D9/C9) ->  | L9: =1-(K9/D9) ->  | N9: =1-(M9/K9) ->  | P9: =1-(O9/M9) -> 
A10: Artículo 7°.- Horas extras, dominicales y festivos. | L10: =1-(K10/D10) ->  | N10: =1-(M10/K10) -> 
A11: Artículo 8°.- Viáticos y gastos de viaje.
A12: Artículo 9°.- Compensación por vacaciones.
A13: Artículo 10°.- Bono navideño.
A14: Artículo 11 -. Capacitación.
A15: Artículo 12 -. Bienestar.
A16: Artículo 13 -. Eventos y conmemoraciones.
A17: Artículo 14 -. Fondos educativos.
A18: Servicios Administrativos
A19: Artículo 15. Telefonía. | E19: =1-(D19/C19) -> 
A20: Artículo 16 -. Vehículos oficiales.
A21: Artículo 17 -. Adquisición de vehículos y maquinaria.
A22: Artículo 18 -. Fotocopiado, multicopiado e impresión.
A23: Artículo 19 -. Publicidad distrital.
A24: Artículo 20 -. Cajas menores.
A25: Artículo 21 -. Mantenimiento o reparación de bienes inmuebles o muebles.
A26: Artículo 22 -. Suscripciones.
A27: Artículo 23 -. Servicios públicos.

Sheet 0125-01 DASCD
A1: PLAN DE AUSTERIDAD EN EL GASTO 2025-2027
A2: Entidad
A3: Valores en Pesos Corrientes
A4: CONCEPTO (Decreto 062 de 2024) | B4: Posiciones Presupuestales Asociadas (Funcionamiento e Inversión) | C4: LÍNEA BASE | F4: PLAN DE AUSTERIDAD EN EL GASTO 2025-2027 | K4: SEGUIMIENTO RESULTADOS PLAN DE AUSTERIDAD 2025-2027
F5: ESTRATEGIAS 2025-2027 | G5: ACCIONES 2025-2027 | H5: META INDICADOR DE AUSTERIDAD
C6: AÑO 2023 | D6: AÑO 2024 | K6: AÑO 2025 | M6: AÑO 2026 | O6: AÑO 2027
C7: Valor EJECUTADO a 31/12/2023 | D7: Valor EJECUTADO a 31/12/2024 | E7: Resultado Indicador Austeridad | H7: AÑO 2025 | I7: AÑO 2026 | J7: AÑO 2027 | K7: Valor EJECUTADO a 31/12/2025 | L7: Resultado Indicador Austeridad | M7: Valor EJECUTADO a 31/12/2026 | N7: Resultado Indicador Austeridad | O7: Valor EJECUTADO a 31/12/2027 | P7: Resultado Indicador Austeridad
A8: Servicios de personal
A9: Artículo 6°.- Reducción del gasto en CPS profesionales y de apoyo a la gestión. | B9: N.A. Se registran totales. Corresponde con lo reportado en SIDEAP y SIVICOF | E9: =1-(D9/C9) ->  | L9: =1-(K9/D9) ->  | N9: =1-(M9/K9) ->  | P9: =1-(O9/M9) -> 
A10: Artículo 7°.- Horas extras, dominicales y festivos. | L10: =1-(K10/D10) ->  | N10: =1-(M10/K10) -> 
A11: Artículo 8°.- Viáticos y gastos de viaje.
A12: Artículo 9°.- Compensación por vacaciones.
A13: Artículo 10°.- Bono navideño.
A14: Artículo 11 -. Capacitación.
A15: Artículo 12 -. Bienestar.
A16: Artículo 13 -. Eventos y conmemoraciones.
A17: Artículo 14 -. Fondos educativos.
A18: Servicios Administrativos
A19: Artículo 15. Telefonía. | E19: =1-(D19/C19) -> 
A20: Artículo 16 -. Vehículos oficiales.
A21: Artículo 17 -. Adquisición de vehículos y maquinaria.
A22: Artículo 18 -. Fotocopiado, multicopiado e impresión.
A23: Artículo 19 -. Publicidad distrital.
A24: Artículo 20 -. Cajas menores.
A25: Artículo 21 -. Mantenimiento o reparación de bienes inmuebles o muebles.
A26: Artículo 22 -. Suscripciones.
A27: Artículo 23 -. Servicios públicos.

Sheet 0122-01 SDIS
A1: PLAN DE AUSTERIDAD EN EL GASTO 2025-2027
A2: Entidad
A3: Valores en Pesos Corrientes
A4: CONCEPTO (Decreto 062 de 2024) | B4: Posiciones Presupuestales Asociadas (Funcionamiento e Inversión) | C4: LÍNEA BASE | F4: PLAN DE AUSTERIDAD EN EL GASTO 2025-2027 | K4: SEGUIMIENTO RESULTADOS PLAN DE AUSTERIDAD 2025-2027
F5: ESTRATEGIAS 2025-2027 | G5: ACCIONES 2025-2027 | H5: META INDICADOR DE AUSTERIDAD
C6: AÑO 2023 | D6: AÑO 2024 | K6: AÑO 2025 | M6: AÑO 2026 | O6: AÑO 2027
C7: Valor EJECUTADO a 31/12/2023 | D7: Valor EJECUTADO a 31/12/2024 | E7: Resultado Indicador Austeridad | H7: AÑO 2025 | I7: AÑO 2026 | J7: AÑO 2027 | K7: Valor EJECUTADO a 31/12/2025 | L7: Resultado Indicador Austeridad | M7: Valor EJECUTADO a 31/12/2026 | N7: Resultado Indicador Austeridad | O7: Valor EJECUTADO a 31/12/2027 | P7: Resultado Indicador Austeridad
A8: Servicios de personal
A9: Artículo 6°.- Reducción del gasto en CPS profesionales y de apoyo a la gestión. | B9: N.A. Se registran totales. Corresponde con lo reportado en SIDEAP y SIVICOF | E9: =1-(D9/C9) ->  | L9: =1-(K9/D9) ->  | N9: =1-(M9/K9) ->  | P9: =1-(O9/M9) -> 
A10: Artículo 7°.- Horas extras, dominicales y festivos. | L10: =1-(K10/D10) ->  | N10: =1-(M10/K10) -> 
A11: Artículo 8°.- Viáticos y gastos de viaje.
A12: Artículo 9°.- Compensación por vacaciones.
A13: Artículo 10°.- Bono navideño.
A14: Artículo 11 -. Capacitación.
A15: Artículo 12 -. Bienestar.
A16: Artículo 13 -. Eventos y conmemoraciones.
A17: Artículo 14 -. Fondos educativos.
A18: Servicios Administrativos
A19: Artículo 15. Telefonía. | E19: =1-(D19/C19) -> 
A20: Artículo 16 -. Vehículos oficiales.
A21: Artículo 17 -. Adquisición de vehículos y maquinaria.
A22: Artículo 18 -. Fotocopiado, multicopiado e impresión.
A23: Artículo 19 -. Publicidad distrital.
A24: Artículo 20 -. Cajas menores.
A25: Artículo 21 -. Mantenimiento o reparación de bienes inmuebles o muebles.
A26: Artículo 22 -. Suscripciones.
A27: Artículo 23 -. Servicios públicos.

Sheet 0126-01 SDA
A1: PLAN DE AUSTERIDAD EN EL GASTO 2025-2027
A2: Entidad
A3: Valores en Pesos Corrientes
A4: CONCEPTO (Decreto 062 de 2024) | B4: Posiciones Presupuestales Asociadas (Funcionamiento e Inversión) | C4: LÍNEA BASE | F4: PLAN DE AUSTERIDAD EN EL GASTO 2025-2027 | K4: SEGUIMIENTO RESULTADOS PLAN DE AUSTERIDAD 2025-2027
F5: ESTRATEGIAS 2025-2027 | G5: ACCIONES 2025-2027 | H5: META INDICADOR DE AUSTERIDAD
C6: AÑO 2023 | D6: AÑO 2024 | K6: AÑO 2025 | M6: AÑO 2026 | O6: AÑO 2027
C7: Valor EJECUTADO a 31/12/2023 | D7: Valor EJECUTADO a 31/12/2024 | E7: Resultado Indicador Austeridad | H7: AÑO 2025 | I7: AÑO 2026 | J7: AÑO 2027 | K7: Valor EJECUTADO a 31/12/2025 | L7: Resultado Indicador Austeridad | M7: Valor EJECUTADO a 31/12/2026 | N7: Resultado Indicador Austeridad | O7: Valor EJECUTADO a 31/12/2027 | P7: Resultado Indicador Austeridad
A8: Servicios de personal
A9: Artículo 6°.- Reducción del gasto en CPS profesionales y de apoyo a la gestión. | B9: N.A. Se registran totales. Corresponde con lo reportado en SIDEAP y SIVICOF | E9: =1-(D9/C9) ->  | L9: =1-(K9/D9) ->  | N9: =1-(M9/K9) ->  | P9: =1-(O9/M9) -> 
A10: Artículo 7°.- Horas extras, dominicales y festivos. | L10: =1-(K10/D10) ->  | N10: =1-(M10/K10) -> 
A11: Artículo 8°.- Viáticos y gastos de viaje.
A12: Artículo 9°.- Compensación por vacaciones.
A13: Artículo 10°.- Bono navideño.
A14: Artículo 11 -. Capacitación.
A15: Artículo 12 -. Bienestar.
A16: Artículo 13 -. Eventos y conmemoraciones.
A17: Artículo 14 -. Fondos educativos.
A18: Servicios Administrativos
A19: Artículo 15. Telefonía. | E19: =1-(D19/C19) -> 
A20: Artículo 16 -. Vehículos oficiales.
A21: Artículo 17 -. Adquisición de vehículos y maquinaria.
A22: Artículo 18 -. Fotocopiado, multicopiado e impresión.
A23: Artículo 19 -. Publicidad distrital.
A24: Artículo 20 -. Cajas menores.
A25: Artículo 21 -. Mantenimiento o reparación de bienes inmuebles o muebles.
A26: Artículo 22 -. Suscripciones.
A27: Artículo 23 -. Servicios públicos.

Sheet 0127-01 DADEP
A1: PLAN DE AUSTERIDAD EN EL GASTO 2025-2027
A2: Entidad
A3: Valores en Pesos Corrientes
A4: CONCEPTO (Decreto 062 de 2024) | B4: Posiciones Presupuestales Asociadas (Funcionamiento e Inversión) | C4: LÍNEA BASE | F4: PLAN DE AUSTERIDAD EN EL GASTO 2025-2027 | K4: SEGUIMIENTO RESULTADOS PLAN DE AUSTERIDAD 2025-2027
F5: ESTRATEGIAS 2025-2027 | G5: ACCIONES 2025-2027 | H5: META INDICADOR DE AUSTERIDAD
C6: AÑO 2023 | D6: AÑO 2024 | K6: AÑO 2025 | M6: AÑO 2026 | O6: AÑO 2027
C7: Valor EJECUTADO a 31/12/2023 | D7: Valor EJECUTADO a 31/12/2024 | E7: Resultado Indicador Austeridad | H7: AÑO 2025 | I7: AÑO 2026 | J7: AÑO 2027 | K7: Valor EJECUTADO a 31/12/2025 | L7: Resultado Indicador Austeridad | M7: Valor EJECUTADO a 31/12/2026 | N7: Resultado Indicador Austeridad | O7: Valor EJECUTADO a 31/12/2027 | P7: Resultado Indicador Austeridad
A8: Servicios de personal
A9: Artículo 6°.- Reducción del gasto en CPS profesionales y de apoyo a la gestión. | B9: N.A. Se registran totales. Corresponde con lo reportado en SIDEAP y SIVICOF | E9: =1-(D9/C9) ->  | L9: =1-(K9/D9) ->  | N9: =1-(M9/K9) ->  | P9: =1-(O9/M9) -> 
A10: Artículo 7°.- Horas extras, dominicales y festivos. | L10: =1-(K10/D10) ->  | N10: =1-(M10/K10) -> 
A11: Artículo 8°.- Viáticos y gastos de viaje.
A12: Artículo 9°.- Compensación por vacaciones.
A13: Artículo 10°.- Bono navideño.
A14: Artículo 11 -. Capacitación.
A15: Artículo 12 -. Bienestar.
A16: Artículo 13 -. Eventos y conmemoraciones.
A17: Artículo 14 -. Fondos educativos.
A18: Servicios Administrativos
A19: Artículo 15. Telefonía. | E19: =1-(D19/C19) -> 
A20: Artículo 16 -. Vehículos oficiales.
A21: Artículo 17 -. Adquisición de vehículos y maquinaria.
A22: Artículo 18 -. Fotocopiado, multicopiado e impresión.
A23: Artículo 19 -. Publicidad distrital.
A24: Artículo 20 -. Cajas menores.
A25: Artículo 21 -. Mantenimiento o reparación de bienes inmuebles o muebles.
A26: Artículo 22 -. Suscripciones.
A27: Artículo 23 -. Servicios públicos.

Sheet 0131-01 UAECOB
A1: PLAN DE AUSTERIDAD EN EL GASTO 2025-2027
A2: Entidad
A3: Valores en Pesos Corrientes
A4: CONCEPTO (Decreto 062 de 2024) | B4: Posiciones Presupuestales Asociadas (Funcionamiento e Inversión) | C4: LÍNEA BASE | F4: PLAN DE AUSTERIDAD EN EL GASTO 2025-2027 | K4: SEGUIMIENTO RESULTADOS PLAN DE AUSTERIDAD 2025-2027
F5: ESTRATEGIAS 2025-2027 | G5: ACCIONES 2025-2027 | H5: META INDICADOR DE AUSTERIDAD
C6: AÑO 2023 | D6: AÑO 2024 | K6: AÑO 2025 | M6: AÑO 2026 | O6: AÑO 2027
C7: Valor EJECUTADO a 31/12/2023 | D7: Valor EJECUTADO a 31/12/2024 | E7: Resultado Indicador Austeridad | H7: AÑO 2025 | I7: AÑO 2026 | J7: AÑO 2027 | K7: Valor EJECUTADO a 31/12/2025 | L7: Resultado Indicador Austeridad | M7: Valor EJECUTADO a 31/12/2026 | N7: Resultado Indicador Austeridad | O7: Valor EJECUTADO a 31/12/2027 | P7: Resultado Indicador Austeridad
A8: Servicios de personal
A9: Artículo 6°.- Reducción del gasto en CPS profesionales y de apoyo a la gestión. | B9: N.A. Se registran totales. Corresponde con lo reportado en SIDEAP y SIVICOF | E9: =1-(D9/C9) ->  | L9: =1-(K9/D9) ->  | N9: =1-(M9/K9) ->  | P9: =1-(O9/M9) -> 
A10: Artículo 7°.- Horas extras, dominicales y festivos. | L10: =1-(K10/D10) ->  | N10: =1-(M10/K10) -> 
A11: Artículo 8°.- Viáticos y gastos de viaje.
A12: Artículo 9°.- Compensación por vacaciones.
A13: Artículo 10°.- Bono navideño.
A14: Artículo 11 -. Capacitación.
A15: Artículo 12 -. Bienestar.
A16: Artículo 13 -. Eventos y conmemoraciones.
A17: Artículo 14 -. Fondos educativos.
A18: Servicios Administrativos
A19: Artículo 15. Telefonía. | E19: =1-(D19/C19) -> 
A20: Artículo 16 -. Vehículos oficiales.
A21: Artículo 17 -. Adquisición de vehículos y maquinaria.
A22: Artículo 18 -. Fotocopiado, multicopiado e impresión.
A23: Artículo 19 -. Publicidad distrital.
A24: Artículo 20 -. Cajas menores.
A25: Artículo 21 -. Mantenimiento o reparación de bienes inmuebles o muebles.
A26: Artículo 22 -. Suscripciones.
A27: Artículo 23 -. Servicios públicos.

Sheet 0136-01 SJD
A1: PLAN DE AUSTERIDAD EN EL GASTO 2025-2027
A2: Entidad
A3: Valores en Pesos Corrientes
A4: CONCEPTO (Decreto 062 de 2024) | B4: Posiciones Presupuestales Asociadas (Funcionamiento e Inversión) | C4: LÍNEA BASE | F4: PLAN DE AUSTERIDAD EN EL GASTO 2025-2027 | K4: SEGUIMIENTO RESULTADOS PLAN DE AUSTERIDAD 2025-2027
F5: ESTRATEGIAS 2025-2027 | G5: ACCIONES 2025-2027 | H5: META INDICADOR DE AUSTERIDAD
C6: AÑO 2023 | D6: AÑO 2024 | K6: AÑO 2025 | M6: AÑO 2026 | O6: AÑO 2027
C7: Valor EJECUTADO a 31/12/2023 | D7: Valor EJECUTADO a 31/12/2024 | E7: Resultado Indicador Austeridad | H7: AÑO 2025 | I7: AÑO 2026 | J7: AÑO 2027 | K7: Valor EJECUTADO a 31/12/2025 | L7: Resultado Indicador Austeridad | M7: Valor EJECUTADO a 31/12/2026 | N7: Resultado Indicador Austeridad | O7: Valor EJECUTADO a 31/12/2027 | P7: Resultado Indicador Austeridad
A8: Servicios de personal
A9: Artículo 6°.- Reducción del gasto en CPS profesionales y de apoyo a la gestión. | B9: N.A. Se registran totales. Corresponde con lo reportado en SIDEAP y SIVICOF | E9: =1-(D9/C9) ->  | L9: =1-(K9/D9) ->  | N9: =1-(M9/K9) ->  | P9: =1-(O9/M9) -> 
A10: Artículo 7°.- Horas extras, dominicales y festivos. | L10: =1-(K10/D10) ->  | N10: =1-(M10/K10) -> 
A11: Artículo 8°.- Viáticos y gastos de viaje.
A12: Artículo 9°.- Compensación por vacaciones.
A13: Artículo 10°.- Bono navideño.
A14: Artículo 11 -. Capacitación.
A15: Artículo 12 -. Bienestar.
A16: Artículo 13 -. Eventos y conmemoraciones.
A17: Artículo 14 -. Fondos educativos.
A18: Servicios Administrativos
A19: Artículo 15. Telefonía. | E19: =1-(D19/C19) -> 
A20: Artículo 16 -. Vehículos oficiales.
A21: Artículo 17 -. Adquisición de vehículos y maquinaria.
A22: Artículo 18 -. Fotocopiado, multicopiado e impresión.
A23: Artículo 19 -. Publicidad distrital.
A24: Artículo 20 -. Cajas menores.
A25: Artículo 21 -. Mantenimiento o reparación de bienes inmuebles o muebles.
A26: Artículo 22 -. Suscripciones.
A27: Artículo 23 -. Servicios públicos.

Sheet 0137-01 SDSCJ
A1: PLAN DE AUSTERIDAD EN EL GASTO 2025-2027
A2: Entidad | B2: Secretaría Distrital de Seguridad Convivencia y Justicia
A3: Valores en Pesos Corrientes
A4: CONCEPTO (Decreto 062 de 2024) | B4: Posiciones Presupuestales Asociadas (Funcionamiento e Inversión) | C4: LÍNEA BASE | F4: PLAN DE AUSTERIDAD EN EL GASTO 2025-2027 | K4: SEGUIMIENTO RESULTADOS PLAN DE AUSTERIDAD 2025-2027
F5: ESTRATEGIAS 2025-2027 | G5: ACCIONES 2025-2027 | H5: META INDICADOR DE AUSTERIDAD
C6: AÑO 2023 | D6: AÑO 2024 | K6: AÑO 2025 | M6: AÑO 2026 | O6: AÑO 2027
C7: Valor EJECUTADO a 31/12/2023 | D7: Valor EJECUTADO a 31/12/2024 | E7: Resultado Indicador Austeridad | H7: AÑO 2025 | I7: AÑO 2026 | J7: AÑO 2027 | K7: Valor EJECUTADO a 31/12/2025 | L7: Resultado Indicador Austeridad | M7: Valor EJECUTADO a 31/12/2026 | N7: Resultado Indicador Austeridad | O7: Valor EJECUTADO a 31/12/2027 | P7: Resultado Indicador Austeridad
A8: Servicios de personal
A9: Artículo 6°.- Reducción del gasto en CPS profesionales y de apoyo a la gestión. | B9: N.A. Se registran totales. Corresponde con lo reportado en SIDEAP y SIVICOF | E9: =1-(D9/C9) ->  | L9: =1-(K9/D9) ->  | N9: =1-(M9/K9) ->  | P9: =1-(O9/M9) -> 
A10: Artículo 7°.- Horas extras, dominicales y festivos. | L10: =1-(K10/D10) ->  | N10: =1-(M10/K10) -> 
A11: Artículo 8°.- Viáticos y gastos de viaje.
A12: Artículo 9°.- Compensación por vacaciones.
A13: Artículo 10°.- Bono navideño.
A14: Artículo 11 -. Capacitación.
A15: Artículo 12 -. Bienestar.
A16: Artículo 13 -. Eventos y conmemoraciones.
A17: Artículo 14 -. Fondos educativos.
A18: Servicios Administrativos
A19: Artículo 15. Telefonía. | E19: =1-(D19/C19) -> 
A20: Artículo 16 -. Vehículos oficiales.
A21: Artículo 17 -. Adquisición de vehículos y maquinaria.
A22: Artículo 18 -. Fotocopiado, multicopiado e impresión.
A23: Artículo 19 -. Publicidad distrital.
A24: Artículo 20 -. Cajas menores.
A25: Artículo 21 -. Mantenimiento o reparación de bienes inmuebles o muebles.
A26: Artículo 22 -. Suscripciones.
A27: Artículo 23 -. Servicios públicos.

Sheet 0137-02 SDSCJ
A1: PLAN DE AUSTERIDAD EN EL GASTO 2025-2027
A2: Entidad | B2: Unidad Administrativa Especial Cuerpo Oficial de Bomberos
A3: Valores en Pesos Corrientes
A4: CONCEPTO (Decreto 062 de 2024) | B4: Posiciones Presupuestales Asociadas (Funcionamiento e Inversión) | C4: LÍNEA BASE | F4: PLAN DE AUSTERIDAD EN EL GASTO 2025-2027 | K4: SEGUIMIENTO RESULTADOS PLAN DE AUSTERIDAD 2025-2027
F5: ESTRATEGIAS 2025-2027 | G5: ACCIONES 2025-2027 | H5: META INDICADOR DE AUSTERIDAD
C6: AÑO 2023 | D6: AÑO 2024 | K6: AÑO 2025 | M6: AÑO 2026 | O6: AÑO 2027
C7: Valor EJECUTADO a 31/12/2023 | D7: Valor EJECUTADO a 31/12/2024 | E7: Resultado Indicador Austeridad | H7: AÑO 2025 | I7: AÑO 2026 | J7: AÑO 2027 | K7: Valor EJECUTADO a 31/12/2025 | L7: Resultado Indicador Austeridad | M7: Valor EJECUTADO a 31/12/2026 | N7: Resultado Indicador Austeridad | O7: Valor EJECUTADO a 31/12/2027 | P7: Resultado Indicador Austeridad
A8: Servicios de personal
A9: Artículo 6°.- Reducción del gasto en CPS profesionales y de apoyo a la gestión. | B9: N.A. Se registran totales. Corresponde con lo reportado en SIDEAP y SIVICOF | E9: =1-(D9/C9) ->  | L9: =1-(K9/D9) ->  | N9: =1-(M9/K9) ->  | P9: =1-(O9/M9) -> 
A10: Artículo 7°.- Horas extras, dominicales y festivos. | L10: =1-(K10/D10) ->  | N10: =1-(M10/K10) -> 
A11: Artículo 8°.- Viáticos y gastos de viaje.
A12: Artículo 9°.- Compensación por vacaciones.
A13: Artículo 10°.- Bono navideño.
A14: Artículo 11 -. Capacitación.
A15: Artículo 12 -. Bienestar.
A16: Artículo 13 -. Eventos y conmemoraciones.
A17: Artículo 14 -. Fondos educativos.
A18: Servicios Administrativos
A19: Artículo 15. Telefonía. | E19: =1-(D19/C19) -> 
A20: Artículo 16 -. Vehículos oficiales.
A21: Artículo 17 -. Adquisición de vehículos y maquinaria.
A22: Artículo 18 -. Fotocopiado, multicopiado e impresión.
A23: Artículo 19 -. Publicidad distrital.
A24: Artículo 20 -. Cajas menores.
A25: Artículo 21 -. Mantenimiento o reparación de bienes inmuebles o muebles.
A26: Artículo 22 -. Suscripciones.
A27: Artículo 23 -. Servicios públicos.

Sheet 0200-01 IPES
A1: PLAN DE AUSTERIDAD EN EL GASTO 2025-2027
A2: Entidad
A3: Valores en Pesos Corrientes
A4: CONCEPTO (Decreto 062 de 2024) | B4: Posiciones Presupuestales Asociadas (Funcionamiento e Inversión) | C4: LÍNEA BASE | F4: PLAN DE AUSTERIDAD EN EL GASTO 2025-2027 | K4: SEGUIMIENTO RESULTADOS PLAN DE AUSTERIDAD 2025-2027
F5: ESTRATEGIAS 2025-2027 | G5: ACCIONES 2025-2027 | H5: META INDICADOR DE AUSTERIDAD
C6: AÑO 2023 | D6: AÑO 2024 | K6: AÑO 2025 | M6: AÑO 2026 | O6: AÑO 2027
C7: Valor EJECUTADO a 31/12/2023 | D7: Valor EJECUTADO a 31/12/2024 | E7: Resultado Indicador Austeridad | H7: AÑO 2025 | I7: AÑO 2026 | J7: AÑO 2027 | K7: Valor EJECUTADO a 31/12/2025 | L7: Resultado Indicador Austeridad | M7: Valor EJECUTADO a 31/12/2026 | N7: Resultado Indicador Austeridad | O7: Valor EJECUTADO a 31/12/2027 | P7: Resultado Indicador Austeridad
A8: Servicios de personal
A9: Artículo 6°.- Reducción del gasto en CPS profesionales y de apoyo a la gestión. | B9: N.A. Se registran totales. Corresponde con lo reportado en SIDEAP y SIVICOF | E9: =1-(D9/C9) ->  | L9: =1-(K9/D9) ->  | N9: =1-(M9/K9) ->  | P9: =1-(O9/M9) -> 
A10: Artículo 7°.- Horas extras, dominicales y festivos. | L10: =1-(K10/D10) ->  | N10: =1-(M10/K10) -> 
A11: Artículo 8°.- Viáticos y gastos de viaje.
A12: Artículo 9°.- Compensación por vacaciones.
A13: Artículo 10°.- Bono navideño.
A14: Artículo 11 -. Capacitación.
A15: Artículo 12 -. Bienestar.
A16: Artículo 13 -. Eventos y conmemoraciones.
A17: Artículo 14 -. Fondos educativos.
A18: Servicios Administrativos
A19: Artículo 15. Telefonía. | E19: =1-(D19/C19) -> 
A20: Artículo 16 -. Vehículos oficiales.
A21: Artículo 17 -. Adquisición de vehículos y maquinaria.
A22: Artículo 18 -. Fotocopiado, multicopiado e impresión.
A23: Artículo 19 -. Publicidad distrital.
A24: Artículo 20 -. Cajas menores.
A25: Artículo 21 -. Mantenimiento o reparación de bienes inmuebles o muebles.
A26: Artículo 22 -. Suscripciones.
A27: Artículo 23 -. Servicios públicos.

Sheet 0201-01 FFDS
A1: PLAN DE AUSTERIDAD EN EL GASTO 2025-2027
A2: Entidad
A3: Valores en Pesos Corrientes
A4: CONCEPTO (Decreto 062 de 2024) | B4: Posiciones Presupuestales Asociadas (Funcionamiento e Inversión) | C4: LÍNEA BASE | F4: PLAN DE AUSTERIDAD EN EL GASTO 2025-2027 | K4: SEGUIMIENTO RESULTADOS PLAN DE AUSTERIDAD 2025-2027
F5: ESTRATEGIAS 2025-2027 | G5: ACCIONES 2025-2027 | H5: META INDICADOR DE AUSTERIDAD
C6: AÑO 2023 | D6: AÑO 2024 | K6: AÑO 2025 | M6: AÑO 2026 | O6: AÑO 2027
C7: Valor EJECUTADO a 31/12/2023 | D7: Valor EJECUTADO a 31/12/2024 | E7: Resultado Indicador Austeridad | H7: AÑO 2025 | I7: AÑO 2026 | J7: AÑO 2027 | K7: Valor EJECUTADO a 31/12/2025 | L7: Resultado Indicador Austeridad | M7: Valor EJECUTADO a 31/12/2026 | N7: Resultado Indicador Austeridad | O7: Valor EJECUTADO a 31/12/2027 | P7: Resultado Indicador Austeridad
A8: Servicios de personal
A9: Artículo 6°.- Reducción del gasto en CPS profesionales y de apoyo a la gestión. | B9: N.A. Se registran totales. Corresponde con lo reportado en SIDEAP y SIVICOF | E9: =1-(D9/C9) ->  | L9: =1-(K9/D9) ->  | N9: =1-(M9/K9) ->  | P9: =1-(O9/M9) -> 
A10: Artículo 7°.- Horas extras, dominicales y festivos. | C10: 0 | D10: 0 | L10: =1-(K10/D10) ->  | N10: =1-(M10/K10) -> 
A11: Artículo 8°.- Viáticos y gastos de viaje. | C11: 0 | D11: 0
A12: Artículo 9°.- Compensación por vacaciones. | C12: 0 | D12: 0
A13: Artículo 10°.- Bono navideño. | C13: 0 | D13: 0
A14: Artículo 11 -. Capacitación. | C14: 0 | D14: 0
A15: Artículo 12 -. Bienestar. | B15: Inversión | C15: =202904086+28417914 -> 231322000 | D15: =248371043+31300000 -> 279671043 | E15: -0.2090118666 | L15: 1
A16: Artículo 13 -. Eventos y conmemoraciones. | B16: N/A | C16: 0 | F16: La entidad no realiza eventos y conmemoraciones.
A17: Artículo 14 -. Fondos educativos. | C17: 0 | D17: 0
A18: Servicios Administrativos
A19: Artículo 15. Telefonía. | E19: =1-(D19/C19) -> 
A20: Artículo 16 -. Vehículos oficiales.
A21: Artículo 17 -. Adquisición de vehículos y maquinaria.
A22: Artículo 18 -. Fotocopiado, multicopiado e impresión.
A23: Artículo 19 -. Publicidad distrital.
A24: Artículo 20 -. Cajas menores.
A25: Artículo 21 -. Mantenimiento o reparación de bienes inmuebles o muebles.
A26: Artículo 22 -. Suscripciones.
A27: Artículo 23 -. Servicios públicos.

Sheet 0203-01 IDIGER
A1: PLAN DE AUSTERIDAD EN EL GASTO 2025-2027
A2: Entidad
A3: Valores en Pesos Corrientes
A4: CONCEPTO (Decreto 062 de 2024) | B4: Posiciones Presupuestales Asociadas (Funcionamiento e Inversión) | C4: LÍNEA BASE | F4: PLAN DE AUSTERIDAD EN EL GASTO 2025-2027 | K4: SEGUIMIENTO RESULTADOS PLAN DE AUSTERIDAD 2025-2027
F5: ESTRATEGIAS 2025-2027 | G5: ACCIONES 2025-2027 | H5: META INDICADOR DE AUSTERIDAD
C6: AÑO 2023 | D6: AÑO 2024 | K6: AÑO 2025 | M6: AÑO 2026 | O6: AÑO 2027
C7: Valor EJECUTADO a 31/12/2023 | D7: Valor EJECUTADO a 31/12/2024 | E7: Resultado Indicador Austeridad | H7: AÑO 2025 | I7: AÑO 2026 | J7: AÑO 2027 | K7: Valor EJECUTADO a 31/12/2025 | L7: Resultado Indicador Austeridad | M7: Valor EJECUTADO a 31/12/2026 | N7: Resultado Indicador Austeridad | O7: Valor EJECUTADO a 31/12/2027 | P7: Resultado Indicador Austeridad
A8: Servicios de personal
A9: Artículo 6°.- Reducción del gasto en CPS profesionales y de apoyo a la gestión. | B9: N.A. Se registran totales. Corresponde con lo reportado en SIDEAP y SIVICOF | E9: =1-(D9/C9) ->  | L9: =1-(K9/D9) ->  | N9: =1-(M9/K9) ->  | P9: =1-(O9/M9) -> 
A10: Artículo 7°.- Horas extras, dominicales y festivos. | L10: =1-(K10/D10) ->  | N10: =1-(M10/K10) -> 
A11: Artículo 8°.- Viáticos y gastos de viaje.
A12: Artículo 9°.- Compensación por vacaciones.
A13: Artículo 10°.- Bono navideño.
A14: Artículo 11 -. Capacitación.
A15: Artículo 12 -. Bienestar.
A16: Artículo 13 -. Eventos y conmemoraciones.
A17: Artículo 14 -. Fondos educativos.
A18: Servicios Administrativos
A19: Artículo 15. Telefonía. | E19: =1-(D19/C19) -> 
A20: Artículo 16 -. Vehículos oficiales.
A21: Artículo 17 -. Adquisición de vehículos y maquinaria.
A22: Artículo 18 -. Fotocopiado, multicopiado e impresión.
A23: Artículo 19 -. Publicidad distrital.
A24: Artículo 20 -. Cajas menores.
A25: Artículo 21 -. Mantenimiento o reparación de bienes inmuebles o muebles.
A26: Artículo 22 -. Suscripciones.
A27: Artículo 23 -. Servicios públicos.

Sheet 0204-01 IDU
A1: PLAN DE AUSTERIDAD EN EL GASTO 2025-2027
A2: Entidad
A3: Valores en Pesos Corrientes
A4: CONCEPTO (Decreto 062 de 2024) | B4: Posiciones Presupuestales Asociadas (Funcionamiento e Inversión) | C4: LÍNEA BASE | F4: PLAN DE AUSTERIDAD EN EL GASTO 2025-2027 | K4: SEGUIMIENTO RESULTADOS PLAN DE AUSTERIDAD 2025-2027
F5: ESTRATEGIAS 2025-2027 | G5: ACCIONES 2025-2027 | H5: META INDICADOR DE AUSTERIDAD
C6: AÑO 2023 | D6: AÑO 2024 | K6: AÑO 2025 | M6: AÑO 2026 | O6: AÑO 2027
C7: Valor EJECUTADO a 31/12/2023 | D7: Valor EJECUTADO a 31/12/2024 | E7: Resultado Indicador Austeridad | H7: AÑO 2025 | I7: AÑO 2026 | J7: AÑO 2027 | K7: Valor EJECUTADO a 31/12/2025 | L7: Resultado Indicador Austeridad | M7: Valor EJECUTADO a 31/12/2026 | N7: Resultado Indicador Austeridad | O7: Valor EJECUTADO a 31/12/2027 | P7: Resultado Indicador Austeridad
A8: Servicios de personal
A9: Artículo 6°.- Reducción del gasto en CPS profesionales y de apoyo a la gestión. | B9: N.A. Se registran totales. Corresponde con lo reportado en SIDEAP y SIVICOF | E9: =1-(D9/C9) ->  | L9: =1-(K9/D9) ->  | N9: =1-(M9/K9) ->  | P9: =1-(O9/M9) -> 
A10: Artículo 7°.- Horas extras, dominicales y festivos. | L10: =1-(K10/D10) ->  | N10: =1-(M10/K10) -> 
A11: Artículo 8°.- Viáticos y gastos de viaje.
A12: Artículo 9°.- Compensación por vacaciones.
A13: Artículo 10°.- Bono navideño.
A14: Artículo 11 -. Capacitación.
A15: Artículo 12 -. Bienestar.
A16: Artículo 13 -. Eventos y conmemoraciones.
A17: Artículo 14 -. Fondos educativos.
A18: Servicios Administrativos
A19: Artículo 15. Telefonía. | E19: =1-(D19/C19) -> 
A20: Artículo 16 -. Vehículos oficiales.
A21: Artículo 17 -. Adquisición de vehículos y maquinaria.
A22: Artículo 18 -. Fotocopiado, multicopiado e impresión.
A23: Artículo 19 -. Publicidad distrital.
A24: Artículo 20 -. Cajas menores.
A25: Artículo 21 -. Mantenimiento o reparación de bienes inmuebles o muebles.
A26: Artículo 22 -. Suscripciones.
A27: Artículo 23 -. Servicios públicos.

Sheet 0206-01 FONCEP
A1: PLAN DE AUSTERIDAD EN EL GASTO 2025-2027
A2: Entidad
A3: Valores en Pesos Corrientes
A4: CONCEPTO (Decreto 062 de 2024) | B4: Posiciones Presupuestales Asociadas (Funcionamiento e Inversión) | C4: LÍNEA BASE | F4: PLAN DE AUSTERIDAD EN EL GASTO 2025-2027 | K4: SEGUIMIENTO RESULTADOS PLAN DE AUSTERIDAD 2025-2027
F5: ESTRATEGIAS 2025-2027 | G5: ACCIONES 2025-2027 | H5: META INDICADOR DE AUSTERIDAD
C6: AÑO 2023 | D6: AÑO 2024 | K6: AÑO 2025 | M6: AÑO 2026 | O6: AÑO 2027
C7: Valor EJECUTADO a 31/12/2023 | D7: Valor EJECUTADO a 31/12/2024 | E7: Resultado Indicador Austeridad | H7: AÑO 2025 | I7: AÑO 2026 | J7: AÑO 2027 | K7: Valor EJECUTADO a 31/12/2025 | L7: Resultado Indicador Austeridad | M7: Valor EJECUTADO a 31/12/2026 | N7: Resultado Indicador Austeridad | O7: Valor EJECUTADO a 31/12/2027 | P7: Resultado Indicador Austeridad
A8: Servicios de personal
A9: Artículo 6°.- Reducción del gasto en CPS profesionales y de apoyo a la gestión. | B9: N.A. Se registran totales. Corresponde con lo reportado en SIDEAP y SIVICOF | E9: =1-(D9/C9) ->  | L9: =1-(K9/D9) ->  | N9: =1-(M9/K9) ->  | P9: =1-(O9/M9) -> 
A10: Artículo 7°.- Horas extras, dominicales y festivos. | L10: =1-(K10/D10) ->  | N10: =1-(M10/K10) -> 
A11: Artículo 8°.- Viáticos y gastos de viaje.
A12: Artículo 9°.- Compensación por vacaciones.
A13: Artículo 10°.- Bono navideño.
A14: Artículo 11 -. Capacitación.
A15: Artículo 12 -. Bienestar.
A16: Artículo 13 -. Eventos y conmemoraciones.
A17: Artículo 14 -. Fondos educativos.
A18: Servicios Administrativos
A19: Artículo 15. Telefonía. | E19: =1-(D19/C19) -> 
A20: Artículo 16 -. Vehículos oficiales.
A21: Artículo 17 -. Adquisición de vehículos y maquinaria.
A22: Artículo 18 -. Fotocopiado, multicopiado e impresión.
A23: Artículo 19 -. Publicidad distrital.
A24: Artículo 20 -. Cajas menores.
A25: Artículo 21 -. Mantenimiento o reparación de bienes inmuebles o muebles.
A26: Artículo 22 -. Suscripciones.
A27: Artículo 23 -. Servicios públicos.

Sheet 0206-02 FONCEP
A1: PLAN DE AUSTERIDAD EN EL GASTO 2025-2027
A2: Entidad
A3: Valores en Pesos Corrientes
A4: CONCEPTO (Decreto 062 de 2024) | B4: Posiciones Presupuestales Asociadas (Funcionamiento e Inversión) | C4: LÍNEA BASE | F4: PLAN DE AUSTERIDAD EN EL GASTO 2025-2027 | K4: SEGUIMIENTO RESULTADOS PLAN DE AUSTERIDAD 2025-2027
F5: ESTRATEGIAS 2025-2027 | G5: ACCIONES 2025-2027 | H5: META INDICADOR DE AUSTERIDAD
C6: AÑO 2023 | D6: AÑO 2024 | K6: AÑO 2025 | M6: AÑO 2026 | O6: AÑO 2027
C7: Valor EJECUTADO a 31/12/2023 | D7: Valor EJECUTADO a 31/12/2024 | E7: Resultado Indicador Austeridad | H7: AÑO 2025 | I7: AÑO 2026 | J7: AÑO 2027 | K7: Valor EJECUTADO a 31/12/2025 | L7: Resultado Indicador Austeridad | M7: Valor EJECUTADO a 31/12/2026 | N7: Resultado Indicador Austeridad | O7: Valor EJECUTADO a 31/12/2027 | P7: Resultado Indicador Austeridad
A8: Servicios de personal
A9: Artículo 6°.- Reducción del gasto en CPS profesionales y de apoyo a la gestión. | B9: N.A. Se registran totales. Corresponde con lo reportado en SIDEAP y SIVICOF | E9: =1-(D9/C9) ->  | L9: =1-(K9/D9) ->  | N9: =1-(M9/K9) ->  | P9: =1-(O9/M9) -> 
A10: Artículo 7°.- Horas extras, dominicales y festivos. | L10: =1-(K10/D10) ->  | N10: =1-(M10/K10) -> 
A11: Artículo 8°.- Viáticos y gastos de viaje.
A12: Artículo 9°.- Compensación por vacaciones.
A13: Artículo 10°.- Bono navideño.
A14: Artículo 11 -. Capacitación.
A15: Artículo 12 -. Bienestar.
A16: Artículo 13 -. Eventos y conmemoraciones.
A17: Artículo 14 -. Fondos educativos.
A18: Servicios Administrativos
A19: Artículo 15. Telefonía. | E19: =1-(D19/C19) -> 
A20: Artículo 16 -. Vehículos oficiales.
A21: Artículo 17 -. Adquisición de vehículos y maquinaria.
A22: Artículo 18 -. Fotocopiado, multicopiado e impresión.
A23: Artículo 19 -. Publicidad distrital.
A24: Artículo 20 -. Cajas menores.
A25: Artículo 21 -. Mantenimiento o reparación de bienes inmuebles o muebles.
A26: Artículo 22 -. Suscripciones.
A27: Artículo 23 -. Servicios públicos.

Sheet 0208-01 CVP
A1: PLAN DE AUSTERIDAD EN EL GASTO 2025-2027
A2: Entidad
A3: Valores en Pesos Corrientes
A4: CONCEPTO (Decreto 062 de 2024) | B4: Posiciones Presupuestales Asociadas (Funcionamiento e Inversión) | C4: LÍNEA BASE | F4: PLAN DE AUSTERIDAD EN EL GASTO 2025-2027 | K4: SEGUIMIENTO RESULTADOS PLAN DE AUSTERIDAD 2025-2027
F5: ESTRATEGIAS 2025-2027 | G5: ACCIONES 2025-2027 | H5: META INDICADOR DE AUSTERIDAD
C6: AÑO 2023 | D6: AÑO 2024 | K6: AÑO 2025 | M6: AÑO 2026 | O6: AÑO 2027
C7: Valor EJECUTADO a 31/12/2023 | D7: Valor EJECUTADO a 31/12/2024 | E7: Resultado Indicador Austeridad | H7: AÑO 2025 | I7: AÑO 2026 | J7: AÑO 2027 | K7: Valor EJECUTADO a 31/12/2025 | L7: Resultado Indicador Austeridad | M7: Valor EJECUTADO a 31/12/2026 | N7: Resultado Indicador Austeridad | O7: Valor EJECUTADO a 31/12/2027 | P7: Resultado Indicador Austeridad
A8: Servicios de personal
A9: Artículo 6°.- Reducción del gasto en CPS profesionales y de apoyo a la gestión. | B9: N.A. Se registran totales. Corresponde con lo reportado en SIDEAP y SIVICOF | E9: =1-(D9/C9) ->  | L9: =1-(K9/D9) ->  | N9: =1-(M9/K9) ->  | P9: =1-(O9/M9) -> 
A10: Artículo 7°.- Horas extras, dominicales y festivos. | L10: =1-(K10/D10) ->  | N10: =1-(M10/K10) -> 
A11: Artículo 8°.- Viáticos y gastos de viaje.
A12: Artículo 9°.- Compensación por vacaciones.
A13: Artículo 10°.- Bono navideño.
A14: Artículo 11 -. Capacitación.
A15: Artículo 12 -. Bienestar.
A16: Artículo 13 -. Eventos y conmemoraciones.
A17: Artículo 14 -. Fondos educativos.
A18: Servicios Administrativos
A19: Artículo 15. Telefonía. | E19: =1-(D19/C19) -> 
A20: Artículo 16 -. Vehículos oficiales.
A21: Artículo 17 -. Adquisición de vehículos y maquinaria.
A22: Artículo 18 -. Fotocopiado, multicopiado e impresión.
A23: Artículo 19 -. Publicidad distrital.
A24: Artículo 20 -. Cajas menores.
A25: Artículo 21 -. Mantenimiento o reparación de bienes inmuebles o muebles.
A26: Artículo 22 -. Suscripciones.
A27: Artículo 23 -. Servicios públicos.

Sheet 0211-01 IDRD
A1: PLAN DE AUSTERIDAD EN EL GASTO 2025-2027
A2: Entidad
A3: Valores en Pesos Corrientes
A4: CONCEPTO (Decreto 062 de 2024) | B4: Posiciones Presupuestales Asociadas (Funcionamiento e Inversión) | C4: LÍNEA BASE | F4: PLAN DE AUSTERIDAD EN EL GASTO 2025-2027 | K4: SEGUIMIENTO RESULTADOS PLAN DE AUSTERIDAD 2025-2027
F5: ESTRATEGIAS 2025-2027 | G5: ACCIONES 2025-2027 | H5: META INDICADOR DE AUSTERIDAD
C6: AÑO 2023 | D6: AÑO 2024 | K6: AÑO 2025 | M6: AÑO 2026 | O6: AÑO 2027
C7: Valor EJECUTADO a 31/12/2023 | D7: Valor EJECUTADO a 31/12/2024 | E7: Resultado Indicador Austeridad | H7: AÑO 2025 | I7: AÑO 2026 | J7: AÑO 2027 | K7: Valor EJECUTADO a 31/12/2025 | L7: Resultado Indicador Austeridad | M7: Valor EJECUTADO a 31/12/2026 | N7: Resultado Indicador Austeridad | O7: Valor EJECUTADO a 31/12/2027 | P7: Resultado Indicador Austeridad
A8: Servicios de personal
A9: Artículo 6°.- Reducción del gasto en CPS profesionales y de apoyo a la gestión. | B9: N.A. Se registran totales. Corresponde con lo reportado en SIDEAP y SIVICOF | E9: =1-(D9/C9) ->  | L9: =1-(K9/D9) ->  | N9: =1-(M9/K9) ->  | P9: =1-(O9/M9) -> 
A10: Artículo 7°.- Horas extras, dominicales y festivos. | L10: =1-(K10/D10) ->  | N10: =1-(M10/K10) -> 
A11: Artículo 8°.- Viáticos y gastos de viaje.
A12: Artículo 9°.- Compensación por vacaciones.
A13: Artículo 10°.- Bono navideño.
A14: Artículo 11 -. Capacitación.
A15: Artículo 12 -. Bienestar.
A16: Artículo 13 -. Eventos y conmemoraciones.
A17: Artículo 14 -. Fondos educativos.
A18: Servicios Administrativos
A19: Artículo 15. Telefonía. | E19: =1-(D19/C19) -> 
A20: Artículo 16 -. Vehículos oficiales.
A21: Artículo 17 -. Adquisición de vehículos y maquinaria.
A22: Artículo 18 -. Fotocopiado, multicopiado e impresión.
A23: Artículo 19 -. Publicidad distrital.
A24: Artículo 20 -. Cajas menores.
A25: Artículo 21 -. Mantenimiento o reparación de bienes inmuebles o muebles.
A26: Artículo 22 -. Suscripciones.
A27: Artículo 23 -. Servicios públicos.

Sheet 0213-01 IDPC
A1: PLAN DE AUSTERIDAD EN EL GASTO 2025-2027
A2: Entidad
A3: Valores en Pesos Corrientes
A4: CONCEPTO (Decreto 062 de 2024) | B4: Posiciones Presupuestales Asociadas (Funcionamiento e Inversión) | C4: LÍNEA BASE | F4: PLAN DE AUSTERIDAD EN EL GASTO 2025-2027 | K4: SEGUIMIENTO RESULTADOS PLAN DE AUSTERIDAD 2025-2027
F5: ESTRATEGIAS 2025-2027 | G5: ACCIONES 2025-2027 | H5: META INDICADOR DE AUSTERIDAD
C6: AÑO 2023 | D6: AÑO 2024 | K6: AÑO 2025 | M6: AÑO 2026 | O6: AÑO 2027
C7: Valor EJECUTADO a 31/12/2023 | D7: Valor EJECUTADO a 31/12/2024 | E7: Resultado Indicador Austeridad | H7: AÑO 2025 | I7: AÑO 2026 | J7: AÑO 2027 | K7: Valor EJECUTADO a 31/12/2025 | L7: Resultado Indicador Austeridad | M7: Valor EJECUTADO a 31/12/2026 | N7: Resultado Indicador Austeridad | O7: Valor EJECUTADO a 31/12/2027 | P7: Resultado Indicador Austeridad
A8: Servicios de personal
A9: Artículo 6°.- Reducción del gasto en CPS profesionales y de apoyo a la gestión. | B9: N.A. Se registran totales. Corresponde con lo reportado en SIDEAP y SIVICOF | E9: =1-(D9/C9) ->  | L9: =1-(K9/D9) ->  | N9: =1-(M9/K9) ->  | P9: =1-(O9/M9) -> 
A10: Artículo 7°.- Horas extras, dominicales y festivos. | L10: =1-(K10/D10) ->  | N10: =1-(M10/K10) -> 
A11: Artículo 8°.- Viáticos y gastos de viaje.
A12: Artículo 9°.- Compensación por vacaciones.
A13: Artículo 10°.- Bono navideño.
A14: Artículo 11 -. Capacitación.
A15: Artículo 12 -. Bienestar.
A16: Artículo 13 -. Eventos y conmemoraciones.
A17: Artículo 14 -. Fondos educativos.
A18: Servicios Administrativos
A19: Artículo 15. Telefonía. | E19: =1-(D19/C19) -> 
A20: Artículo 16 -. Vehículos oficiales.
A21: Artículo 17 -. Adquisición de vehículos y maquinaria.
A22: Artículo 18 -. Fotocopiado, multicopiado e impresión.
A23: Artículo 19 -. Publicidad distrital.
A24: Artículo 20 -. Cajas menores.
A25: Artículo 21 -. Mantenimiento o reparación de bienes inmuebles o muebles.
A26: Artículo 22 -. Suscripciones.
A27: Artículo 23 -. Servicios públicos.

Sheet 0214-01 IDIPRON
A1: PLAN DE AUSTERIDAD EN EL GASTO 2025-2027
A2: Entidad
A3: Valores en Pesos Corrientes
A4: CONCEPTO (Decreto 062 de 2024) | B4: Posiciones Presupuestales Asociadas (Funcionamiento e Inversión) | C4: LÍNEA BASE | F4: PLAN DE AUSTERIDAD EN EL GASTO 2025-2027 | K4: SEGUIMIENTO RESULTADOS PLAN DE AUSTERIDAD 2025-2027
F5: ESTRATEGIAS 2025-2027 | G5: ACCIONES 2025-2027 | H5: META INDICADOR DE AUSTERIDAD
C6: AÑO 2023 | D6: AÑO 2024 | K6: AÑO 2025 | M6: AÑO 2026 | O6: AÑO 2027
C7: Valor EJECUTADO a 31/12/2023 | D7: Valor EJECUTADO a 31/12/2024 | E7: Resultado Indicador Austeridad | H7: AÑO 2025 | I7: AÑO 2026 | J7: AÑO 2027 | K7: Valor EJECUTADO a 31/12/2025 | L7: Resultado Indicador Austeridad | M7: Valor EJECUTADO a 31/12/2026 | N7: Resultado Indicador Austeridad | O7: Valor EJECUTADO a 31/12/2027 | P7: Resultado Indicador Austeridad
A8: Servicios de personal
A9: Artículo 6°.- Reducción del gasto en CPS profesionales y de apoyo a la gestión. | B9: N.A. Se registran totales. Corresponde con lo reportado en SIDEAP y SIVICOF | E9: =1-(D9/C9) ->  | L9: =1-(K9/D9) ->  | N9: =1-(M9/K9) ->  | P9: =1-(O9/M9) -> 
A10: Artículo 7°.- Horas extras, dominicales y festivos. | L10: =1-(K10/D10) ->  | N10: =1-(M10/K10) -> 
A11: Artículo 8°.- Viáticos y gastos de viaje.
A12: Artículo 9°.- Compensación por vacaciones.
A13: Artículo 10°.- Bono navideño.
A14: Artículo 11 -. Capacitación.
A15: Artículo 12 -. Bienestar.
A16: Artículo 13 -. Eventos y conmemoraciones.
A17: Artículo 14 -. Fondos educativos.
A18: Servicios Administrativos
A19: Artículo 15. Telefonía. | E19: =1-(D19/C19) -> 
A20: Artículo 16 -. Vehículos oficiales.
A21: Artículo 17 -. Adquisición de vehículos y maquinaria.
A22: Artículo 18 -. Fotocopiado, multicopiado e impresión.
A23: Artículo 19 -. Publicidad distrital.
A24: Artículo 20 -. Cajas menores.
A25: Artículo 21 -. Mantenimiento o reparación de bienes inmuebles o muebles.
A26: Artículo 22 -. Suscripciones.
A27: Artículo 23 -. Servicios públicos.

Sheet 0215-01 FUGA
A1: PLAN DE AUSTERIDAD EN EL GASTO 2025-2027
A2: Entidad
A3: Valores en Pesos Corrientes
A4: CONCEPTO (Decreto 062 de 2024) | B4: Posiciones Presupuestales Asociadas (Funcionamiento e Inversión) | C4: LÍNEA BASE | F4: PLAN DE AUSTERIDAD EN EL GASTO 2025-2027 | K4: SEGUIMIENTO RESULTADOS PLAN DE AUSTERIDAD 2025-2027
F5: ESTRATEGIAS 2025-2027 | G5: ACCIONES 2025-2027 | H5: META INDICADOR DE AUSTERIDAD
C6: AÑO 2023 | D6: AÑO 2024 | K6: AÑO 2025 | M6: AÑO 2026 | O6: AÑO 2027
C7: Valor EJECUTADO a 31/12/2023 | D7: Valor EJECUTADO a 31/12/2024 | E7: Resultado Indicador Austeridad | H7: AÑO 2025 | I7: AÑO 2026 | J7: AÑO 2027 | K7: Valor EJECUTADO a 31/12/2025 | L7: Resultado Indicador Austeridad | M7: Valor EJECUTADO a 31/12/2026 | N7: Resultado Indicador Austeridad | O7: Valor EJECUTADO a 31/12/2027 | P7: Resultado Indicador Austeridad
A8: Servicios de personal
A9: Artículo 6°.- Reducción del gasto en CPS profesionales y de apoyo a la gestión. | B9: N.A. Se registran totales. Corresponde con lo reportado en SIDEAP y SIVICOF | E9: =1-(D9/C9) ->  | L9: =1-(K9/D9) ->  | N9: =1-(M9/K9) ->  | P9: =1-(O9/M9) -> 
A10: Artículo 7°.- Horas extras, dominicales y festivos. | L10: =1-(K10/D10) ->  | N10: =1-(M10/K10) -> 
A11: Artículo 8°.- Viáticos y gastos de viaje.
A12: Artículo 9°.- Compensación por vacaciones.
A13: Artículo 10°.- Bono navideño.
A14: Artículo 11 -. Capacitación.
A15: Artículo 12 -. Bienestar.
A16: Artículo 13 -. Eventos y conmemoraciones.
A17: Artículo 14 -. Fondos educativos.
A18: Servicios Administrativos
A19: Artículo 15. Telefonía. | E19: =1-(D19/C19) -> 
A20: Artículo 16 -. Vehículos oficiales.
A21: Artículo 17 -. Adquisición de vehículos y maquinaria.
A22: Artículo 18 -. Fotocopiado, multicopiado e impresión.
A23: Artículo 19 -. Publicidad distrital.
A24: Artículo 20 -. Cajas menores.
A25: Artículo 21 -. Mantenimiento o reparación de bienes inmuebles o muebles.
A26: Artículo 22 -. Suscripciones.
A27: Artículo 23 -. Servicios públicos.

Sheet 0216-01 OFB
A1: PLAN DE AUSTERIDAD EN EL GASTO 2025-2027
A2: Entidad
A3: Valores en Pesos Corrientes
A4: CONCEPTO (Decreto 062 de 2024) | B4: Posiciones Presupuestales Asociadas (Funcionamiento e Inversión) | C4: LÍNEA BASE | F4: PLAN DE AUSTERIDAD EN EL GASTO 2025-2027 | K4: SEGUIMIENTO RESULTADOS PLAN DE AUSTERIDAD 2025-2027
F5: ESTRATEGIAS 2025-2027 | G5: ACCIONES 2025-2027 | H5: META INDICADOR DE AUSTERIDAD
C6: AÑO 2023 | D6: AÑO 2024 | K6: AÑO 2025 | M6: AÑO 2026 | O6: AÑO 2027
C7: Valor EJECUTADO a 31/12/2023 | D7: Valor EJECUTADO a 31/12/2024 | E7: Resultado Indicador Austeridad | H7: AÑO 2025 | I7: AÑO 2026 | J7: AÑO 2027 | K7: Valor EJECUTADO a 31/12/2025 | L7: Resultado Indicador Austeridad | M7: Valor EJECUTADO a 31/12/2026 | N7: Resultado Indicador Austeridad | O7: Valor EJECUTADO a 31/12/2027 | P7: Resultado Indicador Austeridad
A8: Servicios de personal
A9: Artículo 6°.- Reducción del gasto en CPS profesionales y de apoyo a la gestión. | B9: O21202020070272111 Servicios de alquiler o arrendamiento con o sin opción de compra O21202020090393193 Servicios fisioterapéuticos O21202020080282199 Otros servicios jurídicos n.c.p. O21202020080383132 Servicios de soporte en tecnologías de la informac O23011601140000007663 Formación Musical Vamos a la Filarmónica O23011601200000007572 Acciones para alcanzar una sede para La orquesta O23011601210000007691 Bogotá Ciudad Filarmónica O23011601210000007693 Implementación del proyecto de estímulos de la OFB O23011605560000007697 Fortalecimiento de la capacidad institucional para la OFB | C9: 9683410702 | D9: 6588102373 | E9: =1-(D9/C9) -> 0.3196506297 | F9: La entidad contará con el personal estrictamente necesario para garantizar el cumplimiento de sus objetivos y el mantenimiento de su misión, sin comprometer la calidad ni la eficiencia de sus operaciones. | G9: La OFB realizará una evaluación detallada de las necesidades de la entidad, priorizando aquellos contratos de prestación de servicios y apoyo a la gestión esenciales, adicionalmente ajustando los plazos de ejecución. Se mantiene anualmente el ahorro con el incremento del IPC estimado | H9: -0.052 | I9: -0.0323 | J9: -0.03 | L9: =1-(K9/D9) -> 1 | N9: =1-(M9/K9) ->  | P9: =1-(O9/M9) -> 
A10: Artículo 7°.- Horas extras, dominicales y festivos. | B10: O211010100102 Horas extras, dominicales, festivos y recargos | C10: 30313848 | D10: 34113876 | E10: -0.1253561739 | F10: Seran reconicidas las horas extras a funcionarios de los niveles técnico y asistencial (operarios, secretarias, auxiliares), de conformidad con la normatividad vigente y por necesidades del servicio, garantizando el cumplimiento de los objetivos misionales. | G10: La OFB realizará una evaluación detallada de las necesidades de la entidad en cuento a las horas extra del personal tecnico y asistencial, atendiendo los conciertos programados teniendo en cuenta que la mayoria de estos son en horarios nocturnos y fines de semana. | H10: -0.052 | I10: -0.0323 | J10: -0.03 | L10: =1-(K10/D10) -> 1 | N10: =1-(M10/K10) -> 
A11: Artículo 8°.- Viáticos y gastos de viaje. | B11: N/A | C11: 0 | D11: 0 | F11: Los eventos fuera del Distrito capital seran financiadas por invitaciones de los organizadores y gestión de la Dirección General asi no incurrir en gastos al interior de nuestro presupuesto mediante este rubro. | G11: Los eventos fuera del Distrito capital seran financiadas por invitaciones de los organizadores y gestión de la Dirección General asi no incurrir en gastos al interior de nuestro presupuesto mediante este rubro. | H11: -0.052 | I11: -0.0323 | J11: -0.03
A12: Artículo 9°.- Compensación por vacaciones. | B12: O211010300102 Indemnización por vacaciones | C12: 34347795 | D12: 120780941 | E12: -2.516410326 | F12: La entidad fomentará la programación y disfrute oportuno de las vacaciones en el periodo de la vigencia para ser pagadas acorde sin ser acumuladas ni interrumpidas. | G12: Difundir sobre la toma de vacaciones en el periodo establecido para que estas no se acumulen ni se han interrumpidas. | H12: -0.052 | I12: -0.0323 | J12: -0.03 | L12: 1
A13: Artículo 10°.- Bono navideño. | B13: O21202020090191191 Servicios administrativos relacionados con los trabajadores | C13: 9744000 | D13: 11440000 | E13: -0.1740558292 | F13: La entidad continuará implementando su plan de bienestar, otorgando un bono navideño por cada hijo(a) de los funcionarios que cumpla con las siguientes condiciones: -Menores de 13 años. -Menores de 18 años en condición de discapacidad | G13: La entidad continuará implementando su plan de bienestar, otorgando un bono navideño por cada hijo(a) de los funcionarios que cumpla con las siguientes condiciones: -Menores de 13 años. -Menores de 18 años en condición de discapacidad | H13: -0.052 | I13: -0.0323 | J13: -0.03 | L13: 1
A14: Artículo 11 -. Capacitación. | B14: O21202020090292913 Servicios de educación para la formación y el trabajo | C14: 3423651 | D14: 2328750 | E14: 0.3198050853 | F14: Optimizar los recursos destinados a capacitaciones mediante la implementación del Plan Institucional de Capacitación (PIC), priorizando el uso de herramientas virtuales y la gestión de talleres presenciales únicamente cuando sean estratégicamente necesarios y financiados mediante alianzas o invitaciones externas gestionadas por el área correspondiente. | G14: Continuar con la programación anual de capacitaciones basadas en necesidades prioritarias, favoreciendo la modalidad virtual para reducir costos, y gestionar alianzas estratégicas con entidades externas para acceder a talleres presenciales sin incurrir en gastos adicionales. | H14: -0.052 | I14: -0.0323 | J14: -0.03 | L14: 1
A15: Artículo 12 -. Bienestar. | B15: O21202020090191191 Servicios administrativos relacionados con los trajadores O21202020090696990 Otros servicios de diversión y entretenimiento n.c | C15: 143420256 | D15: 170671250 | E15: -0.190007986 | F15: Optimizar los recursos destinados al Plan de Bienestar sin desmejorar las condiciones de los empleados. | G15: Optimizar los recursos destinados al Plan de Bienestar sin desmejorar las condiciones de los empleados. | H15: -0.052 | I15: -0.0323 | J15: -0.03 | L15: 1
A16: Artículo 13 -. Eventos y conmemoraciones. | B16: N/A | C16: 0 | F16: La entidad no destina recursos para eventos y conmemoraciones | G16: N/A | H16: -0.052 | I16: -0.0323 | J16: -0.03
A17: Artículo 14 -. Fondos educativos. | B17: O21202020090292920 Servicios de apoyo educativo | C17: 26729528 | D17: 0 | E17: 1 | F17: La entidad no entregará incentivos de apoyo educativo, toda vez que estas ayudas se administran únicamente a través del FRADEC en las entidades del Distrito. | G17: Difundir y capacitar a los funcionarios sobre los beneficios con el Fondo Educativo Fradec. | H17: -0.052 | I17: -0.0323 | J17: -0.03
A18: Servicios Administrativos
A19: Artículo 15. Telefonía. | B19: O21202020080484120 Servicios de telefonía fija (acceso) O23011601210000007586 Mantenimiento de los equipamientos culturales | C19: 68375470 | D19: 74791546 | E19: =1-(D19/C19) -> -0.09383593268 | F19: La entidad no adquiere ni proyecta adquirir planes de celular para servidores públicos. Se han implementado controles para llamadas internacionales, nacionales y a celulares, permitiéndolas solo para asuntos misionales desde extensiones asignadas. Además, en las cinco sedes principales se utilizan comunicaciones unificadas con tecnología VOZ/IP, centralizando y optimizando las extensiones en un único sistema. | G19: -Mantener la política de no adquirir planes de celular para servidores públicos. -Controlar y monitorear las llamadas internacionales, nacionales y a celulares, autorizándolas únicamente para asuntos misionales. -Garantizar el uso eficiente del sistema de comunicaciones unificadas VOZ/IP en las cinco sedes principales. | H19: -0.052 | I19: -0.0323 | J19: -0.03 | L19: 1
A20: Artículo 16 -. Vehículos oficiales. | B20: O2120202008078714102 Servicio de mantenimiento y reparación de vehículo O2120201003033331101 Gasolina motor corriente | C20: 65383873 | D20: 61019100 | E20: 0.06675610972 | F20: Optimizar el uso de los tres vehículos institucionales mediante controles estrictos de desplazamientos, consumo de combustible y mantenimiento preventivo, priorizando su asignación para asuntos administrativos y misionales esenciales. | G20: - Controlar los desplazamientos mediante planillas y monitoreo del consumo de combustible con chips asociados al proveedor. - Limitar el consumo de combustible estrictamente a lo necesario, ajustándose al presupuesto aprobado. - Realizar mantenimientos preventivos periódicos para garantizar el óptimo estado de los vehículos y evitar costos elevados por daños mayores. - Priorizar el uso de cada vehículo según su asignación funcional y necesidades misionales. | H20: -0.052 | I20: -0.0323 | J20: -0.03 | L20: 1
A21: Artículo 17 -. Adquisición de vehículos y maquinaria. | B21: 0 | C21: 0 | F21: La entidad mantiene la política de no destinar recursos para la adquisición de vehículos y maquinaria, priorizando el uso eficiente y sostenible de los bienes existentes. | G21: N/A | H21: -0.052 | I21: -0.0323 | J21: -0.03
A22: Artículo 18 -. Fotocopiado, multicopiado e impresión. | B22: O23011601210000007691 Bogotá Ciudad Filarmónica O23011601140000007663 Formación Musical Vamos a la Filarmónica | C22: 21922972 | D22: 24700000 | E22: -0.1266720589 | F22: Optimizar los recursos destinados al servicio de fotocopiado e impresión mediante el uso exclusivo de equipos y consumibles para actividades esenciales, priorizando la sostenibilidad y la reducción del consumo de papel, tinta y otros materiales. | G22: - Priorizar el uso de impresoras con dúplex para reducir el consumo de papel, utilizando ambas caras de cada hoja. - Limitar el uso de la impresora a color a trabajos de arte final de la Oficina Asesora de Relacionamiento y Comunicaciones. - Promover la revisión y circulación de documentos a través de medios electrónicos para disminuir la impresión innecesaria. - Utilizar papel reciclado en todos los procesos de impresión y fotocopiado. | H22: -0.052 | I22: -0.0323 | J22: -0.03 | L22: 1
A23: Artículo 19 -. Publicidad distrital. | B23: N/A | C23: 0 | D23: 0 | F23: La Orquesta mantiene la política de austeridad en no realizar contratos para publicidad o propaganda. | G23: N/A | H23: -0.052 | I23: -0.0323 | J23: -0.03
A24: Artículo 20 -. Cajas menores. | B24: O2120201004054516099 Máquinas y material de oficina n.c.p. O2120201004064693999 Accesorios eléctricos n.c.p. O21202020080282130 Servicios de documentación y certificación jurídica O21202020060464112 Servicios de transporte terrestre local regular de pasajeros O2120202008098912197 Servicios de impresión litográfica n.c.p. O21202020080585951 Servicios de copia y reproducción O2120202008078714102 Servicio de mantenimiento y reparación de vehículos automóviles O2120202008078715999 Servicio de mantenimiento y reparación de otros equipos n.c.p. | C24: 8694470 | D24: 5976429 | E24: 0.3126172153 | F24: Garantizar el uso eficiente del fondo de caja menor, limitándolo exclusivamente a gastos imprevistos, urgentes, imprescindibles e inaplazables, de acuerdo con la reglamentación vigente, y fortaleciendo las medidas de austeridad. | G24: Continuar con las medidas de austeridad para reducir el monto total ejecutado en cada vigencia. | H24: -0.052 | I24: -0.0323 | J24: -0.03 | L24: 1
A25: Artículo 21 -. Mantenimiento o reparación de bienes inmuebles o muebles. | B25: O2120202008078711001 Servicio de mantenimiento y reparación de producto O2120202008078711002 Servicio de mantenimiento y reparación de depósito O2120202008078715202 Servicio de mantenimiento y reparación de motores O2120202008078715999 Servicio de mantenimiento y reparación de otros equipos | C25: 14769084 | D25: 4313038 | E25: 0.7079684834 | F25: Optimizar los recursos destinados al mantenimiento de extintores, motobombas, dataloggers y UPS mediante una planificación preventiva y priorización de intervenciones esenciales, garantizando el funcionamiento eficiente y la seguridad operativa. | G25: - Priorizar el mantenimiento de equipos críticos según su importancia para la seguridad y operación de la entidad. | H25: -0.052 | I25: -0.0323 | J25: -0.03 | L25: 1
A26: Artículo 22 -. Suscripciones. | B26: N/A | F26: La Orquesta mantiene la política de austeridad al no realizar suscripciones de ningún tipo, priorizando la asignación de recursos a actividades misionales. | G26: N/A | H26: -0.052 | I26: -0.0323 | J26: -0.03
A27: Artículo 23 -. Servicios públicos. | B27: O23011601210000007586 Mantenimiento de los equipamientos culturales O21202020080686330 Servicios de distribución de agua por tubería (a comisión o por contrato) O21202020090494239 Servicios generales de recolección de otros desechos O21202020080686312 Servicios de distribución de electricidad (a comisión o por contrato) | C27: 106563663 | D27: 100354250 | E27: 0.05826951538 | F27: Gestionar eficientemente los recursos destinados a servicios públicos, minimizando el impacto de los incrementos tarifarios mediante la optimización del consumo | G27: - Monitorear y analizar periódicamente el consumo de servicios públicos para identificar oportunidades de ahorro. - Promover campañas internas para fomentar el uso responsable de energía, agua y otros servicios públicos. | H27: -0.052 | I27: -0.0323 | J27: -0.03 | L27: 1

Sheet 0218-01 JB
A1: PLAN DE AUSTERIDAD EN EL GASTO 2025-2027
A2: Entidad
A3: Valores en Pesos Corrientes
A4: CONCEPTO (Decreto 062 de 2024) | B4: Posiciones Presupuestales Asociadas (Funcionamiento e Inversión) | C4: LÍNEA BASE | F4: PLAN DE AUSTERIDAD EN EL GASTO 2025-2027 | K4: SEGUIMIENTO RESULTADOS PLAN DE AUSTERIDAD 2025-2027
F5: ESTRATEGIAS 2025-2027 | G5: ACCIONES 2025-2027 | H5: META INDICADOR DE AUSTERIDAD
C6: AÑO 2023 | D6: AÑO 2024 | K6: AÑO 2025 | M6: AÑO 2026 | O6: AÑO 2027
C7: Valor EJECUTADO a 31/12/2023 | D7: Valor EJECUTADO a 31/12/2024 | E7: Resultado Indicador Austeridad | H7: AÑO 2025 | I7: AÑO 2026 | J7: AÑO 2027 | K7: Valor EJECUTADO a 31/12/2025 | L7: Resultado Indicador Austeridad | M7: Valor EJECUTADO a 31/12/2026 | N7: Resultado Indicador Austeridad | O7: Valor EJECUTADO a 31/12/2027 | P7: Resultado Indicador Austeridad
A8: Servicios de personal
A9: Artículo 6°.- Reducción del gasto en CPS profesionales y de apoyo a la gestión. | B9: N.A. Se registran totales. Corresponde con lo reportado en SIDEAP y SIVICOF | E9: =1-(D9/C9) ->  | L9: =1-(K9/D9) ->  | N9: =1-(M9/K9) ->  | P9: =1-(O9/M9) -> 
A10: Artículo 7°.- Horas extras, dominicales y festivos. | L10: =1-(K10/D10) ->  | N10: =1-(M10/K10) -> 
A11: Artículo 8°.- Viáticos y gastos de viaje.
A12: Artículo 9°.- Compensación por vacaciones.
A13: Artículo 10°.- Bono navideño.
A14: Artículo 11 -. Capacitación.
A15: Artículo 12 -. Bienestar.
A16: Artículo 13 -. Eventos y conmemoraciones.
A17: Artículo 14 -. Fondos educativos.
A18: Servicios Administrativos
A19: Artículo 15. Telefonía. | E19: =1-(D19/C19) -> 
A20: Artículo 16 -. Vehículos oficiales.
A21: Artículo 17 -. Adquisición de vehículos y maquinaria.
A22: Artículo 18 -. Fotocopiado, multicopiado e impresión.
A23: Artículo 19 -. Publicidad distrital.
A24: Artículo 20 -. Cajas menores.
A25: Artículo 21 -. Mantenimiento o reparación de bienes inmuebles o muebles.
A26: Artículo 22 -. Suscripciones.
A27: Artículo 23 -. Servicios públicos.

Sheet 0219-01 IDEP
A1: PLAN DE AUSTERIDAD EN EL GASTO 2025-2027
A2: Entidad
A3: Valores en Pesos Corrientes
A4: CONCEPTO (Decreto 062 de 2024) | B4: Posiciones Presupuestales Asociadas (Funcionamiento e Inversión) | C4: LÍNEA BASE | F4: PLAN DE AUSTERIDAD EN EL GASTO 2025-2027 | K4: SEGUIMIENTO RESULTADOS PLAN DE AUSTERIDAD 2025-2027
F5: ESTRATEGIAS 2025-2027 | G5: ACCIONES 2025-2027 | H5: META INDICADOR DE AUSTERIDAD
C6: AÑO 2023 | D6: AÑO 2024 | K6: AÑO 2025 | M6: AÑO 2026 | O6: AÑO 2027
C7: Valor EJECUTADO a 31/12/2023 | D7: Valor EJECUTADO a 31/12/2024 | E7: Resultado Indicador Austeridad | H7: AÑO 2025 | I7: AÑO 2026 | J7: AÑO 2027 | K7: Valor EJECUTADO a 31/12/2025 | L7: Resultado Indicador Austeridad | M7: Valor EJECUTADO a 31/12/2026 | N7: Resultado Indicador Austeridad | O7: Valor EJECUTADO a 31/12/2027 | P7: Resultado Indicador Austeridad
A8: Servicios de personal
A9: Artículo 6°.- Reducción del gasto en CPS profesionales y de apoyo a la gestión. | B9: N.A. Se registran totales. Corresponde con lo reportado en SIDEAP y SIVICOF | E9: =1-(D9/C9) ->  | L9: =1-(K9/D9) ->  | N9: =1-(M9/K9) ->  | P9: =1-(O9/M9) -> 
A10: Artículo 7°.- Horas extras, dominicales y festivos. | L10: =1-(K10/D10) ->  | N10: =1-(M10/K10) -> 
A11: Artículo 8°.- Viáticos y gastos de viaje.
A12: Artículo 9°.- Compensación por vacaciones.
A13: Artículo 10°.- Bono navideño.
A14: Artículo 11 -. Capacitación.
A15: Artículo 12 -. Bienestar.
A16: Artículo 13 -. Eventos y conmemoraciones.
A17: Artículo 14 -. Fondos educativos.
A18: Servicios Administrativos
A19: Artículo 15. Telefonía. | E19: =1-(D19/C19) -> 
A20: Artículo 16 -. Vehículos oficiales.
A21: Artículo 17 -. Adquisición de vehículos y maquinaria.
A22: Artículo 18 -. Fotocopiado, multicopiado e impresión.
A23: Artículo 19 -. Publicidad distrital.
A24: Artículo 20 -. Cajas menores.
A25: Artículo 21 -. Mantenimiento o reparación de bienes inmuebles o muebles.
A26: Artículo 22 -. Suscripciones.
A27: Artículo 23 -. Servicios públicos.

Sheet 0220-01 IDPAC
A1: PLAN DE AUSTERIDAD EN EL GASTO 2025-2027
A2: Entidad
A3: Valores en Pesos Corrientes
A4: CONCEPTO (Decreto 062 de 2024) | B4: Posiciones Presupuestales Asociadas (Funcionamiento e Inversión) | C4: LÍNEA BASE | F4: PLAN DE AUSTERIDAD EN EL GASTO 2025-2027 | K4: SEGUIMIENTO RESULTADOS PLAN DE AUSTERIDAD 2025-2027
F5: ESTRATEGIAS 2025-2027 | G5: ACCIONES 2025-2027 | H5: META INDICADOR DE AUSTERIDAD
C6: AÑO 2023 | D6: AÑO 2024 | K6: AÑO 2025 | M6: AÑO 2026 | O6: AÑO 2027
C7: Valor EJECUTADO a 31/12/2023 | D7: Valor EJECUTADO a 31/12/2024 | E7: Resultado Indicador Austeridad | H7: AÑO 2025 | I7: AÑO 2026 | J7: AÑO 2027 | K7: Valor EJECUTADO a 31/12/2025 | L7: Resultado Indicador Austeridad | M7: Valor EJECUTADO a 31/12/2026 | N7: Resultado Indicador Austeridad | O7: Valor EJECUTADO a 31/12/2027 | P7: Resultado Indicador Austeridad
A8: Servicios de personal
A9: Artículo 6°.- Reducción del gasto en CPS profesionales y de apoyo a la gestión. | B9: N.A. Se registran totales. Corresponde con lo reportado en SIDEAP y SIVICOF | E9: =1-(D9/C9) ->  | L9: =1-(K9/D9) ->  | N9: =1-(M9/K9) ->  | P9: =1-(O9/M9) -> 
A10: Artículo 7°.- Horas extras, dominicales y festivos. | L10: =1-(K10/D10) ->  | N10: =1-(M10/K10) -> 
A11: Artículo 8°.- Viáticos y gastos de viaje.
A12: Artículo 9°.- Compensación por vacaciones.
A13: Artículo 10°.- Bono navideño.
A14: Artículo 11 -. Capacitación.
A15: Artículo 12 -. Bienestar.
A16: Artículo 13 -. Eventos y conmemoraciones.
A17: Artículo 14 -. Fondos educativos.
A18: Servicios Administrativos
A19: Artículo 15. Telefonía. | E19: =1-(D19/C19) -> 
A20: Artículo 16 -. Vehículos oficiales.
A21: Artículo 17 -. Adquisición de vehículos y maquinaria.
A22: Artículo 18 -. Fotocopiado, multicopiado e impresión.
A23: Artículo 19 -. Publicidad distrital.
A24: Artículo 20 -. Cajas menores.
A25: Artículo 21 -. Mantenimiento o reparación de bienes inmuebles o muebles.
A26: Artículo 22 -. Suscripciones.
A27: Artículo 23 -. Servicios públicos.

Sheet 0221-01 IDT
A1: PLAN DE AUSTERIDAD EN EL GASTO 2025-2027
A2: Entidad
A3: Valores en Pesos Corrientes
A4: CONCEPTO (Decreto 062 de 2024) | B4: Posiciones Presupuestales Asociadas (Funcionamiento e Inversión) | C4: LÍNEA BASE | F4: PLAN DE AUSTERIDAD EN EL GASTO 2025-2027 | K4: SEGUIMIENTO RESULTADOS PLAN DE AUSTERIDAD 2025-2027
F5: ESTRATEGIAS 2025-2027 | G5: ACCIONES 2025-2027 | H5: META INDICADOR DE AUSTERIDAD
C6: AÑO 2023 | D6: AÑO 2024 | K6: AÑO 2025 | M6: AÑO 2026 | O6: AÑO 2027
C7: Valor EJECUTADO a 31/12/2023 | D7: Valor EJECUTADO a 31/12/2024 | E7: Resultado Indicador Austeridad | H7: AÑO 2025 | I7: AÑO 2026 | J7: AÑO 2027 | K7: Valor EJECUTADO a 31/12/2025 | L7: Resultado Indicador Austeridad | M7: Valor EJECUTADO a 31/12/2026 | N7: Resultado Indicador Austeridad | O7: Valor EJECUTADO a 31/12/2027 | P7: Resultado Indicador Austeridad
A8: Servicios de personal
A9: Artículo 6°.- Reducción del gasto en CPS profesionales y de apoyo a la gestión. | B9: N.A. Se registran totales. Corresponde con lo reportado en SIDEAP y SIVICOF | E9: =1-(D9/C9) ->  | L9: =1-(K9/D9) ->  | N9: =1-(M9/K9) ->  | P9: =1-(O9/M9) -> 
A10: Artículo 7°.- Horas extras, dominicales y festivos. | L10: =1-(K10/D10) ->  | N10: =1-(M10/K10) -> 
A11: Artículo 8°.- Viáticos y gastos de viaje.
A12: Artículo 9°.- Compensación por vacaciones.
A13: Artículo 10°.- Bono navideño.
A14: Artículo 11 -. Capacitación.
A15: Artículo 12 -. Bienestar.
A16: Artículo 13 -. Eventos y conmemoraciones.
A17: Artículo 14 -. Fondos educativos.
A18: Servicios Administrativos
A19: Artículo 15. Telefonía. | E19: =1-(D19/C19) -> 
A20: Artículo 16 -. Vehículos oficiales.
A21: Artículo 17 -. Adquisición de vehículos y maquinaria.
A22: Artículo 18 -. Fotocopiado, multicopiado e impresión.
A23: Artículo 19 -. Publicidad distrital.
A24: Artículo 20 -. Cajas menores.
A25: Artículo 21 -. Mantenimiento o reparación de bienes inmuebles o muebles.
A26: Artículo 22 -. Suscripciones.
A27: Artículo 23 -. Servicios públicos.

Sheet 0221-02 IDT
A1: PLAN DE AUSTERIDAD EN EL GASTO 2025-2027
A2: Entidad
A3: Valores en Pesos Corrientes
A4: CONCEPTO (Decreto 062 de 2024) | B4: Posiciones Presupuestales Asociadas (Funcionamiento e Inversión) | C4: LÍNEA BASE | F4: PLAN DE AUSTERIDAD EN EL GASTO 2025-2027 | K4: SEGUIMIENTO RESULTADOS PLAN DE AUSTERIDAD 2025-2027
F5: ESTRATEGIAS 2025-2027 | G5: ACCIONES 2025-2027 | H5: META INDICADOR DE AUSTERIDAD
C6: AÑO 2023 | D6: AÑO 2024 | K6: AÑO 2025 | M6: AÑO 2026 | O6: AÑO 2027
C7: Valor EJECUTADO a 31/12/2023 | D7: Valor EJECUTADO a 31/12/2024 | E7: Resultado Indicador Austeridad | H7: AÑO 2025 | I7: AÑO 2026 | J7: AÑO 2027 | K7: Valor EJECUTADO a 31/12/2025 | L7: Resultado Indicador Austeridad | M7: Valor EJECUTADO a 31/12/2026 | N7: Resultado Indicador Austeridad | O7: Valor EJECUTADO a 31/12/2027 | P7: Resultado Indicador Austeridad
A8: Servicios de personal
A9: Artículo 6°.- Reducción del gasto en CPS profesionales y de apoyo a la gestión. | B9: N.A. Se registran totales. Corresponde con lo reportado en SIDEAP y SIVICOF | E9: =1-(D9/C9) ->  | L9: =1-(K9/D9) ->  | N9: =1-(M9/K9) ->  | P9: =1-(O9/M9) -> 
A10: Artículo 7°.- Horas extras, dominicales y festivos. | L10: =1-(K10/D10) ->  | N10: =1-(M10/K10) -> 
A11: Artículo 8°.- Viáticos y gastos de viaje.
A12: Artículo 9°.- Compensación por vacaciones.
A13: Artículo 10°.- Bono navideño.
A14: Artículo 11 -. Capacitación.
A15: Artículo 12 -. Bienestar.
A16: Artículo 13 -. Eventos y conmemoraciones.
A17: Artículo 14 -. Fondos educativos.
A18: Servicios Administrativos
A19: Artículo 15. Telefonía. | E19: =1-(D19/C19) -> 
A20: Artículo 16 -. Vehículos oficiales.
A21: Artículo 17 -. Adquisición de vehículos y maquinaria.
A22: Artículo 18 -. Fotocopiado, multicopiado e impresión.
A23: Artículo 19 -. Publicidad distrital.
A24: Artículo 20 -. Cajas menores.
A25: Artículo 21 -. Mantenimiento o reparación de bienes inmuebles o muebles.
A26: Artículo 22 -. Suscripciones.
A27: Artículo 23 -. Servicios públicos.

Sheet 0222-01 IDARTES
A1: PLAN DE AUSTERIDAD EN EL GASTO 2025-2027
A2: Entidad
A3: Valores en Pesos Corrientes
A4: CONCEPTO (Decreto 062 de 2024) | B4: Posiciones Presupuestales Asociadas (Funcionamiento e Inversión) | C4: LÍNEA BASE | F4: PLAN DE AUSTERIDAD EN EL GASTO 2025-2027 | K4: SEGUIMIENTO RESULTADOS PLAN DE AUSTERIDAD 2025-2027
F5: ESTRATEGIAS 2025-2027 | G5: ACCIONES 2025-2027 | H5: META INDICADOR DE AUSTERIDAD
C6: AÑO 2023 | D6: AÑO 2024 | K6: AÑO 2025 | M6: AÑO 2026 | O6: AÑO 2027
C7: Valor EJECUTADO a 31/12/2023 | D7: Valor EJECUTADO a 31/12/2024 | E7: Resultado Indicador Austeridad | H7: AÑO 2025 | I7: AÑO 2026 | J7: AÑO 2027 | K7: Valor EJECUTADO a 31/12/2025 | L7: Resultado Indicador Austeridad | M7: Valor EJECUTADO a 31/12/2026 | N7: Resultado Indicador Austeridad | O7: Valor EJECUTADO a 31/12/2027 | P7: Resultado Indicador Austeridad
A8: Servicios de personal
A9: Artículo 6°.- Reducción del gasto en CPS profesionales y de apoyo a la gestión. | B9: N.A. Se registran totales. Corresponde con lo reportado en SIDEAP y SIVICOF | E9: =1-(D9/C9) ->  | L9: =1-(K9/D9) ->  | N9: =1-(M9/K9) ->  | P9: =1-(O9/M9) -> 
A10: Artículo 7°.- Horas extras, dominicales y festivos. | L10: =1-(K10/D10) ->  | N10: =1-(M10/K10) -> 
A11: Artículo 8°.- Viáticos y gastos de viaje.
A12: Artículo 9°.- Compensación por vacaciones.
A13: Artículo 10°.- Bono navideño.
A14: Artículo 11 -. Capacitación.
A15: Artículo 12 -. Bienestar.
A16: Artículo 13 -. Eventos y conmemoraciones.
A17: Artículo 14 -. Fondos educativos.
A18: Servicios Administrativos
A19: Artículo 15. Telefonía. | E19: =1-(D19/C19) -> 
A20: Artículo 16 -. Vehículos oficiales.
A21: Artículo 17 -. Adquisición de vehículos y maquinaria.
A22: Artículo 18 -. Fotocopiado, multicopiado e impresión.
A23: Artículo 19 -. Publicidad distrital.
A24: Artículo 20 -. Cajas menores.
A25: Artículo 21 -. Mantenimiento o reparación de bienes inmuebles o muebles.
A26: Artículo 22 -. Suscripciones.
A27: Artículo 23 -. Servicios públicos.

Sheet 0226-01 UAECD
A1: PLAN DE AUSTERIDAD EN EL GASTO 2025-2027
A2: Entidad
A3: Valores en Pesos Corrientes
A4: CONCEPTO (Decreto 062 de 2024) | B4: Posiciones Presupuestales Asociadas (Funcionamiento e Inversión) | C4: LÍNEA BASE | F4: PLAN DE AUSTERIDAD EN EL GASTO 2025-2027 | K4: SEGUIMIENTO RESULTADOS PLAN DE AUSTERIDAD 2025-2027
F5: ESTRATEGIAS 2025-2027 | G5: ACCIONES 2025-2027 | H5: META INDICADOR DE AUSTERIDAD
C6: AÑO 2023 | D6: AÑO 2024 | K6: AÑO 2025 | M6: AÑO 2026 | O6: AÑO 2027
C7: Valor EJECUTADO a 31/12/2023 | D7: Valor EJECUTADO a 31/12/2024 | E7: Resultado Indicador Austeridad | H7: AÑO 2025 | I7: AÑO 2026 | J7: AÑO 2027 | K7: Valor EJECUTADO a 31/12/2025 | L7: Resultado Indicador Austeridad | M7: Valor EJECUTADO a 31/12/2026 | N7: Resultado Indicador Austeridad | O7: Valor EJECUTADO a 31/12/2027 | P7: Resultado Indicador Austeridad
A8: Servicios de personal
A9: Artículo 6°.- Reducción del gasto en CPS profesionales y de apoyo a la gestión. | B9: N.A. Se registran totales. Corresponde con lo reportado en SIDEAP y SIVICOF | C9: 20000 | D9: 22000 | E9: =1-(D9/C9) -> -0.1 | F9: fsef | G9: gdsfgsg | H9: 0.01 | K9: 23000 | L9: =1-(K9/D9) -> -0.04545454545 | N9: =1-(M9/K9) -> 1 | P9: =1-(O9/M9) -> 
A10: Artículo 7°.- Horas extras, dominicales y festivos. | L10: =1-(K10/D10) ->  | N10: =1-(M10/K10) -> 
A11: Artículo 8°.- Viáticos y gastos de viaje.
A12: Artículo 9°.- Compensación por vacaciones.
A13: Artículo 10°.- Bono navideño.
A14: Artículo 11 -. Capacitación.
A15: Artículo 12 -. Bienestar.
A16: Artículo 13 -. Eventos y conmemoraciones.
A17: Artículo 14 -. Fondos educativos.
A18: Servicios Administrativos
A19: Artículo 15. Telefonía. | E19: =1-(D19/C19) -> 
A20: Artículo 16 -. Vehículos oficiales.
A21: Artículo 17 -. Adquisición de vehículos y maquinaria.
A22: Artículo 18 -. Fotocopiado, multicopiado e impresión.
A23: Artículo 19 -. Publicidad distrital.
A24: Artículo 20 -. Cajas menores.
A25: Artículo 21 -. Mantenimiento o reparación de bienes inmuebles o muebles.
A26: Artículo 22 -. Suscripciones.
A27: Artículo 23 -. Servicios públicos.

Sheet 0227-01 UAERMV
A1: PLAN DE AUSTERIDAD EN EL GASTO 2025-2027
A2: Entidad
A3: Valores en Pesos Corrientes
A4: CONCEPTO (Decreto 062 de 2024) | B4: Posiciones Presupuestales Asociadas (Funcionamiento e Inversión) | C4: LÍNEA BASE | F4: PLAN DE AUSTERIDAD EN EL GASTO 2025-2027 | K4: SEGUIMIENTO RESULTADOS PLAN DE AUSTERIDAD 2025-2027
F5: ESTRATEGIAS 2025-2027 | G5: ACCIONES 2025-2027 | H5: META INDICADOR DE AUSTERIDAD
C6: AÑO 2023 | D6: AÑO 2024 | K6: AÑO 2025 | M6: AÑO 2026 | O6: AÑO 2027
C7: Valor EJECUTADO a 31/12/2023 | D7: Valor EJECUTADO a 31/12/2024 | E7: Resultado Indicador Austeridad | H7: AÑO 2025 | I7: AÑO 2026 | J7: AÑO 2027 | K7: Valor EJECUTADO a 31/12/2025 | L7: Resultado Indicador Austeridad | M7: Valor EJECUTADO a 31/12/2026 | N7: Resultado Indicador Austeridad | O7: Valor EJECUTADO a 31/12/2027 | P7: Resultado Indicador Austeridad
A8: Servicios de personal
A9: Artículo 6°.- Reducción del gasto en CPS profesionales y de apoyo a la gestión. | B9: N.A. Se registran totales. Corresponde con lo reportado en SIDEAP y SIVICOF | E9: =1-(D9/C9) ->  | L9: =1-(K9/D9) ->  | N9: =1-(M9/K9) ->  | P9: =1-(O9/M9) -> 
A10: Artículo 7°.- Horas extras, dominicales y festivos. | L10: =1-(K10/D10) ->  | N10: =1-(M10/K10) -> 
A11: Artículo 8°.- Viáticos y gastos de viaje.
A12: Artículo 9°.- Compensación por vacaciones.
A13: Artículo 10°.- Bono navideño.
A14: Artículo 11 -. Capacitación.
A15: Artículo 12 -. Bienestar.
A16: Artículo 13 -. Eventos y conmemoraciones.
A17: Artículo 14 -. Fondos educativos.
A18: Servicios Administrativos
A19: Artículo 15. Telefonía. | E19: =1-(D19/C19) -> 
A20: Artículo 16 -. Vehículos oficiales.
A21: Artículo 17 -. Adquisición de vehículos y maquinaria.
A22: Artículo 18 -. Fotocopiado, multicopiado e impresión.
A23: Artículo 19 -. Publicidad distrital.
A24: Artículo 20 -. Cajas menores.
A25: Artículo 21 -. Mantenimiento o reparación de bienes inmuebles o muebles.
A26: Artículo 22 -. Suscripciones.
A27: Artículo 23 -. Servicios públicos.

Sheet 0228-01 UAESP
A1: PLAN DE AUSTERIDAD EN EL GASTO 2025-2027
A2: Entidad
A3: Valores en Pesos Corrientes
A4: CONCEPTO (Decreto 062 de 2024) | B4: Posiciones Presupuestales Asociadas (Funcionamiento e Inversión) | C4: LÍNEA BASE | F4: PLAN DE AUSTERIDAD EN EL GASTO 2025-2027 | K4: SEGUIMIENTO RESULTADOS PLAN DE AUSTERIDAD 2025-2027
F5: ESTRATEGIAS 2025-2027 | G5: ACCIONES 2025-2027 | H5: META INDICADOR DE AUSTERIDAD
C6: AÑO 2023 | D6: AÑO 2024 | K6: AÑO 2025 | M6: AÑO 2026 | O6: AÑO 2027
C7: Valor EJECUTADO a 31/12/2023 | D7: Valor EJECUTADO a 31/12/2024 | E7: Resultado Indicador Austeridad | H7: AÑO 2025 | I7: AÑO 2026 | J7: AÑO 2027 | K7: Valor EJECUTADO a 31/12/2025 | L7: Resultado Indicador Austeridad | M7: Valor EJECUTADO a 31/12/2026 | N7: Resultado Indicador Austeridad | O7: Valor EJECUTADO a 31/12/2027 | P7: Resultado Indicador Austeridad
A8: Servicios de personal
A9: Artículo 6°.- Reducción del gasto en CPS profesionales y de apoyo a la gestión. | B9: N.A. Se registran totales. Corresponde con lo reportado en SIDEAP y SIVICOF | E9: =1-(D9/C9) ->  | L9: =1-(K9/D9) ->  | N9: =1-(M9/K9) ->  | P9: =1-(O9/M9) -> 
A10: Artículo 7°.- Horas extras, dominicales y festivos. | L10: =1-(K10/D10) ->  | N10: =1-(M10/K10) -> 
A11: Artículo 8°.- Viáticos y gastos de viaje.
A12: Artículo 9°.- Compensación por vacaciones.
A13: Artículo 10°.- Bono navideño.
A14: Artículo 11 -. Capacitación.
A15: Artículo 12 -. Bienestar.
A16: Artículo 13 -. Eventos y conmemoraciones.
A17: Artículo 14 -. Fondos educativos.
A18: Servicios Administrativos
A19: Artículo 15. Telefonía. | E19: =1-(D19/C19) -> 
A20: Artículo 16 -. Vehículos oficiales.
A21: Artículo 17 -. Adquisición de vehículos y maquinaria.
A22: Artículo 18 -. Fotocopiado, multicopiado e impresión.
A23: Artículo 19 -. Publicidad distrital.
A24: Artículo 20 -. Cajas menores.
A25: Artículo 21 -. Mantenimiento o reparación de bienes inmuebles o muebles.
A26: Artículo 22 -. Suscripciones.
A27: Artículo 23 -. Servicios públicos.

Sheet 0229-01 IDPYBA
A1: PLAN DE AUSTERIDAD EN EL GASTO 2025-2027
A2: Entidad
A3: Valores en Pesos Corrientes
A4: CONCEPTO (Decreto 062 de 2024) | B4: Posiciones Presupuestales Asociadas (Funcionamiento e Inversión) | C4: LÍNEA BASE | F4: PLAN DE AUSTERIDAD EN EL GASTO 2025-2027 | K4: SEGUIMIENTO RESULTADOS PLAN DE AUSTERIDAD 2025-2027
F5: ESTRATEGIAS 2025-2027 | G5: ACCIONES 2025-2027 | H5: META INDICADOR DE AUSTERIDAD
C6: AÑO 2023 | D6: AÑO 2024 | K6: AÑO 2025 | M6: AÑO 2026 | O6: AÑO 2027
C7: Valor EJECUTADO a 31/12/2023 | D7: Valor EJECUTADO a 31/12/2024 | E7: Resultado Indicador Austeridad | H7: AÑO 2025 | I7: AÑO 2026 | J7: AÑO 2027 | K7: Valor EJECUTADO a 31/12/2025 | L7: Resultado Indicador Austeridad | M7: Valor EJECUTADO a 31/12/2026 | N7: Resultado Indicador Austeridad | O7: Valor EJECUTADO a 31/12/2027 | P7: Resultado Indicador Austeridad
A8: Servicios de personal
A9: Artículo 6°.- Reducción del gasto en CPS profesionales y de apoyo a la gestión. | B9: N.A. Se registran totales. Corresponde con lo reportado en SIDEAP y SIVICOF | E9: =1-(D9/C9) ->  | L9: =1-(K9/D9) ->  | N9: =1-(M9/K9) ->  | P9: =1-(O9/M9) -> 
A10: Artículo 7°.- Horas extras, dominicales y festivos. | L10: =1-(K10/D10) ->  | N10: =1-(M10/K10) -> 
A11: Artículo 8°.- Viáticos y gastos de viaje.
A12: Artículo 9°.- Compensación por vacaciones.
A13: Artículo 10°.- Bono navideño.
A14: Artículo 11 -. Capacitación.
A15: Artículo 12 -. Bienestar.
A16: Artículo 13 -. Eventos y conmemoraciones.
A17: Artículo 14 -. Fondos educativos.
A18: Servicios Administrativos
A19: Artículo 15. Telefonía. | E19: =1-(D19/C19) -> 
A20: Artículo 16 -. Vehículos oficiales.
A21: Artículo 17 -. Adquisición de vehículos y maquinaria.
A22: Artículo 18 -. Fotocopiado, multicopiado e impresión.
A23: Artículo 19 -. Publicidad distrital.
A24: Artículo 20 -. Cajas menores.
A25: Artículo 21 -. Mantenimiento o reparación de bienes inmuebles o muebles.
A26: Artículo 22 -. Suscripciones.
A27: Artículo 23 -. Servicios públicos.

Sheet 0230-01 UD
A1: PLAN DE AUSTERIDAD EN EL GASTO 2025-2027
A2: Entidad
A3: Valores en Pesos Corrientes
A4: CONCEPTO (Decreto 062 de 2024) | B4: Posiciones Presupuestales Asociadas (Funcionamiento e Inversión) | C4: LÍNEA BASE | F4: PLAN DE AUSTERIDAD EN EL GASTO 2025-2027 | K4: SEGUIMIENTO RESULTADOS PLAN DE AUSTERIDAD 2025-2027
F5: ESTRATEGIAS 2025-2027 | G5: ACCIONES 2025-2027 | H5: META INDICADOR DE AUSTERIDAD
C6: AÑO 2023 | D6: AÑO 2024 | K6: AÑO 2025 | M6: AÑO 2026 | O6: AÑO 2027
C7: Valor EJECUTADO a 31/12/2023 | D7: Valor EJECUTADO a 31/12/2024 | E7: Resultado Indicador Austeridad | H7: AÑO 2025 | I7: AÑO 2026 | J7: AÑO 2027 | K7: Valor EJECUTADO a 31/12/2025 | L7: Resultado Indicador Austeridad | M7: Valor EJECUTADO a 31/12/2026 | N7: Resultado Indicador Austeridad | O7: Valor EJECUTADO a 31/12/2027 | P7: Resultado Indicador Austeridad
A8: Servicios de personal
A9: Artículo 6°.- Reducción del gasto en CPS profesionales y de apoyo a la gestión. | B9: N.A. Se registran totales. Corresponde con lo reportado en SIDEAP y SIVICOF | E9: =1-(D9/C9) ->  | L9: =1-(K9/D9) ->  | N9: =1-(M9/K9) ->  | P9: =1-(O9/M9) -> 
A10: Artículo 7°.- Horas extras, dominicales y festivos. | L10: =1-(K10/D10) ->  | N10: =1-(M10/K10) -> 
A11: Artículo 8°.- Viáticos y gastos de viaje.
A12: Artículo 9°.- Compensación por vacaciones.
A13: Artículo 10°.- Bono navideño.
A14: Artículo 11 -. Capacitación.
A15: Artículo 12 -. Bienestar.
A16: Artículo 13 -. Eventos y conmemoraciones.
A17: Artículo 14 -. Fondos educativos.
A18: Servicios Administrativos
A19: Artículo 15. Telefonía. | E19: =1-(D19/C19) -> 
A20: Artículo 16 -. Vehículos oficiales.
A21: Artículo 17 -. Adquisición de vehículos y maquinaria.
A22: Artículo 18 -. Fotocopiado, multicopiado e impresión.
A23: Artículo 19 -. Publicidad distrital.
A24: Artículo 20 -. Cajas menores.
A25: Artículo 21 -. Mantenimiento o reparación de bienes inmuebles o muebles.
A26: Artículo 22 -. Suscripciones.
A27: Artículo 23 -. Servicios públicos.

Sheet 0235-01 CONTRALORIA
A1: PLAN DE AUSTERIDAD EN EL GASTO 2025-2027
A2: Entidad
A3: Valores en Pesos Corrientes
A4: CONCEPTO (Decreto 062 de 2024) | B4: Posiciones Presupuestales Asociadas (Funcionamiento e Inversión) | C4: LÍNEA BASE | F4: PLAN DE AUSTERIDAD EN EL GASTO 2025-2027 | K4: SEGUIMIENTO RESULTADOS PLAN DE AUSTERIDAD 2025-2027
F5: ESTRATEGIAS 2025-2027 | G5: ACCIONES 2025-2027 | H5: META INDICADOR DE AUSTERIDAD
C6: AÑO 2023 | D6: AÑO 2024 | K6: AÑO 2025 | M6: AÑO 2026 | O6: AÑO 2027
C7: Valor EJECUTADO a 31/12/2023 | D7: Valor EJECUTADO a 31/12/2024 | E7: Resultado Indicador Austeridad | H7: AÑO 2025 | I7: AÑO 2026 | J7: AÑO 2027 | K7: Valor EJECUTADO a 31/12/2025 | L7: Resultado Indicador Austeridad | M7: Valor EJECUTADO a 31/12/2026 | N7: Resultado Indicador Austeridad | O7: Valor EJECUTADO a 31/12/2027 | P7: Resultado Indicador Austeridad
A8: Servicios de personal
A9: Artículo 6°.- Reducción del gasto en CPS profesionales y de apoyo a la gestión. | B9: N.A. Se registran totales. Corresponde con lo reportado en SIDEAP y SIVICOF | E9: =1-(D9/C9) ->  | L9: =1-(K9/D9) ->  | N9: =1-(M9/K9) ->  | P9: =1-(O9/M9) -> 
A10: Artículo 7°.- Horas extras, dominicales y festivos. | L10: =1-(K10/D10) ->  | N10: =1-(M10/K10) -> 
A11: Artículo 8°.- Viáticos y gastos de viaje.
A12: Artículo 9°.- Compensación por vacaciones.
A13: Artículo 10°.- Bono navideño.
A14: Artículo 11 -. Capacitación.
A15: Artículo 12 -. Bienestar.
A16: Artículo 13 -. Eventos y conmemoraciones.
A17: Artículo 14 -. Fondos educativos.
A18: Servicios Administrativos
A19: Artículo 15. Telefonía. | E19: =1-(D19/C19) -> 
A20: Artículo 16 -. Vehículos oficiales.
A21: Artículo 17 -. Adquisición de vehículos y maquinaria.
A22: Artículo 18 -. Fotocopiado, multicopiado e impresión.
A23: Artículo 19 -. Publicidad distrital.
A24: Artículo 20 -. Cajas menores.
A25: Artículo 21 -. Mantenimiento o reparación de bienes inmuebles o muebles.
A26: Artículo 22 -. Suscripciones.
A27: Artículo 23 -. Servicios públicos.

Sheet 0240-01 LOTERIA
A1: PLAN DE AUSTERIDAD EN EL GASTO 2025-2027
A2: Entidad
A3: Valores en Pesos Corrientes
A4: CONCEPTO (Decreto 062 de 2024) | B4: Posiciones Presupuestales Asociadas (Funcionamiento e Inversión) | C4: LÍNEA BASE | F4: PLAN DE AUSTERIDAD EN EL GASTO 2025-2027 | K4: SEGUIMIENTO RESULTADOS PLAN DE AUSTERIDAD 2025-2027
F5: ESTRATEGIAS 2025-2027 | G5: ACCIONES 2025-2027 | H5: META INDICADOR DE AUSTERIDAD
C6: AÑO 2023 | D6: AÑO 2024 | K6: AÑO 2025 | M6: AÑO 2026 | O6: AÑO 2027
C7: Valor EJECUTADO a 31/12/2023 | D7: Valor EJECUTADO a 31/12/2024 | E7: Resultado Indicador Austeridad | H7: AÑO 2025 | I7: AÑO 2026 | J7: AÑO 2027 | K7: Valor EJECUTADO a 31/12/2025 | L7: Resultado Indicador Austeridad | M7: Valor EJECUTADO a 31/12/2026 | N7: Resultado Indicador Austeridad | O7: Valor EJECUTADO a 31/12/2027 | P7: Resultado Indicador Austeridad
A8: Servicios de personal
A9: Artículo 6°.- Reducción del gasto en CPS profesionales y de apoyo a la gestión. | B9: N.A. Se registran totales. Corresponde con lo reportado en SIDEAP y SIVICOF | E9: =1-(D9/C9) ->  | L9: =1-(K9/D9) ->  | N9: =1-(M9/K9) ->  | P9: =1-(O9/M9) -> 
A10: Artículo 7°.- Horas extras, dominicales y festivos. | L10: =1-(K10/D10) ->  | N10: =1-(M10/K10) -> 
A11: Artículo 8°.- Viáticos y gastos de viaje.
A12: Artículo 9°.- Compensación por vacaciones.
A13: Artículo 10°.- Bono navideño.
A14: Artículo 11 -. Capacitación.
A15: Artículo 12 -. Bienestar.
A16: Artículo 13 -. Eventos y conmemoraciones.
A17: Artículo 14 -. Fondos educativos.
A18: Servicios Administrativos
A19: Artículo 15. Telefonía. | E19: =1-(D19/C19) -> 
A20: Artículo 16 -. Vehículos oficiales.
A21: Artículo 17 -. Adquisición de vehículos y maquinaria.
A22: Artículo 18 -. Fotocopiado, multicopiado e impresión.
A23: Artículo 19 -. Publicidad distrital.
A24: Artículo 20 -. Cajas menores.
A25: Artículo 21 -. Mantenimiento o reparación de bienes inmuebles o muebles.
A26: Artículo 22 -. Suscripciones.
A27: Artículo 23 -. Servicios públicos.

Sheet 0260-01 CANAL CAPITAL
A1: PLAN DE AUSTERIDAD EN EL GASTO 2025-2027
A2: Entidad
A3: Valores en Pesos Corrientes
A4: CONCEPTO (Decreto 062 de 2024) | B4: Posiciones Presupuestales Asociadas (Funcionamiento e Inversión) | C4: LÍNEA BASE | F4: PLAN DE AUSTERIDAD EN EL GASTO 2025-2027 | K4: SEGUIMIENTO RESULTADOS PLAN DE AUSTERIDAD 2025-2027
F5: ESTRATEGIAS 2025-2027 | G5: ACCIONES 2025-2027 | H5: META INDICADOR DE AUSTERIDAD
C6: AÑO 2023 | D6: AÑO 2024 | K6: AÑO 2025 | M6: AÑO 2026 | O6: AÑO 2027
C7: Valor EJECUTADO a 31/12/2023 | D7: Valor EJECUTADO a 31/12/2024 | E7: Resultado Indicador Austeridad | H7: AÑO 2025 | I7: AÑO 2026 | J7: AÑO 2027 | K7: Valor EJECUTADO a 31/12/2025 | L7: Resultado Indicador Austeridad | M7: Valor EJECUTADO a 31/12/2026 | N7: Resultado Indicador Austeridad | O7: Valor EJECUTADO a 31/12/2027 | P7: Resultado Indicador Austeridad
A8: Servicios de personal
A9: Artículo 6°.- Reducción del gasto en CPS profesionales y de apoyo a la gestión. | B9: N.A. Se registran totales. Corresponde con lo reportado en SIDEAP y SIVICOF | E9: =1-(D9/C9) ->  | L9: =1-(K9/D9) ->  | N9: =1-(M9/K9) ->  | P9: =1-(O9/M9) -> 
A10: Artículo 7°.- Horas extras, dominicales y festivos. | L10: =1-(K10/D10) ->  | N10: =1-(M10/K10) -> 
A11: Artículo 8°.- Viáticos y gastos de viaje.
A12: Artículo 9°.- Compensación por vacaciones.
A13: Artículo 10°.- Bono navideño.
A14: Artículo 11 -. Capacitación.
A15: Artículo 12 -. Bienestar.
A16: Artículo 13 -. Eventos y conmemoraciones.
A17: Artículo 14 -. Fondos educativos.
A18: Servicios Administrativos
A19: Artículo 15. Telefonía. | E19: =1-(D19/C19) -> 
A20: Artículo 16 -. Vehículos oficiales.
A21: Artículo 17 -. Adquisición de vehículos y maquinaria.
A22: Artículo 18 -. Fotocopiado, multicopiado e impresión.
A23: Artículo 19 -. Publicidad distrital.
A24: Artículo 20 -. Cajas menores.
A25: Artículo 21 -. Mantenimiento o reparación de bienes inmuebles o muebles.
A26: Artículo 22 -. Suscripciones.
A27: Artículo 23 -. Servicios públicos.

Sheet 0262-01 TRANSMILENIO
A1: PLAN DE AUSTERIDAD EN EL GASTO 2025-2027
A2: Entidad
A3: Valores en Pesos Corrientes
A4: CONCEPTO (Decreto 062 de 2024) | B4: Posiciones Presupuestales Asociadas (Funcionamiento e Inversión) | C4: LÍNEA BASE | F4: PLAN DE AUSTERIDAD EN EL GASTO 2025-2027 | K4: SEGUIMIENTO RESULTADOS PLAN DE AUSTERIDAD 2025-2027
F5: ESTRATEGIAS 2025-2027 | G5: ACCIONES 2025-2027 | H5: META INDICADOR DE AUSTERIDAD
C6: AÑO 2023 | D6: AÑO 2024 | K6: AÑO 2025 | M6: AÑO 2026 | O6: AÑO 2027
C7: Valor EJECUTADO a 31/12/2023 | D7: Valor EJECUTADO a 31/12/2024 | E7: Resultado Indicador Austeridad | H7: AÑO 2025 | I7: AÑO 2026 | J7: AÑO 2027 | K7: Valor EJECUTADO a 31/12/2025 | L7: Resultado Indicador Austeridad | M7: Valor EJECUTADO a 31/12/2026 | N7: Resultado Indicador Austeridad | O7: Valor EJECUTADO a 31/12/2027 | P7: Resultado Indicador Austeridad
A8: Servicios de personal
A9: Artículo 6°.- Reducción del gasto en CPS profesionales y de apoyo a la gestión. | B9: N.A. Se registran totales. Corresponde con lo reportado en SIDEAP y SIVICOF | E9: =1-(D9/C9) ->  | L9: =1-(K9/D9) ->  | N9: =1-(M9/K9) ->  | P9: =1-(O9/M9) -> 
A10: Artículo 7°.- Horas extras, dominicales y festivos. | L10: =1-(K10/D10) ->  | N10: =1-(M10/K10) -> 
A11: Artículo 8°.- Viáticos y gastos de viaje.
A12: Artículo 9°.- Compensación por vacaciones.
A13: Artículo 10°.- Bono navideño.
A14: Artículo 11 -. Capacitación.
A15: Artículo 12 -. Bienestar.
A16: Artículo 13 -. Eventos y conmemoraciones.
A17: Artículo 14 -. Fondos educativos.
A18: Servicios Administrativos
A19: Artículo 15. Telefonía. | E19: =1-(D19/C19) -> 
A20: Artículo 16 -. Vehículos oficiales.
A21: Artículo 17 -. Adquisición de vehículos y maquinaria.
A22: Artículo 18 -. Fotocopiado, multicopiado e impresión.
A23: Artículo 19 -. Publicidad distrital.
A24: Artículo 20 -. Cajas menores.
A25: Artículo 21 -. Mantenimiento o reparación de bienes inmuebles o muebles.
A26: Artículo 22 -. Suscripciones.
A27: Artículo 23 -. Servicios públicos.

Sheet 0263-01 ERU
A1: PLAN DE AUSTERIDAD EN EL GASTO 2025-2027
A2: Entidad
A3: Valores en Pesos Corrientes
A4: CONCEPTO (Decreto 062 de 2024) | B4: Posiciones Presupuestales Asociadas (Funcionamiento e Inversión) | C4: LÍNEA BASE | F4: PLAN DE AUSTERIDAD EN EL GASTO 2025-2027 | K4: SEGUIMIENTO RESULTADOS PLAN DE AUSTERIDAD 2025-2027
F5: ESTRATEGIAS 2025-2027 | G5: ACCIONES 2025-2027 | H5: META INDICADOR DE AUSTERIDAD
C6: AÑO 2023 | D6: AÑO 2024 | K6: AÑO 2025 | M6: AÑO 2026 | O6: AÑO 2027
C7: Valor EJECUTADO a 31/12/2023 | D7: Valor EJECUTADO a 31/12/2024 | E7: Resultado Indicador Austeridad | H7: AÑO 2025 | I7: AÑO 2026 | J7: AÑO 2027 | K7: Valor EJECUTADO a 31/12/2025 | L7: Resultado Indicador Austeridad | M7: Valor EJECUTADO a 31/12/2026 | N7: Resultado Indicador Austeridad | O7: Valor EJECUTADO a 31/12/2027 | P7: Resultado Indicador Austeridad
A8: Servicios de personal
A9: Artículo 6°.- Reducción del gasto en CPS profesionales y de apoyo a la gestión. | B9: N.A. Se registran totales. Corresponde con lo reportado en SIDEAP y SIVICOF | E9: =1-(D9/C9) ->  | L9: =1-(K9/D9) ->  | N9: =1-(M9/K9) ->  | P9: =1-(O9/M9) -> 
A10: Artículo 7°.- Horas extras, dominicales y festivos. | L10: =1-(K10/D10) ->  | N10: =1-(M10/K10) -> 
A11: Artículo 8°.- Viáticos y gastos de viaje.
A12: Artículo 9°.- Compensación por vacaciones.
A13: Artículo 10°.- Bono navideño.
A14: Artículo 11 -. Capacitación.
A15: Artículo 12 -. Bienestar.
A16: Artículo 13 -. Eventos y conmemoraciones.
A17: Artículo 14 -. Fondos educativos.
A18: Servicios Administrativos
A19: Artículo 15. Telefonía. | E19: =1-(D19/C19) -> 
A20: Artículo 16 -. Vehículos oficiales.
A21: Artículo 17 -. Adquisición de vehículos y maquinaria.
A22: Artículo 18 -. Fotocopiado, multicopiado e impresión.
A23: Artículo 19 -. Publicidad distrital.
A24: Artículo 20 -. Cajas menores.
A25: Artículo 21 -. Mantenimiento o reparación de bienes inmuebles o muebles.
A26: Artículo 22 -. Suscripciones.
A27: Artículo 23 -. Servicios públicos.

Sheet 0264-01 AB ESP
A1: PLAN DE AUSTERIDAD EN EL GASTO 2025-2027
A2: Entidad
A3: Valores en Pesos Corrientes
A4: CONCEPTO (Decreto 062 de 2024) | B4: Posiciones Presupuestales Asociadas (Funcionamiento e Inversión) | C4: LÍNEA BASE | F4: PLAN DE AUSTERIDAD EN EL GASTO 2025-2027 | K4: SEGUIMIENTO RESULTADOS PLAN DE AUSTERIDAD 2025-2027
F5: ESTRATEGIAS 2025-2027 | G5: ACCIONES 2025-2027 | H5: META INDICADOR DE AUSTERIDAD
C6: AÑO 2023 | D6: AÑO 2024 | K6: AÑO 2025 | M6: AÑO 2026 | O6: AÑO 2027
C7: Valor EJECUTADO a 31/12/2023 | D7: Valor EJECUTADO a 31/12/2024 | E7: Resultado Indicador Austeridad | H7: AÑO 2025 | I7: AÑO 2026 | J7: AÑO 2027 | K7: Valor EJECUTADO a 31/12/2025 | L7: Resultado Indicador Austeridad | M7: Valor EJECUTADO a 31/12/2026 | N7: Resultado Indicador Austeridad | O7: Valor EJECUTADO a 31/12/2027 | P7: Resultado Indicador Austeridad
A8: Servicios de personal
A9: Artículo 6°.- Reducción del gasto en CPS profesionales y de apoyo a la gestión. | B9: N.A. Se registran totales. Corresponde con lo reportado en SIDEAP y SIVICOF | E9: =1-(D9/C9) ->  | L9: =1-(K9/D9) ->  | N9: =1-(M9/K9) ->  | P9: =1-(O9/M9) -> 
A10: Artículo 7°.- Horas extras, dominicales y festivos. | L10: =1-(K10/D10) ->  | N10: =1-(M10/K10) -> 
A11: Artículo 8°.- Viáticos y gastos de viaje.
A12: Artículo 9°.- Compensación por vacaciones.
A13: Artículo 10°.- Bono navideño.
A14: Artículo 11 -. Capacitación.
A15: Artículo 12 -. Bienestar.
A16: Artículo 13 -. Eventos y conmemoraciones.
A17: Artículo 14 -. Fondos educativos.
A18: Servicios Administrativos
A19: Artículo 15. Telefonía. | E19: =1-(D19/C19) -> 
A20: Artículo 16 -. Vehículos oficiales.
A21: Artículo 17 -. Adquisición de vehículos y maquinaria.
A22: Artículo 18 -. Fotocopiado, multicopiado e impresión.
A23: Artículo 19 -. Publicidad distrital.
A24: Artículo 20 -. Cajas menores.
A25: Artículo 21 -. Mantenimiento o reparación de bienes inmuebles o muebles.
A26: Artículo 22 -. Suscripciones.
A27: Artículo 23 -. Servicios públicos.

Sheet 0265-01 EAAB
A1: PLAN DE AUSTERIDAD EN EL GASTO 2025-2027
A2: Entidad
A3: Valores en Pesos Corrientes
A4: CONCEPTO (Decreto 062 de 2024) | B4: Posiciones Presupuestales Asociadas (Funcionamiento e Inversión) | C4: LÍNEA BASE | F4: PLAN DE AUSTERIDAD EN EL GASTO 2025-2027 | K4: SEGUIMIENTO RESULTADOS PLAN DE AUSTERIDAD 2025-2027
F5: ESTRATEGIAS 2025-2027 | G5: ACCIONES 2025-2027 | H5: META INDICADOR DE AUSTERIDAD
C6: AÑO 2023 | D6: AÑO 2024 | K6: AÑO 2025 | M6: AÑO 2026 | O6: AÑO 2027
C7: Valor EJECUTADO a 31/12/2023 | D7: Valor EJECUTADO a 31/12/2024 | E7: Resultado Indicador Austeridad | H7: AÑO 2025 | I7: AÑO 2026 | J7: AÑO 2027 | K7: Valor EJECUTADO a 31/12/2025 | L7: Resultado Indicador Austeridad | M7: Valor EJECUTADO a 31/12/2026 | N7: Resultado Indicador Austeridad | O7: Valor EJECUTADO a 31/12/2027 | P7: Resultado Indicador Austeridad
A8: Servicios de personal
A9: Artículo 6°.- Reducción del gasto en CPS profesionales y de apoyo a la gestión. | B9: N.A. Se registran totales. Corresponde con lo reportado en SIDEAP y SIVICOF | E9: =1-(D9/C9) ->  | L9: =1-(K9/D9) ->  | N9: =1-(M9/K9) ->  | P9: =1-(O9/M9) -> 
A10: Artículo 7°.- Horas extras, dominicales y festivos. | L10: =1-(K10/D10) ->  | N10: =1-(M10/K10) -> 
A11: Artículo 8°.- Viáticos y gastos de viaje.
A12: Artículo 9°.- Compensación por vacaciones.
A13: Artículo 10°.- Bono navideño.
A14: Artículo 11 -. Capacitación.
A15: Artículo 12 -. Bienestar.
A16: Artículo 13 -. Eventos y conmemoraciones.
A17: Artículo 14 -. Fondos educativos.
A18: Servicios Administrativos
A19: Artículo 15. Telefonía. | E19: =1-(D19/C19) -> 
A20: Artículo 16 -. Vehículos oficiales.
A21: Artículo 17 -. Adquisición de vehículos y maquinaria.
A22: Artículo 18 -. Fotocopiado, multicopiado e impresión.
A23: Artículo 19 -. Publicidad distrital.
A24: Artículo 20 -. Cajas menores.
A25: Artículo 21 -. Mantenimiento o reparación de bienes inmuebles o muebles.
A26: Artículo 22 -. Suscripciones.
A27: Artículo 23 -. Servicios públicos.

Sheet 0266-01 EMB
A1: PLAN DE AUSTERIDAD EN EL GASTO 2025-2027
A2: Entidad | B2: EMPRESA METRO DE BOGOTA
A3: Valores en Pesos Corrientes
A4: CONCEPTO (Decreto 062 de 2024) | B4: Posiciones Presupuestales Asociadas (Funcionamiento e Inversión) | C4: LÍNEA BASE | F4: PLAN DE AUSTERIDAD EN EL GASTO 2025-2027 | K4: SEGUIMIENTO RESULTADOS PLAN DE AUSTERIDAD 2025-2027
F5: ESTRATEGIAS 2025-2027 | G5: ACCIONES 2025-2027 | H5: META INDICADOR DE AUSTERIDAD
C6: AÑO 2023 | D6: AÑO 2024 | K6: AÑO 2025 | M6: AÑO 2026 | O6: AÑO 2027
C7: Valor EJECUTADO a 31/12/2023 | D7: Valor EJECUTADO a 31/12/2024 | E7: Resultado Indicador Austeridad | H7: AÑO 2025 | I7: AÑO 2026 | J7: AÑO 2027 | K7: Valor EJECUTADO a 31/12/2025 | L7: Resultado Indicador Austeridad | M7: Valor EJECUTADO a 31/12/2026 | N7: Resultado Indicador Austeridad | O7: Valor EJECUTADO a 31/12/2027 | P7: Resultado Indicador Austeridad
A8: Servicios de personal
A9: Artículo 6°.- Reducción del gasto en CPS profesionales y de apoyo a la gestión. | B9: N.A. Se registran totales. Corresponde con lo reportado en SIDEAP y SIVICOF | E9: =1-(D9/C9) ->  | L9: =1-(K9/D9) ->  | N9: =1-(M9/K9) ->  | P9: =1-(O9/M9) -> 
A10: Artículo 7°.- Horas extras, dominicales y festivos. | L10: =1-(K10/D10) ->  | N10: =1-(M10/K10) -> 
A11: Artículo 8°.- Viáticos y gastos de viaje.
A12: Artículo 9°.- Compensación por vacaciones.
A13: Artículo 10°.- Bono navideño.
A14: Artículo 11 -. Capacitación.
A15: Artículo 12 -. Bienestar.
A16: Artículo 13 -. Eventos y conmemoraciones.
A17: Artículo 14 -. Fondos educativos.
A18: Servicios Administrativos
A19: Artículo 15. Telefonía. | E19: =1-(D19/C19) -> 
A20: Artículo 16 -. Vehículos oficiales.
A21: Artículo 17 -. Adquisición de vehículos y maquinaria.
A22: Artículo 18 -. Fotocopiado, multicopiado e impresión.
A23: Artículo 19 -. Publicidad distrital.
A24: Artículo 20 -. Cajas menores.
A25: Artículo 21 -. Mantenimiento o reparación de bienes inmuebles o muebles.
A26: Artículo 22 -. Suscripciones.
A27: Artículo 23 -. Servicios públicos.

Sheet 0267-01 C. SALUD
A1: PLAN DE AUSTERIDAD EN EL GASTO 2025-2027
A2: Entidad
A3: Valores en Pesos Corrientes
A4: CONCEPTO (Decreto 062 de 2024) | B4: Posiciones Presupuestales Asociadas (Funcionamiento e Inversión) | C4: LÍNEA BASE | F4: PLAN DE AUSTERIDAD EN EL GASTO 2025-2027 | K4: SEGUIMIENTO RESULTADOS PLAN DE AUSTERIDAD 2025-2027
F5: ESTRATEGIAS 2025-2027 | G5: ACCIONES 2025-2027 | H5: META INDICADOR DE AUSTERIDAD
C6: AÑO 2023 | D6: AÑO 2024 | K6: AÑO 2025 | M6: AÑO 2026 | O6: AÑO 2027
C7: Valor EJECUTADO a 31/12/2023 | D7: Valor EJECUTADO a 31/12/2024 | E7: Resultado Indicador Austeridad | H7: AÑO 2025 | I7: AÑO 2026 | J7: AÑO 2027 | K7: Valor EJECUTADO a 31/12/2025 | L7: Resultado Indicador Austeridad | M7: Valor EJECUTADO a 31/12/2026 | N7: Resultado Indicador Austeridad | O7: Valor EJECUTADO a 31/12/2027 | P7: Resultado Indicador Austeridad
A8: Servicios de personal
A9: Artículo 6°.- Reducción del gasto en CPS profesionales y de apoyo a la gestión. | B9: N.A. Se registran totales. Corresponde con lo reportado en SIDEAP y SIVICOF | E9: =1-(D9/C9) ->  | L9: =1-(K9/D9) ->  | N9: =1-(M9/K9) ->  | P9: =1-(O9/M9) -> 
A10: Artículo 7°.- Horas extras, dominicales y festivos. | L10: =1-(K10/D10) ->  | N10: =1-(M10/K10) -> 
A11: Artículo 8°.- Viáticos y gastos de viaje.
A12: Artículo 9°.- Compensación por vacaciones.
A13: Artículo 10°.- Bono navideño.
A14: Artículo 11 -. Capacitación.
A15: Artículo 12 -. Bienestar.
A16: Artículo 13 -. Eventos y conmemoraciones.
A17: Artículo 14 -. Fondos educativos.
A18: Servicios Administrativos
A19: Artículo 15. Telefonía. | E19: =1-(D19/C19) -> 
A20: Artículo 16 -. Vehículos oficiales.
A21: Artículo 17 -. Adquisición de vehículos y maquinaria.
A22: Artículo 18 -. Fotocopiado, multicopiado e impresión.
A23: Artículo 19 -. Publicidad distrital.
A24: Artículo 20 -. Cajas menores.
A25: Artículo 21 -. Mantenimiento o reparación de bienes inmuebles o muebles.
A26: Artículo 22 -. Suscripciones.
A27: Artículo 23 -. Servicios públicos.

Sheet 0423-01 SUBRED CENTRO
A1: PLAN DE AUSTERIDAD EN EL GASTO 2025-2027
A2: Entidad
A3: Valores en Pesos Corrientes
A4: CONCEPTO (Decreto 062 de 2024) | B4: Posiciones Presupuestales Asociadas (Funcionamiento e Inversión) | C4: LÍNEA BASE | F4: PLAN DE AUSTERIDAD EN EL GASTO 2025-2027 | K4: SEGUIMIENTO RESULTADOS PLAN DE AUSTERIDAD 2025-2027
F5: ESTRATEGIAS 2025-2027 | G5: ACCIONES 2025-2027 | H5: META INDICADOR DE AUSTERIDAD
C6: AÑO 2023 | D6: AÑO 2024 | K6: AÑO 2025 | M6: AÑO 2026 | O6: AÑO 2027
C7: Valor EJECUTADO a 31/12/2023 | D7: Valor EJECUTADO a 31/12/2024 | E7: Resultado Indicador Austeridad | H7: AÑO 2025 | I7: AÑO 2026 | J7: AÑO 2027 | K7: Valor EJECUTADO a 31/12/2025 | L7: Resultado Indicador Austeridad | M7: Valor EJECUTADO a 31/12/2026 | N7: Resultado Indicador Austeridad | O7: Valor EJECUTADO a 31/12/2027 | P7: Resultado Indicador Austeridad
A8: Servicios de personal
A9: Artículo 6°.- Reducción del gasto en CPS profesionales y de apoyo a la gestión. | B9: N.A. Se registran totales. Corresponde con lo reportado en SIDEAP y SIVICOF | E9: =1-(D9/C9) ->  | L9: =1-(K9/D9) ->  | N9: =1-(M9/K9) ->  | P9: =1-(O9/M9) -> 
A10: Artículo 7°.- Horas extras, dominicales y festivos. | L10: =1-(K10/D10) ->  | N10: =1-(M10/K10) -> 
A11: Artículo 8°.- Viáticos y gastos de viaje.
A12: Artículo 9°.- Compensación por vacaciones.
A13: Artículo 10°.- Bono navideño.
A14: Artículo 11 -. Capacitación.
A15: Artículo 12 -. Bienestar.
A16: Artículo 13 -. Eventos y conmemoraciones.
A17: Artículo 14 -. Fondos educativos.
A18: Servicios Administrativos
A19: Artículo 15. Telefonía. | E19: =1-(D19/C19) -> 
A20: Artículo 16 -. Vehículos oficiales.
A21: Artículo 17 -. Adquisición de vehículos y maquinaria.
A22: Artículo 18 -. Fotocopiado, multicopiado e impresión.
A23: Artículo 19 -. Publicidad distrital.
A24: Artículo 20 -. Cajas menores.
A25: Artículo 21 -. Mantenimiento o reparación de bienes inmuebles o muebles.
A26: Artículo 22 -. Suscripciones.
A27: Artículo 23 -. Servicios públicos.

Sheet 0424-01 SUBRED OCCIDENTE
A1: PLAN DE AUSTERIDAD EN EL GASTO 2025-2027
A2: Entidad
A3: Valores en Pesos Corrientes
A4: CONCEPTO (Decreto 062 de 2024) | B4: Posiciones Presupuestales Asociadas (Funcionamiento e Inversión) | C4: LÍNEA BASE | F4: PLAN DE AUSTERIDAD EN EL GASTO 2025-2027 | K4: SEGUIMIENTO RESULTADOS PLAN DE AUSTERIDAD 2025-2027
F5: ESTRATEGIAS 2025-2027 | G5: ACCIONES 2025-2027 | H5: META INDICADOR DE AUSTERIDAD
C6: AÑO 2023 | D6: AÑO 2024 | K6: AÑO 2025 | M6: AÑO 2026 | O6: AÑO 2027
C7: Valor EJECUTADO a 31/12/2023 | D7: Valor EJECUTADO a 31/12/2024 | E7: Resultado Indicador Austeridad | H7: AÑO 2025 | I7: AÑO 2026 | J7: AÑO 2027 | K7: Valor EJECUTADO a 31/12/2025 | L7: Resultado Indicador Austeridad | M7: Valor EJECUTADO a 31/12/2026 | N7: Resultado Indicador Austeridad | O7: Valor EJECUTADO a 31/12/2027 | P7: Resultado Indicador Austeridad
A8: Servicios de personal
A9: Artículo 6°.- Reducción del gasto en CPS profesionales y de apoyo a la gestión. | B9: N.A. Se registran totales. Corresponde con lo reportado en SIDEAP y SIVICOF | E9: =1-(D9/C9) ->  | L9: =1-(K9/D9) ->  | N9: =1-(M9/K9) ->  | P9: =1-(O9/M9) -> 
A10: Artículo 7°.- Horas extras, dominicales y festivos. | L10: =1-(K10/D10) ->  | N10: =1-(M10/K10) -> 
A11: Artículo 8°.- Viáticos y gastos de viaje.
A12: Artículo 9°.- Compensación por vacaciones.
A13: Artículo 10°.- Bono navideño.
A14: Artículo 11 -. Capacitación.
A15: Artículo 12 -. Bienestar.
A16: Artículo 13 -. Eventos y conmemoraciones.
A17: Artículo 14 -. Fondos educativos.
A18: Servicios Administrativos
A19: Artículo 15. Telefonía. | E19: =1-(D19/C19) -> 
A20: Artículo 16 -. Vehículos oficiales.
A21: Artículo 17 -. Adquisición de vehículos y maquinaria.
A22: Artículo 18 -. Fotocopiado, multicopiado e impresión.
A23: Artículo 19 -. Publicidad distrital.
A24: Artículo 20 -. Cajas menores.
A25: Artículo 21 -. Mantenimiento o reparación de bienes inmuebles o muebles.
A26: Artículo 22 -. Suscripciones.
A27: Artículo 23 -. Servicios públicos.

Sheet 0425-01 SUBRED SUR
A1: PLAN DE AUSTERIDAD EN EL GASTO 2025-2027
A2: Entidad
A3: Valores en Pesos Corrientes
A4: CONCEPTO (Decreto 062 de 2024) | B4: Posiciones Presupuestales Asociadas (Funcionamiento e Inversión) | C4: LÍNEA BASE | F4: PLAN DE AUSTERIDAD EN EL GASTO 2025-2027 | K4: SEGUIMIENTO RESULTADOS PLAN DE AUSTERIDAD 2025-2027
F5: ESTRATEGIAS 2025-2027 | G5: ACCIONES 2025-2027 | H5: META INDICADOR DE AUSTERIDAD
C6: AÑO 2023 | D6: AÑO 2024 | K6: AÑO 2025 | M6: AÑO 2026 | O6: AÑO 2027
C7: Valor EJECUTADO a 31/12/2023 | D7: Valor EJECUTADO a 31/12/2024 | E7: Resultado Indicador Austeridad | H7: AÑO 2025 | I7: AÑO 2026 | J7: AÑO 2027 | K7: Valor EJECUTADO a 31/12/2025 | L7: Resultado Indicador Austeridad | M7: Valor EJECUTADO a 31/12/2026 | N7: Resultado Indicador Austeridad | O7: Valor EJECUTADO a 31/12/2027 | P7: Resultado Indicador Austeridad
A8: Servicios de personal
A9: Artículo 6°.- Reducción del gasto en CPS profesionales y de apoyo a la gestión. | B9: N.A. Se registran totales. Corresponde con lo reportado en SIDEAP y SIVICOF | E9: =1-(D9/C9) ->  | L9: =1-(K9/D9) ->  | N9: =1-(M9/K9) ->  | P9: =1-(O9/M9) -> 
A10: Artículo 7°.- Horas extras, dominicales y festivos. | L10: =1-(K10/D10) ->  | N10: =1-(M10/K10) -> 
A11: Artículo 8°.- Viáticos y gastos de viaje.
A12: Artículo 9°.- Compensación por vacaciones.
A13: Artículo 10°.- Bono navideño.
A14: Artículo 11 -. Capacitación.
A15: Artículo 12 -. Bienestar.
A16: Artículo 13 -. Eventos y conmemoraciones.
A17: Artículo 14 -. Fondos educativos.
A18: Servicios Administrativos
A19: Artículo 15. Telefonía. | E19: =1-(D19/C19) -> 
A20: Artículo 16 -. Vehículos oficiales.
A21: Artículo 17 -. Adquisición de vehículos y maquinaria.
A22: Artículo 18 -. Fotocopiado, multicopiado e impresión.
A23: Artículo 19 -. Publicidad distrital.
A24: Artículo 20 -. Cajas menores.
A25: Artículo 21 -. Mantenimiento o reparación de bienes inmuebles o muebles.
A26: Artículo 22 -. Suscripciones.
A27: Artículo 23 -. Servicios públicos.

Sheet 0426-01 SUBRED NORTE
A1: PLAN DE AUSTERIDAD EN EL GASTO 2025-2027
A2: Entidad
A3: Valores en Pesos Corrientes
A4: CONCEPTO (Decreto 062 de 2024) | B4: Posiciones Presupuestales Asociadas (Funcionamiento e Inversión) | C4: LÍNEA BASE | F4: PLAN DE AUSTERIDAD EN EL GASTO 2025-2027 | K4: SEGUIMIENTO RESULTADOS PLAN DE AUSTERIDAD 2025-2027
F5: ESTRATEGIAS 2025-2027 | G5: ACCIONES 2025-2027 | H5: META INDICADOR DE AUSTERIDAD
C6: AÑO 2023 | D6: AÑO 2024 | K6: AÑO 2025 | M6: AÑO 2026 | O6: AÑO 2027
C7: Valor EJECUTADO a 31/12/2023 | D7: Valor EJECUTADO a 31/12/2024 | E7: Resultado Indicador Austeridad | H7: AÑO 2025 | I7: AÑO 2026 | J7: AÑO 2027 | K7: Valor EJECUTADO a 31/12/2025 | L7: Resultado Indicador Austeridad | M7: Valor EJECUTADO a 31/12/2026 | N7: Resultado Indicador Austeridad | O7: Valor EJECUTADO a 31/12/2027 | P7: Resultado Indicador Austeridad
A8: Servicios de personal
A9: Artículo 6°.- Reducción del gasto en CPS profesionales y de apoyo a la gestión. | B9: N.A. Se registran totales. Corresponde con lo reportado en SIDEAP y SIVICOF | E9: =1-(D9/C9) ->  | L9: =1-(K9/D9) ->  | N9: =1-(M9/K9) ->  | P9: =1-(O9/M9) -> 
A10: Artículo 7°.- Horas extras, dominicales y festivos. | L10: =1-(K10/D10) ->  | N10: =1-(M10/K10) -> 
A11: Artículo 8°.- Viáticos y gastos de viaje.
A12: Artículo 9°.- Compensación por vacaciones.
A13: Artículo 10°.- Bono navideño.
A14: Artículo 11 -. Capacitación.
A15: Artículo 12 -. Bienestar.
A16: Artículo 13 -. Eventos y conmemoraciones.
A17: Artículo 14 -. Fondos educativos.
A18: Servicios Administrativos
A19: Artículo 15. Telefonía. | E19: =1-(D19/C19) -> 
A20: Artículo 16 -. Vehículos oficiales.
A21: Artículo 17 -. Adquisición de vehículos y maquinaria.
A22: Artículo 18 -. Fotocopiado, multicopiado e impresión.
A23: Artículo 19 -. Publicidad distrital.
A24: Artículo 20 -. Cajas menores.
A25: Artículo 21 -. Mantenimiento o reparación de bienes inmuebles o muebles.
A26: Artículo 22 -. Suscripciones.
A27: Artículo 23 -. Servicios públicos.

Sheet 0501-01 ATENEA
A1: PLAN DE AUSTERIDAD EN EL GASTO 2025-2027
A2: Entidad
A3: Valores en Pesos Corrientes
A4: CONCEPTO (Decreto 062 de 2024) | B4: Posiciones Presupuestales Asociadas (Funcionamiento e Inversión) | C4: LÍNEA BASE | F4: PLAN DE AUSTERIDAD EN EL GASTO 2025-2027 | K4: SEGUIMIENTO RESULTADOS PLAN DE AUSTERIDAD 2025-2027
F5: ESTRATEGIAS 2025-2027 | G5: ACCIONES 2025-2027 | H5: META INDICADOR DE AUSTERIDAD
C6: AÑO 2023 | D6: AÑO 2024 | K6: AÑO 2025 | M6: AÑO 2026 | O6: AÑO 2027
C7: Valor EJECUTADO a 31/12/2023 | D7: Valor EJECUTADO a 31/12/2024 | E7: Resultado Indicador Austeridad | H7: AÑO 2025 | I7: AÑO 2026 | J7: AÑO 2027 | K7: Valor EJECUTADO a 31/12/2025 | L7: Resultado Indicador Austeridad | M7: Valor EJECUTADO a 31/12/2026 | N7: Resultado Indicador Austeridad | O7: Valor EJECUTADO a 31/12/2027 | P7: Resultado Indicador Austeridad
A8: Servicios de personal
A9: Artículo 6°.- Reducción del gasto en CPS profesionales y de apoyo a la gestión. | B9: N.A. Se registran totales. Corresponde con lo reportado en SIDEAP y SIVICOF | E9: =1-(D9/C9) ->  | L9: =1-(K9/D9) ->  | N9: =1-(M9/K9) ->  | P9: =1-(O9/M9) -> 
A10: Artículo 7°.- Horas extras, dominicales y festivos. | L10: =1-(K10/D10) ->  | N10: =1-(M10/K10) -> 
A11: Artículo 8°.- Viáticos y gastos de viaje.
A12: Artículo 9°.- Compensación por vacaciones.
A13: Artículo 10°.- Bono navideño.
A14: Artículo 11 -. Capacitación.
A15: Artículo 12 -. Bienestar.
A16: Artículo 13 -. Eventos y conmemoraciones.
A17: Artículo 14 -. Fondos educativos.
A18: Servicios Administrativos
A19: Artículo 15. Telefonía. | E19: =1-(D19/C19) -> 
A20: Artículo 16 -. Vehículos oficiales.
A21: Artículo 17 -. Adquisición de vehículos y maquinaria.
A22: Artículo 18 -. Fotocopiado, multicopiado e impresión.
A23: Artículo 19 -. Publicidad distrital.
A24: Artículo 20 -. Cajas menores.
A25: Artículo 21 -. Mantenimiento o reparación de bienes inmuebles o muebles.
A26: Artículo 22 -. Suscripciones.
A27: Artículo 23 -. Servicios públicos.

Sheet Fondos de Desarrollo Local
E18: 0001-01 USAQUEN | G18: 0006-01 TUNJUELITO | I18: 0011-01 SUBA | K18: 0016-01 P. ARANDA
E20: 0002-01 CHAPINERO | G20: 0007-01 BOSA | I20: 0012-01 BARRIOS UNI | K20: 0017-01 CANDELARIA
E22: 0003-01 SANTAFE | G22: 0008-01 KENNEDY | I22: 0013-01 TEUSAQUILLO | K22: 0018-01 R. URIBE
E24: 0004-01 SAN CRISTOBAL | G24: 0009-01 FONTIBON | I24: 0014-01 MARTIREZ | K24: 0019-01 C. BOLIVAR
E26: 0005-01 USME | G26: 0010-01 ENGATIVA | I26: 0015-01 A. NARIÑO | K26: 0020-01 SUMAPAZ

Sheet Administración Central
E17: 0100-01 CONCEJO | G17: 0111-01 SDH | I17: 0113-01 SDM | K17: 0119-01 SDCRD | M17: 0126-01 SDA
E19: 0102-01 PERSONERIA | G19: 0111-02 SDH | I19: 0113-02 SDM | K19: 0120-01 SDP | M19: 0127-01 DADEP
E21: 0104-01 SECRETARÍA GENERAL | G21: 0111-03 SDH | I21: 0114-01 SDS | K21: 0121-01 SDM | M21: 0131-01 UAECOB
E23: 0105-01 VEEDURIA | G23: 0111-04 SDH | I23: 0117-01 SDDE | K23: 0122-01 SDIS | M23: 0136-01 SJD
E25: 0110-01 SDG | G25: 0112-01 SDE | I25: 0118-01 SDHT | K25: 0125-01 DASCD | M25: 0137-01 SDSCJ
E27: 0137-02 SDSCJ

Sheet Establecimientos Públicos
E17: 0200-01 IPES | G17: 0206-02 FONCEP | I17: 0215-01 FUGA | K17: 0221-01 IDT | M17: 0228-01 UAESP
E19: 0201-01 FFDS | G19: 0208-01 CVP | I19: 0216-01 OFB | K19: 0221-02 IDT | M19: 0229-01 IDPYBA
E21: 0203-01 IDIGER | G21: 0211-01 IDRD | I21: 0218-01 JB | K21: 0222-01 IDARTES | M21: 0230-01 UD
E23: 0204-01 IDU | G23: 0213-01 IDPC | I23: 0219-01 IDEP | K23: 0226-01 UAECD | M23: 0227-01 UAERMV
E25: 0206-01 FONCEP | G25: 0214-01 IDIPRON | I25: 0220-01 IDPAC | K25: 0501-01 ATENEA

Sheet EICD
G17: 0240-01 LOTERIA | I17: 0264-01 AB ESP
G19: 0260-01 CANAL CAPITAL | I19: 0265-01 EAAB
G21: 0262-01 TRANSMILENIO | I21: 0266-01 EMB
G23: 0263-01 ERU | I23: 0267-01 C. SALUD

Sheet ESES
G17: 0423-01 SUBRED CENTRO | I17: 0425-01 SUBRED SUR
G19: 0424-01 SUBRED OCCIDENTE | I19: 0426-01 SUBRED NORTE
